Organisation Code,Organisation Label,Effective Date,Organisational Unit,Service Division Label,Category Internal Name,Purpose,Detailed Expenditure Code,Payment Date,Transaction Number,Irrecoverable VAT Amount,Amount,Capital Or Revenue,Beneficiary Name,Procurement Card
Http://opendatacommunities.org/id/metropolitan-district-council/leeds,Leeds City Council,31/05/2021,Adults and Health,Services For Older People Under 65 P/Dis,Agency Payments,Sheltered Accommodation,569,26/05/2021,2105-00001 ,0.00,5400.00,R,A & V TRANSITIONAL HOMES,No
Http://opendatacommunities.org/id/metropolitan-district-council/leeds,Leeds City Council,31/05/2021,City Development,Economic Development,Supplies and Services,Grant Related Expenditure,290,28/05/2021,2105-00002,0.00,500.00,R,REDACTED PERSONAL DATA,No
Http://opendatacommunities.org/id/metropolitan-district-council/leeds,Leeds City Council,31/05/2021,Communities and Environment,Benefits Welfare and Poverty,Supplies and Services,Grant Related Expenditure,290,13/05/2021,2105-00003,0.00,500.00,R,REDACTED PERSONAL DATA,No
Http://opendatacommunities.org/id/metropolitan-district-council/leeds,Leeds City Council,31/05/2021,Resources and Housing,Leeds Building Services,Supplies and Services,Operational Materials,205,06/05/2021,2105-00004,0.00,15.92,R,A ANDREWS & SONS (MARBLES & TILES),No
Http://opendatacommunities.org/id/metropolitan-district-council/leeds,Leeds City Council,31/05/2021,Children and Families,Social Care,Agency Payments,Services Rendered By Other Organisations,511,07/05/2021,2105-00005,0.00,173.94,R,REDACTED PERSONAL DATA,No
Http://opendatacommunities.org/id/metropolitan-district-council/leeds,Leeds City Council,31/05/2021,Resources and Housing,HRA Housing Leeds,Capital,OTHER COSTS,7,14/05/2021,2105-00006,0.00,4000.00,C,REDACTED PERSONAL DATA,No
Http://opendatacommunities.org/id/metropolitan-district-council/leeds,Leeds City Council,31/05/2021,Resources and Housing,HRA Housing Leeds,Capital,OTHER COSTS,7,19/05/2021,2105-00007,0.00,78.99,C,REDACTED PERSONAL DATA,No
Http://opendatacommunities.org/id/metropolitan-district-council/leeds,Leeds City Council,31/05/2021,Resources and Housing,HRA Housing Leeds,Capital,OTHER COSTS,7,26/05/2021,2105-00008,0.00,80.00,C,REDACTED PERSONAL DATA,No
Http://opendatacommunities.org/id/metropolitan-district-council/leeds,Leeds City Council,31/05/2021,Resources and Housing,Leeds Building Services,Supplies and Services,Other Hired And Contracted Services,265,26/05/2021,2105-00009,0.00,15375.00,R,A Buckler (Haulage) Ltd,No
Http://opendatacommunities.org/id/metropolitan-district-council/leeds,Leeds City Council,31/05/2021,City Development,Economic Development,Supplies and Services,Grant Related Expenditure,290,17/05/2021,2105-00010,0.00,500.00,R,A C Peterson,No
Http://opendatacommunities.org/id/metropolitan-district-council/leeds,Leeds City Council,31/05/2021,Children and Families,Social Care,Agency Payments,Services Rendered By Other Organisations,511,07/05/2021,2105-00011,0.00,695.76,R,REDACTED PERSONAL DATA,No
Http://opendatacommunities.org/id/metropolitan-district-council/leeds,Leeds City Council,31/05/2021,Resources and Housing,Leeds Building Services,Supplies and Services,Other Hired And Contracted Services,265,21/05/2021,2105-00012,0.00,85.00,R,A Coole Electrical Ltd,No
Http://opendatacommunities.org/id/metropolitan-district-council/leeds,Leeds City Council,31/05/2021,Resources and Housing,Leeds Building Services,Supplies and Services,Other Hired And Contracted Services,265,21/05/2021,2105-00013,0.00,85.00,R,A Coole Electrical Ltd,No
Http://opendatacommunities.org/id/metropolitan-district-council/leeds,Leeds City Council,31/05/2021,Communities and Environment,Customer Access,Supplies and Services,Bought In Professional Services,277,06/05/2021,2105-00014,0.00,27.00,R,A D Dumitru,No
Http://opendatacommunities.org/id/metropolitan-district-council/leeds,Leeds City Council,31/05/2021,Communities and Environment,Customer Access,Supplies and Services,Bought In Professional Services,277,12/05/2021,2105-00015,0.00,9.00,R,A D Dumitru,No
Http://opendatacommunities.org/id/metropolitan-district-council/leeds,Leeds City Council,31/05/2021,Communities and Environment,Customer Access,Supplies and Services,Bought In Professional Services,277,12/05/2021,2105-00016,0.00,27.00,R,A D Dumitru,No
Http://opendatacommunities.org/id/metropolitan-district-council/leeds,Leeds City Council,31/05/2021,Communities and Environment,Customer Access,Supplies and Services,Bought In Professional Services,277,19/05/2021,2105-00017,0.00,18.00,R,A D Dumitru,No
Http://opendatacommunities.org/id/metropolitan-district-council/leeds,Leeds City Council,31/05/2021,Communities and Environment,Communities,Supplies and Services,Other Hired And Contracted Services,265,24/05/2021,2105-00018,0.00,25.00,R,A D Dumitru,No
Http://opendatacommunities.org/id/metropolitan-district-council/leeds,Leeds City Council,31/05/2021,Children and Families,Social Care,Agency Payments,Services Rendered By Other Organisations,511,05/05/2021,2105-00019,0.00,627.12,R,REDACTED PERSONAL DATA,No
Http://opendatacommunities.org/id/metropolitan-district-council/leeds,Leeds City Council,31/05/2021,Children and Families,Social Care,Agency Payments,Services Rendered By Voluntary Sector,505,07/05/2021,2105-00020,0.00,5705.23,R,REDACTED PERSONAL DATA,No
Http://opendatacommunities.org/id/metropolitan-district-council/leeds,Leeds City Council,31/05/2021,Children and Families,Social Care,Agency Payments,Services Rendered By Voluntary Sector,505,21/05/2021,2105-00021,0.00,2223.68,R,REDACTED PERSONAL DATA,No
Http://opendatacommunities.org/id/metropolitan-district-council/leeds,Leeds City Council,31/05/2021,Children and Families,Social Care,Internal Recharges,Legal Disbursements,411,13/05/2021,2105-00022,0.00,151.20,R,A F F Ghaly,No
Http://opendatacommunities.org/id/metropolitan-district-council/leeds,Leeds City Council,31/05/2021,Children and Families,Social Care,Agency Payments,Services Rendered By Other Organisations,511,07/05/2021,2105-00023,0.00,939.28,R,REDACTED PERSONAL DATA,No
Http://opendatacommunities.org/id/metropolitan-district-council/leeds,Leeds City Council,31/05/2021,Children and Families,Social Care,Agency Payments,Services Rendered By Other Organisations,511,05/05/2021,2105-00024,0.00,418.08,R,REDACTED PERSONAL DATA,No
Http://opendatacommunities.org/id/metropolitan-district-council/leeds,Leeds City Council,31/05/2021,Children and Families,Social Care,Agency Payments,Services Rendered By Other Organisations,511,07/05/2021,2105-00025,0.00,173.94,R,REDACTED PERSONAL DATA,No
Http://opendatacommunities.org/id/metropolitan-district-council/leeds,Leeds City Council,31/05/2021,Children and Families,Social Care,Agency Payments,Services Rendered By Other Organisations,511,07/05/2021,2105-00026,0.00,347.88,R,REDACTED PERSONAL DATA,No
Http://opendatacommunities.org/id/metropolitan-district-council/leeds,Leeds City Council,31/05/2021,Children and Families,Social Care,Agency Payments,Services Rendered By Other Organisations,511,07/05/2021,2105-00027,0.00,774.03,R,REDACTED PERSONAL DATA,No
Http://opendatacommunities.org/id/metropolitan-district-council/leeds,Leeds City Council,31/05/2021,Resources and Housing,Commercial Services,Supplies and Services,Other Hired And Contracted Services,265,07/05/2021,2105-00028,0.00,88.80,R,REDACTED PERSONAL DATA,No
Http://opendatacommunities.org/id/metropolitan-district-council/leeds,Leeds City Council,31/05/2021,Adults and Health,Other Generic Services,Agency Payments,Fees To Carers,563,07/05/2021,2105-00029,0.00,122.85,R,REDACTED PERSONAL DATA,No
Http://opendatacommunities.org/id/metropolitan-district-council/leeds,Leeds City Council,31/05/2021,Adults and Health,Other Generic Services,Agency Payments,Fees To Carers,563,17/05/2021,2105-00030,0.00,396.06,R,REDACTED PERSONAL DATA,No
Http://opendatacommunities.org/id/metropolitan-district-council/leeds,Leeds City Council,31/05/2021,Adults and Health,Other Generic Services,Agency Payments,Fees To Carers,563,17/05/2021,2105-00031,0.00,56.70,R,REDACTED PERSONAL DATA,No
Http://opendatacommunities.org/id/metropolitan-district-council/leeds,Leeds City Council,31/05/2021,City Development,Economic Development,Supplies and Services,Grant Related Expenditure,290,17/05/2021,2105-00032,0.00,500.00,R,REDACTED PERSONAL DATA,No
Http://opendatacommunities.org/id/metropolitan-district-council/leeds,Leeds City Council,31/05/2021,Resources and Housing,Leeds Building Services,Supplies and Services,Operational Materials,205,14/05/2021,2105-00033,0.00,122.55,R,A J H  Pump Supply & Repair Ltd,No
Http://opendatacommunities.org/id/metropolitan-district-council/leeds,Leeds City Council,31/05/2021,Resources and Housing,Leeds Building Services,Supplies and Services,Operational Materials,205,14/05/2021,2105-00034,0.00,142.14,R,A J H  Pump Supply & Repair Ltd,No
Http://opendatacommunities.org/id/metropolitan-district-council/leeds,Leeds City Council,31/05/2021,Resources and Housing,Leeds Building Services,Supplies and Services,Operational Materials,205,14/05/2021,2105-00035,0.00,144.95,R,A J H  Pump Supply & Repair Ltd,No
Http://opendatacommunities.org/id/metropolitan-district-council/leeds,Leeds City Council,31/05/2021,Resources and Housing,Leeds Building Services,Supplies and Services,Operational Materials,205,14/05/2021,2105-00036,0.00,42.92,R,A J H  Pump Supply & Repair Ltd,No
Http://opendatacommunities.org/id/metropolitan-district-council/leeds,Leeds City Council,31/05/2021,Resources and Housing,Leeds Building Services,Supplies and Services,Operational Materials,205,14/05/2021,2105-00037,0.00,163.45,R,A J H  Pump Supply & Repair Ltd,No
Http://opendatacommunities.org/id/metropolitan-district-council/leeds,Leeds City Council,31/05/2021,Resources and Housing,Leeds Building Services,Supplies and Services,Operational Materials,205,14/05/2021,2105-00038,0.00,9.95,R,A J H  Pump Supply & Repair Ltd,No
Http://opendatacommunities.org/id/metropolitan-district-council/leeds,Leeds City Council,31/05/2021,Resources and Housing,Leeds Building Services,Supplies and Services,Operational Materials,205,14/05/2021,2105-00039,0.00,301.54,R,A J H  Pump Supply & Repair Ltd,No
Http://opendatacommunities.org/id/metropolitan-district-council/leeds,Leeds City Council,31/05/2021,Resources and Housing,Leeds Building Services,Supplies and Services,Operational Materials,205,14/05/2021,2105-00040,0.00,695.00,R,A J H  Pump Supply & Repair Ltd,No
Http://opendatacommunities.org/id/metropolitan-district-council/leeds,Leeds City Council,31/05/2021,Resources and Housing,Leeds Building Services,Supplies and Services,Operational Materials,205,14/05/2021,2105-00041,0.00,152.00,R,A J H  Pump Supply & Repair Ltd,No
Http://opendatacommunities.org/id/metropolitan-district-council/leeds,Leeds City Council,31/05/2021,Resources and Housing,Leeds Building Services,Supplies and Services,Operational Materials,205,14/05/2021,2105-00042,0.00,37.80,R,A J H  Pump Supply & Repair Ltd,No
Http://opendatacommunities.org/id/metropolitan-district-council/leeds,Leeds City Council,31/05/2021,Resources and Housing,Leeds Building Services,Supplies and Services,Operational Materials,205,14/05/2021,2105-00043,0.00,48.85,R,A J H  Pump Supply & Repair Ltd,No
Http://opendatacommunities.org/id/metropolitan-district-council/leeds,Leeds City Council,31/05/2021,Resources and Housing,Leeds Building Services,Supplies and Services,Operational Materials,205,14/05/2021,2105-00044,0.00,31.75,R,A J H  Pump Supply & Repair Ltd,No
Http://opendatacommunities.org/id/metropolitan-district-council/leeds,Leeds City Council,31/05/2021,Resources and Housing,Leeds Building Services,Supplies and Services,Operational Materials,205,14/05/2021,2105-00045,0.00,120.15,R,A J H  Pump Supply & Repair Ltd,No
Http://opendatacommunities.org/id/metropolitan-district-council/leeds,Leeds City Council,31/05/2021,Resources and Housing,Leeds Building Services,Supplies and Services,Operational Materials,205,14/05/2021,2105-00046,0.00,295.00,R,A J H  Pump Supply & Repair Ltd,No
Http://opendatacommunities.org/id/metropolitan-district-council/leeds,Leeds City Council,31/05/2021,Resources and Housing,Leeds Building Services,Supplies and Services,Operational Materials,205,14/05/2021,2105-00047,0.00,304.08,R,A J H  Pump Supply & Repair Ltd,No
Http://opendatacommunities.org/id/metropolitan-district-council/leeds,Leeds City Council,31/05/2021,Resources and Housing,Leeds Building Services,Supplies and Services,Operational Materials,205,18/05/2021,2105-00048,0.00,139.10,R,A J H  Pump Supply & Repair Ltd,No
Http://opendatacommunities.org/id/metropolitan-district-council/leeds,Leeds City Council,31/05/2021,Resources and Housing,Leeds Building Services,Supplies and Services,Operational Materials,205,18/05/2021,2105-00049,0.00,40.09,R,A J H  Pump Supply & Repair Ltd,No
Http://opendatacommunities.org/id/metropolitan-district-council/leeds,Leeds City Council,31/05/2021,Resources and Housing,Leeds Building Services,Supplies and Services,Operational Materials,205,18/05/2021,2105-00050,0.00,28.88,R,A J H  Pump Supply & Repair Ltd,No
Http://opendatacommunities.org/id/metropolitan-district-council/leeds,Leeds City Council,31/05/2021,Resources and Housing,Leeds Building Services,Supplies and Services,Operational Materials,205,18/05/2021,2105-00051,0.00,147.50,R,A J H  Pump Supply & Repair Ltd,No
Http://opendatacommunities.org/id/metropolitan-district-council/leeds,Leeds City Council,31/05/2021,Resources and Housing,Leeds Building Services,Supplies and Services,Operational Materials,205,18/05/2021,2105-00052,0.00,68.74,R,A J H  Pump Supply & Repair Ltd,No
Http://opendatacommunities.org/id/metropolitan-district-council/leeds,Leeds City Council,31/05/2021,Resources and Housing,Leeds Building Services,Supplies and Services,Operational Materials,205,18/05/2021,2105-00053,0.00,291.47,R,A J H  Pump Supply & Repair Ltd,No
Http://opendatacommunities.org/id/metropolitan-district-council/leeds,Leeds City Council,31/05/2021,Resources and Housing,Leeds Building Services,Supplies and Services,Operational Materials,205,18/05/2021,2105-00054,0.00,261.29,R,A J H  Pump Supply & Repair Ltd,No
Http://opendatacommunities.org/id/metropolitan-district-council/leeds,Leeds City Council,31/05/2021,Resources and Housing,Leeds Building Services,Supplies and Services,Operational Materials,205,18/05/2021,2105-00055,0.00,316.35,R,A J H  Pump Supply & Repair Ltd,No
Http://opendatacommunities.org/id/metropolitan-district-council/leeds,Leeds City Council,31/05/2021,Resources and Housing,Leeds Building Services,Supplies and Services,Operational Materials,205,18/05/2021,2105-00056,0.00,76.35,R,A J H  Pump Supply & Repair Ltd,No
Http://opendatacommunities.org/id/metropolitan-district-council/leeds,Leeds City Council,31/05/2021,Resources and Housing,Leeds Building Services,Supplies and Services,Operational Materials,205,18/05/2021,2105-00057,0.00,30.92,R,A J H  Pump Supply & Repair Ltd,No
Http://opendatacommunities.org/id/metropolitan-district-council/leeds,Leeds City Council,31/05/2021,Resources and Housing,Corporate Property Management,Premises,Maintenance Of Buildings,101,20/05/2021,2105-00058,0.00,7173.75,R,A J H  Pump Supply & Repair Ltd,No
Http://opendatacommunities.org/id/metropolitan-district-council/leeds,Leeds City Council,31/05/2021,Resources and Housing,Leeds Building Services,Supplies and Services,Operational Materials,205,25/05/2021,2105-00059,0.00,259.00,R,A J H  Pump Supply & Repair Ltd,No
Http://opendatacommunities.org/id/metropolitan-district-council/leeds,Leeds City Council,31/05/2021,Resources and Housing,Leeds Building Services,Supplies and Services,Operational Materials,205,25/05/2021,2105-00060,0.00,82.90,R,A J H  Pump Supply & Repair Ltd,No
Http://opendatacommunities.org/id/metropolitan-district-council/leeds,Leeds City Council,31/05/2021,Resources and Housing,Leeds Building Services,Supplies and Services,Operational Materials,205,25/05/2021,2105-00061,0.00,209.00,R,A J H  Pump Supply & Repair Ltd,No
Http://opendatacommunities.org/id/metropolitan-district-council/leeds,Leeds City Council,31/05/2021,Resources and Housing,Leeds Building Services,Supplies and Services,Operational Materials,205,25/05/2021,2105-00062,0.00,333.17,R,A J H  Pump Supply & Repair Ltd,No
Http://opendatacommunities.org/id/metropolitan-district-council/leeds,Leeds City Council,31/05/2021,Resources and Housing,Leeds Building Services,Supplies and Services,Operational Materials,205,25/05/2021,2105-00063,0.00,189.55,R,A J H  Pump Supply & Repair Ltd,No
Http://opendatacommunities.org/id/metropolitan-district-council/leeds,Leeds City Council,31/05/2021,Resources and Housing,Leeds Building Services,Supplies and Services,Operational Materials,205,25/05/2021,2105-00064,0.00,192.35,R,A J H  Pump Supply & Repair Ltd,No
Http://opendatacommunities.org/id/metropolitan-district-council/leeds,Leeds City Council,31/05/2021,Resources and Housing,Leeds Building Services,Supplies and Services,Operational Materials,205,25/05/2021,2105-00065,0.00,118.44,R,A J H  Pump Supply & Repair Ltd,No
Http://opendatacommunities.org/id/metropolitan-district-council/leeds,Leeds City Council,31/05/2021,Resources and Housing,Leeds Building Services,Supplies and Services,Operational Materials,205,25/05/2021,2105-00066,0.00,189.95,R,A J H  Pump Supply & Repair Ltd,No
Http://opendatacommunities.org/id/metropolitan-district-council/leeds,Leeds City Council,31/05/2021,Resources and Housing,Leeds Building Services,Supplies and Services,Operational Materials,205,25/05/2021,2105-00067,0.00,147.50,R,A J H  Pump Supply & Repair Ltd,No
Http://opendatacommunities.org/id/metropolitan-district-council/leeds,Leeds City Council,31/05/2021,Resources and Housing,Leeds Building Services,Supplies and Services,Operational Materials,205,25/05/2021,2105-00068,0.00,145.50,R,A J H  Pump Supply & Repair Ltd,No
Http://opendatacommunities.org/id/metropolitan-district-council/leeds,Leeds City Council,31/05/2021,Resources and Housing,Leeds Building Services,Supplies and Services,Operational Materials,205,25/05/2021,2105-00069,0.00,53.90,R,A J H  Pump Supply & Repair Ltd,No
Http://opendatacommunities.org/id/metropolitan-district-council/leeds,Leeds City Council,31/05/2021,Resources and Housing,Leeds Building Services,Supplies and Services,Operational Materials,205,25/05/2021,2105-00070,0.00,265.50,R,A J H  Pump Supply & Repair Ltd,No
Http://opendatacommunities.org/id/metropolitan-district-council/leeds,Leeds City Council,31/05/2021,Resources and Housing,Leeds Building Services,Supplies and Services,Operational Materials,205,25/05/2021,2105-00071,0.00,201.40,R,A J H  Pump Supply & Repair Ltd,No
Http://opendatacommunities.org/id/metropolitan-district-council/leeds,Leeds City Council,31/05/2021,Resources and Housing,Leeds Building Services,Supplies and Services,Operational Materials,205,25/05/2021,2105-00072,0.00,142.50,R,A J H  Pump Supply & Repair Ltd,No
Http://opendatacommunities.org/id/metropolitan-district-council/leeds,Leeds City Council,31/05/2021,Resources and Housing,Leeds Building Services,Supplies and Services,Operational Materials,205,25/05/2021,2105-00073,0.00,34.00,R,A J H  Pump Supply & Repair Ltd,No
Http://opendatacommunities.org/id/metropolitan-district-council/leeds,Leeds City Council,31/05/2021,Resources and Housing,Leeds Building Services,Supplies and Services,Operational Materials,205,25/05/2021,2105-00074,0.00,165.00,R,A J H  Pump Supply & Repair Ltd,No
Http://opendatacommunities.org/id/metropolitan-district-council/leeds,Leeds City Council,31/05/2021,Resources and Housing,Leeds Building Services,Supplies and Services,Operational Materials,205,27/05/2021,2105-00075,0.00,212.00,R,A J H  Pump Supply & Repair Ltd,No
Http://opendatacommunities.org/id/metropolitan-district-council/leeds,Leeds City Council,31/05/2021,Resources and Housing,Leeds Building Services,Supplies and Services,Operational Materials,205,27/05/2021,2105-00076,0.00,1656.70,R,A J H  Pump Supply & Repair Ltd,No
Http://opendatacommunities.org/id/metropolitan-district-council/leeds,Leeds City Council,31/05/2021,Resources and Housing,Leeds Building Services,Supplies and Services,Operational Materials,205,28/05/2021,2105-00077,0.00,575.00,R,A J H  Pump Supply & Repair Ltd,No
Http://opendatacommunities.org/id/metropolitan-district-council/leeds,Leeds City Council,31/05/2021,Resources and Housing,Leeds Building Services,Supplies and Services,Operational Materials,205,28/05/2021,2105-00078,0.00,131.36,R,A J H  Pump Supply & Repair Ltd,No
Http://opendatacommunities.org/id/metropolitan-district-council/leeds,Leeds City Council,31/05/2021,Resources and Housing,Leeds Building Services,Supplies and Services,Operational Materials,205,28/05/2021,2105-00079,0.00,824.50,R,A J H  Pump Supply & Repair Ltd,No
Http://opendatacommunities.org/id/metropolitan-district-council/leeds,Leeds City Council,31/05/2021,Resources and Housing,Leeds Building Services,Supplies and Services,Operational Materials,205,28/05/2021,2105-00080,0.00,235.29,R,A J H  Pump Supply & Repair Ltd,No
Http://opendatacommunities.org/id/metropolitan-district-council/leeds,Leeds City Council,31/05/2021,Resources and Housing,Leeds Building Services,Supplies and Services,Operational Materials,205,28/05/2021,2105-00081,0.00,70.00,R,A J H  Pump Supply & Repair Ltd,No
Http://opendatacommunities.org/id/metropolitan-district-council/leeds,Leeds City Council,31/05/2021,Resources and Housing,Leeds Building Services,Supplies and Services,Operational Materials,205,28/05/2021,2105-00082,0.00,89.75,R,A J H  Pump Supply & Repair Ltd,No
Http://opendatacommunities.org/id/metropolitan-district-council/leeds,Leeds City Council,31/05/2021,Resources and Housing,Leeds Building Services,Supplies and Services,Operational Materials,205,28/05/2021,2105-00083,0.00,131.90,R,A J H  Pump Supply & Repair Ltd,No
Http://opendatacommunities.org/id/metropolitan-district-council/leeds,Leeds City Council,31/05/2021,Resources and Housing,Leeds Building Services,Supplies and Services,Operational Materials,205,28/05/2021,2105-00084,0.00,144.95,R,A J H  Pump Supply & Repair Ltd,No
Http://opendatacommunities.org/id/metropolitan-district-council/leeds,Leeds City Council,31/05/2021,Resources and Housing,Leeds Building Services,Supplies and Services,Operational Materials,205,28/05/2021,2105-00085,0.00,19.70,R,A J H  Pump Supply & Repair Ltd,No
Http://opendatacommunities.org/id/metropolitan-district-council/leeds,Leeds City Council,31/05/2021,Resources and Housing,Leeds Building Services,Supplies and Services,Operational Materials,205,28/05/2021,2105-00086,0.00,305.93,R,A J H  Pump Supply & Repair Ltd,No
Http://opendatacommunities.org/id/metropolitan-district-council/leeds,Leeds City Council,31/05/2021,Resources and Housing,Leeds Building Services,Supplies and Services,Operational Materials,205,28/05/2021,2105-00087,0.00,52.87,R,A J H  Pump Supply & Repair Ltd,No
Http://opendatacommunities.org/id/metropolitan-district-council/leeds,Leeds City Council,31/05/2021,Resources and Housing,Leeds Building Services,Supplies and Services,Operational Materials,205,28/05/2021,2105-00088,0.00,111.45,R,A J H  Pump Supply & Repair Ltd,No
Http://opendatacommunities.org/id/metropolitan-district-council/leeds,Leeds City Council,31/05/2021,Resources and Housing,Leeds Building Services,Supplies and Services,Operational Materials,205,28/05/2021,2105-00089,0.00,71.40,R,A J H  Pump Supply & Repair Ltd,No
Http://opendatacommunities.org/id/metropolitan-district-council/leeds,Leeds City Council,31/05/2021,City Development,Economic Development,Supplies and Services,Grant Related Expenditure,290,05/05/2021,2105-00090,0.00,500.00,R,A K Thompson,No
Http://opendatacommunities.org/id/metropolitan-district-council/leeds,Leeds City Council,31/05/2021,Children and Families,Social Care,Agency Payments,Services Rendered By Other Organisations,511,05/05/2021,2105-00091,0.00,209.04,R,REDACTED PERSONAL DATA,No
Http://opendatacommunities.org/id/metropolitan-district-council/leeds,Leeds City Council,31/05/2021,Children and Families,Social Care,Agency Payments,Services Rendered By Other Organisations,511,07/05/2021,2105-00092,0.00,2609.10,R,REDACTED PERSONAL DATA,No
Http://opendatacommunities.org/id/metropolitan-district-council/leeds,Leeds City Council,31/05/2021,City Development,Economic Development,Supplies and Services,Grant Related Expenditure,290,04/05/2021,2105-00093,0.00,500.00,R,REDACTED PERSONAL DATA,No
Http://opendatacommunities.org/id/metropolitan-district-council/leeds,Leeds City Council,31/05/2021,Communities and Environment,Customer Access,Supplies and Services,Bought In Professional Services,277,06/05/2021,2105-00094,0.00,18.00,R,A MOHAMMED,No
Http://opendatacommunities.org/id/metropolitan-district-council/leeds,Leeds City Council,31/05/2021,Communities and Environment,Customer Access,Supplies and Services,Bought In Professional Services,277,06/05/2021,2105-00095,0.00,18.00,R,A MOHAMMED,No
Http://opendatacommunities.org/id/metropolitan-district-council/leeds,Leeds City Council,31/05/2021,Communities and Environment,Customer Access,Supplies and Services,Bought In Professional Services,277,06/05/2021,2105-00096,0.00,18.00,R,A MOHAMMED,No
Http://opendatacommunities.org/id/metropolitan-district-council/leeds,Leeds City Council,31/05/2021,Communities and Environment,Customer Access,Supplies and Services,Bought In Professional Services,277,06/05/2021,2105-00097,0.00,18.00,R,A MOHAMMED,No
Http://opendatacommunities.org/id/metropolitan-district-council/leeds,Leeds City Council,31/05/2021,Communities and Environment,Customer Access,Supplies and Services,Bought In Professional Services,277,06/05/2021,2105-00098,0.00,13.50,R,A MOHAMMED,No
Http://opendatacommunities.org/id/metropolitan-district-council/leeds,Leeds City Council,31/05/2021,Communities and Environment,Customer Access,Supplies and Services,Bought In Professional Services,277,06/05/2021,2105-00099,0.00,18.00,R,A MOHAMMED,No
Http://opendatacommunities.org/id/metropolitan-district-council/leeds,Leeds City Council,31/05/2021,Communities and Environment,Customer Access,Supplies and Services,Bought In Professional Services,277,12/05/2021,2105-00100,0.00,18.00,R,A MOHAMMED,No
Http://opendatacommunities.org/id/metropolitan-district-council/leeds,Leeds City Council,31/05/2021,Communities and Environment,Customer Access,Supplies and Services,Bought In Professional Services,277,12/05/2021,2105-00101,0.00,18.00,R,A MOHAMMED,No
Http://opendatacommunities.org/id/metropolitan-district-council/leeds,Leeds City Council,31/05/2021,Communities and Environment,Customer Access,Supplies and Services,Bought In Professional Services,277,12/05/2021,2105-00102,0.00,9.00,R,A MOHAMMED,No
Http://opendatacommunities.org/id/metropolitan-district-council/leeds,Leeds City Council,31/05/2021,Communities and Environment,Customer Access,Supplies and Services,Bought In Professional Services,277,19/05/2021,2105-00103,0.00,13.50,R,A MOHAMMED,No
Http://opendatacommunities.org/id/metropolitan-district-council/leeds,Leeds City Council,31/05/2021,Communities and Environment,Customer Access,Supplies and Services,Bought In Professional Services,277,19/05/2021,2105-00104,0.00,18.00,R,A MOHAMMED,No
Http://opendatacommunities.org/id/metropolitan-district-council/leeds,Leeds City Council,31/05/2021,Communities and Environment,Customer Access,Supplies and Services,Bought In Professional Services,277,19/05/2021,2105-00105,0.00,27.00,R,A MOHAMMED,No
Http://opendatacommunities.org/id/metropolitan-district-council/leeds,Leeds City Council,31/05/2021,Communities and Environment,Customer Access,Supplies and Services,Bought In Professional Services,277,19/05/2021,2105-00106,0.00,27.00,R,A MOHAMMED,No
Http://opendatacommunities.org/id/metropolitan-district-council/leeds,Leeds City Council,31/05/2021,Communities and Environment,Customer Access,Supplies and Services,Bought In Professional Services,277,19/05/2021,2105-00107,0.00,18.00,R,A MOHAMMED,No
Http://opendatacommunities.org/id/metropolitan-district-council/leeds,Leeds City Council,31/05/2021,Communities and Environment,Customer Access,Supplies and Services,Bought In Professional Services,277,19/05/2021,2105-00108,0.00,18.00,R,A MOHAMMED,No
Http://opendatacommunities.org/id/metropolitan-district-council/leeds,Leeds City Council,31/05/2021,Communities and Environment,Customer Access,Supplies and Services,Bought In Professional Services,277,26/05/2021,2105-00109,0.00,18.00,R,A MOHAMMED,No
Http://opendatacommunities.org/id/metropolitan-district-council/leeds,Leeds City Council,31/05/2021,Communities and Environment,Customer Access,Supplies and Services,Bought In Professional Services,277,26/05/2021,2105-00110,0.00,27.00,R,A MOHAMMED,No
Http://opendatacommunities.org/id/metropolitan-district-council/leeds,Leeds City Council,31/05/2021,Communities and Environment,Customer Access,Supplies and Services,Bought In Professional Services,277,26/05/2021,2105-00111,0.00,9.00,R,A MOHAMMED,No
Http://opendatacommunities.org/id/metropolitan-district-council/leeds,Leeds City Council,31/05/2021,Communities and Environment,Customer Access,Supplies and Services,Bought In Professional Services,277,26/05/2021,2105-00112,0.00,9.00,R,A MOHAMMED,No
Http://opendatacommunities.org/id/metropolitan-district-council/leeds,Leeds City Council,31/05/2021,Communities and Environment,Customer Access,Supplies and Services,Bought In Professional Services,277,26/05/2021,2105-00113,0.00,18.00,R,A MOHAMMED,No
Http://opendatacommunities.org/id/metropolitan-district-council/leeds,Leeds City Council,31/05/2021,Communities and Environment,Customer Access,Supplies and Services,Bought In Professional Services,277,26/05/2021,2105-00114,0.00,18.00,R,A MOHAMMED,No
Http://opendatacommunities.org/id/metropolitan-district-council/leeds,Leeds City Council,31/05/2021,Communities and Environment,Customer Access,Supplies and Services,Bought In Professional Services,277,26/05/2021,2105-00115,0.00,22.50,R,A MOHAMMED,No
Http://opendatacommunities.org/id/metropolitan-district-council/leeds,Leeds City Council,31/05/2021,Communities and Environment,Customer Access,Supplies and Services,Bought In Professional Services,277,26/05/2021,2105-00116,0.00,22.50,R,A MOHAMMED,No
Http://opendatacommunities.org/id/metropolitan-district-council/leeds,Leeds City Council,31/05/2021,Children and Families,Social Care,Agency Payments,Services Rendered By Other Organisations,511,05/05/2021,2105-00117,0.00,1254.24,R,REDACTED PERSONAL DATA,No
Http://opendatacommunities.org/id/metropolitan-district-council/leeds,Leeds City Council,31/05/2021,Children and Families,Social Care,Agency Payments,Services Rendered By Other Organisations,511,07/05/2021,2105-00118,0.00,1913.34,R,REDACTED PERSONAL DATA,No
Http://opendatacommunities.org/id/metropolitan-district-council/leeds,Leeds City Council,31/05/2021,Communities and Environment,Customer Access,Supplies and Services,Bought In Professional Services,277,06/05/2021,2105-00119,0.00,27.00,R,A NAMAKI,No
Http://opendatacommunities.org/id/metropolitan-district-council/leeds,Leeds City Council,31/05/2021,Communities and Environment,Customer Access,Supplies and Services,Bought In Professional Services,277,19/05/2021,2105-00120,0.00,18.00,R,A NAMAKI,No
Http://opendatacommunities.org/id/metropolitan-district-council/leeds,Leeds City Council,31/05/2021,Communities and Environment,Customer Access,Supplies and Services,Bought In Professional Services,277,26/05/2021,2105-00121,0.00,18.00,R,A NAMAKI,No
Http://opendatacommunities.org/id/metropolitan-district-council/leeds,Leeds City Council,31/05/2021,Communities and Environment,Customer Access,Supplies and Services,Bought In Professional Services,277,26/05/2021,2105-00122,0.00,9.00,R,A NAMAKI,No
Http://opendatacommunities.org/id/metropolitan-district-council/leeds,Leeds City Council,31/05/2021,Children and Families,Social Care,Agency Payments,Services Rendered By Other Organisations,511,07/05/2021,2105-00123,0.00,173.94,R,REDACTED PERSONAL DATA,No
Http://opendatacommunities.org/id/metropolitan-district-council/leeds,Leeds City Council,31/05/2021,City Development,Libraries Arts & Heritage,External Income,Admissions Booking Fees & Ticket Sales,933,14/05/2021,2105-00124,0.00,280.50,R,REDACTED PERSONAL DATA,No
Http://opendatacommunities.org/id/metropolitan-district-council/leeds,Leeds City Council,31/05/2021,Children and Families,Social Care,Internal Recharges,Legal Disbursements,411,07/05/2021,2105-00125,0.00,370.00,R,A R Markos,No
Http://opendatacommunities.org/id/metropolitan-district-council/leeds,Leeds City Council,31/05/2021,Children and Families,Social Care,Internal Recharges,Legal Disbursements,411,28/05/2021,2105-00126,0.00,832.50,R,A R Markos,No
Http://opendatacommunities.org/id/metropolitan-district-council/leeds,Leeds City Council,31/05/2021,Communities and Environment,Benefits Welfare and Poverty,Supplies and Services,Grant Related Expenditure,290,12/05/2021,2105-00127,0.00,500.00,R,REDACTED PERSONAL DATA,No
Http://opendatacommunities.org/id/metropolitan-district-council/leeds,Leeds City Council,31/05/2021,Children and Families,Social Care,Agency Payments,Services Rendered By Other Organisations,511,07/05/2021,2105-00128,0.00,521.82,R,REDACTED PERSONAL DATA,No
Http://opendatacommunities.org/id/metropolitan-district-council/leeds,Leeds City Council,31/05/2021,Children and Families,Social Care,Agency Payments,Independent Fostering Agencies,509,07/05/2021,2105-00129,0.00,1656.00,R,A Taxis,No
Http://opendatacommunities.org/id/metropolitan-district-council/leeds,Leeds City Council,31/05/2021,City Development,Economic Development,Supplies and Services,Grant Related Expenditure,290,26/05/2021,2105-00130,0.00,500.00,R,A Tidy Mind (Franchising) Limited,No
Http://opendatacommunities.org/id/metropolitan-district-council/leeds,Leeds City Council,31/05/2021,City Development,Economic Development,Supplies and Services,Grant Related Expenditure,290,28/05/2021,2105-00131,0.00,500.00,R,A Walk In The Bark,No
Http://opendatacommunities.org/id/metropolitan-district-council/leeds,Leeds City Council,31/05/2021,Children and Families,Social Care,Agency Payments,Services Rendered By Other Organisations,511,05/05/2021,2105-00132,0.00,209.04,R,REDACTED PERSONAL DATA,No
Http://opendatacommunities.org/id/metropolitan-district-council/leeds,Leeds City Council,31/05/2021,Children and Families,Social Care,Agency Payments,Services Rendered By Other Organisations,511,07/05/2021,2105-00133,0.00,347.88,R,REDACTED PERSONAL DATA,No
Http://opendatacommunities.org/id/metropolitan-district-council/leeds,Leeds City Council,31/05/2021,Children and Families,Social Care,Agency Payments,General External Residential Placements,507,07/05/2021,2105-00134,0.00,29142.90,R,A Wilderness Way Ltd,No
Http://opendatacommunities.org/id/metropolitan-district-council/leeds,Leeds City Council,31/05/2021,Children and Families,Social Care,Agency Payments,General External Residential Placements,507,10/05/2021,2105-00135,0.00,1540.00,R,A Wilderness Way Ltd,No
Http://opendatacommunities.org/id/metropolitan-district-council/leeds,Leeds City Council,31/05/2021,Children and Families,Social Care,Agency Payments,Independent Fostering Agencies,509,10/05/2021,2105-00136,0.00,45000.00,R,A Wilderness Way Ltd,No
Http://opendatacommunities.org/id/metropolitan-district-council/leeds,Leeds City Council,31/05/2021,Children and Families,Social Care,Agency Payments,General External Residential Placements,507,24/05/2021,2105-00137,0.00,614.70,R,A Wilderness Way Ltd,No
Http://opendatacommunities.org/id/metropolitan-district-council/leeds,Leeds City Council,31/05/2021,Children and Families,Social Care,Appropriations,Leaving Care Grants,635,21/04/2021,2105-00138,0.00,177.97,R,A&h Bros Ltd,Yes
Http://opendatacommunities.org/id/metropolitan-district-council/leeds,Leeds City Council,31/05/2021,Resources and Housing,Leeds Building Services,Supplies and Services,Operational Materials,205,18/05/2021,2105-00139,0.00,75.00,R,A1 STAIR LIFT SERVICES,No
Http://opendatacommunities.org/id/metropolitan-district-council/leeds,Leeds City Council,31/05/2021,Communities and Environment,Parks and Countryside,Supplies and Services,Resaleable Materials,204,14/04/2021,2105-00140,0.00,334.50,R,Aagrah Foods,Yes
Http://opendatacommunities.org/id/metropolitan-district-council/leeds,Leeds City Council,31/05/2021,Children and Families,Social Care,Supplies and Services,Operational Materials,205,28/04/2021,2105-00141,0.00,105.41,R,Aardvark Archery,Yes
Http://opendatacommunities.org/id/metropolitan-district-council/leeds,Leeds City Council,31/05/2021,Adults and Health,Services For Older People - 65 And Over,Agency Payments,Residential Care Dementia,571,26/05/2021,2105-00142,0.00,1245.20,R,Aaron Court Care Home,No
Http://opendatacommunities.org/id/metropolitan-district-council/leeds,Leeds City Council,31/05/2021,Children and Families,Social Care,Agency Payments,Section 17,551,20/05/2021,2105-00143,0.00,79.40,R,REDACTED PERSONAL DATA,No
Http://opendatacommunities.org/id/metropolitan-district-council/leeds,Leeds City Council,31/05/2021,Children and Families,Social Care,Appropriations,Leaving Care Allowances,634,21/05/2021,2105-00144,0.00,50.00,R,REDACTED PERSONAL DATA,No
Http://opendatacommunities.org/id/metropolitan-district-council/leeds,Leeds City Council as Accountable Body,31/05/2021,Social Services Pooled Budgets,Leeds Community Equip Store Pooled Budgt,Supplies and Services,Other Equipment,203,07/05/2021,2105-00145,0.00,1444.00,R,AAT (GB) LTD,No
Http://opendatacommunities.org/id/metropolitan-district-council/leeds,Leeds City Council as Accountable Body,31/05/2021,Social Services Pooled Budgets,Leeds Community Equip Store Pooled Budgt,Supplies and Services,Other Equipment,203,07/05/2021,2105-00146,0.00,472.00,R,AAT (GB) LTD,No
Http://opendatacommunities.org/id/metropolitan-district-council/leeds,Leeds City Council as Accountable Body,31/05/2021,Social Services Pooled Budgets,Leeds Community Equip Store Pooled Budgt,Supplies and Services,Other Equipment,203,17/05/2021,2105-00147,0.00,560.00,R,AAT (GB) LTD,No
Http://opendatacommunities.org/id/metropolitan-district-council/leeds,Leeds City Council,31/05/2021,City Development,Economic Development,Supplies and Services,Grant Related Expenditure,290,19/05/2021,2105-00148,0.00,500.00,R,AB Maintenance,No
Http://opendatacommunities.org/id/metropolitan-district-council/leeds,Leeds City Council,31/05/2021,Communities and Environment,Customer Access,Supplies and Services,Bought In Professional Services,277,06/05/2021,2105-00149,0.00,18.00,R,Abadit Kiros,No
Http://opendatacommunities.org/id/metropolitan-district-council/leeds,Leeds City Council,31/05/2021,Communities and Environment,Customer Access,Supplies and Services,Bought In Professional Services,277,12/05/2021,2105-00150,0.00,21.00,R,Abadit Kiros,No
Http://opendatacommunities.org/id/metropolitan-district-council/leeds,Leeds City Council,31/05/2021,Communities and Environment,Customer Access,Supplies and Services,Bought In Professional Services,277,12/05/2021,2105-00151,0.00,9.00,R,Abadit Kiros,No
Http://opendatacommunities.org/id/metropolitan-district-council/leeds,Leeds City Council,31/05/2021,Communities and Environment,Customer Access,Supplies and Services,Bought In Professional Services,277,12/05/2021,2105-00152,0.00,18.00,R,Abadit Kiros,No
Http://opendatacommunities.org/id/metropolitan-district-council/leeds,Leeds City Council,31/05/2021,Communities and Environment,Customer Access,Supplies and Services,Bought In Professional Services,277,12/05/2021,2105-00153,0.00,18.00,R,Abadit Kiros,No
Http://opendatacommunities.org/id/metropolitan-district-council/leeds,Leeds City Council,31/05/2021,Communities and Environment,Customer Access,Supplies and Services,Bought In Professional Services,277,12/05/2021,2105-00154,0.00,36.00,R,Abadit Kiros,No
Http://opendatacommunities.org/id/metropolitan-district-council/leeds,Leeds City Council,31/05/2021,Communities and Environment,Customer Access,Supplies and Services,Bought In Professional Services,277,26/05/2021,2105-00155,0.00,18.00,R,Abadit Kiros,No
Http://opendatacommunities.org/id/metropolitan-district-council/leeds,Leeds City Council,31/05/2021,Communities and Environment,Customer Access,Supplies and Services,Bought In Professional Services,277,26/05/2021,2105-00156,0.00,18.00,R,Abadit Kiros,No
Http://opendatacommunities.org/id/metropolitan-district-council/leeds,Leeds City Council,31/05/2021,Communities and Environment,Customer Access,Supplies and Services,Bought In Professional Services,277,26/05/2021,2105-00157,0.00,27.00,R,Abadit Kiros,No
Http://opendatacommunities.org/id/metropolitan-district-council/leeds,Leeds City Council,31/05/2021,Communities and Environment,Customer Access,Supplies and Services,Bought In Professional Services,277,26/05/2021,2105-00158,0.00,18.00,R,Abadit Kiros,No
Http://opendatacommunities.org/id/metropolitan-district-council/leeds,Leeds City Council,31/05/2021,Communities and Environment,Customer Access,Supplies and Services,Bought In Professional Services,277,26/05/2021,2105-00159,0.00,18.00,R,Abadit Kiros,No
Http://opendatacommunities.org/id/metropolitan-district-council/leeds,Leeds City Council,31/05/2021,Adults and Health,Public Health,Agency Payments,Public Health Commissioned Services,526,21/05/2021,2105-00160,0.00,1539.60,R,Abbey Grange Medical Practice,No
Http://opendatacommunities.org/id/metropolitan-district-council/leeds,Leeds City Council,31/05/2021,Children and Families,Social Care,Agency Payments,Services Rendered By Other Organisations,511,05/05/2021,2105-00161,0.00,90.59,R,REDACTED PERSONAL DATA,No
Http://opendatacommunities.org/id/metropolitan-district-council/leeds,Leeds City Council,31/05/2021,Children and Families,Social Care,Agency Payments,Services Rendered By Other Organisations,511,07/05/2021,2105-00162,0.00,217.43,R,REDACTED PERSONAL DATA,No
Http://opendatacommunities.org/id/metropolitan-district-council/leeds,Leeds City Council,31/05/2021,Children and Families,Social Care,Agency Payments,Services Rendered By Other Organisations,511,05/05/2021,2105-00163,0.00,2299.44,R,Abc Daycare And Ozone Out Of School,No
Http://opendatacommunities.org/id/metropolitan-district-council/leeds,Leeds City Council,31/05/2021,Children and Families,Social Care,Agency Payments,Services Rendered By Other Organisations,511,07/05/2021,2105-00164,0.00,4807.32,R,Abc Daycare And Ozone Out Of School,No
Http://opendatacommunities.org/id/metropolitan-district-council/leeds,Leeds City Council,31/05/2021,Children and Families,Social Care,Agency Payments,Services Rendered By Voluntary Sector,505,21/05/2021,2105-00165,0.00,6226.32,R,Abc Daycare And Ozone Out Of School,No
Http://opendatacommunities.org/id/metropolitan-district-council/leeds,Leeds City Council,31/05/2021,Children and Families,Social Care,Agency Payments,Services Rendered By Other Organisations,511,05/05/2021,2105-00166,0.00,2508.48,R,ABC NURSERY AT LUFC,No
Http://opendatacommunities.org/id/metropolitan-district-council/leeds,Leeds City Council,31/05/2021,Children and Families,Social Care,Agency Payments,Services Rendered By Other Organisations,511,07/05/2021,2105-00167,0.00,6957.60,R,ABC NURSERY AT LUFC,No
Http://opendatacommunities.org/id/metropolitan-district-council/leeds,Leeds City Council,31/05/2021,Children and Families,Social Care,Agency Payments,Services Rendered By Voluntary Sector,505,21/05/2021,2105-00168,0.00,2223.68,R,ABC NURSERY AT LUFC,No
Http://opendatacommunities.org/id/metropolitan-district-council/leeds,Leeds City Council,31/05/2021,Children and Families,Social Care,Agency Payments,Services Rendered By Other Organisations,511,05/05/2021,2105-00169,0.00,1672.32,R,Abc@D'S Childcare,No
Http://opendatacommunities.org/id/metropolitan-district-council/leeds,Leeds City Council,31/05/2021,Children and Families,Social Care,Agency Payments,Services Rendered By Other Organisations,511,07/05/2021,2105-00170,0.00,6261.84,R,Abc@D'S Childcare,No
Http://opendatacommunities.org/id/metropolitan-district-council/leeds,Leeds City Council,31/05/2021,Communities and Environment,Benefits Welfare and Poverty,Supplies and Services,Grant Related Expenditure,298,07/05/2021,2105-00171,0.00,500.00,R,REDACTED PERSONAL DATA,No
Http://opendatacommunities.org/id/metropolitan-district-council/leeds,Leeds City Council,31/05/2021,Resources and Housing,Sustainable Energy & Climate Change,Capital,OTHER COSTS,7,13/05/2021,2105-00172,0.00,2100.00,C,REDACTED COMMERCIAL CONFIDENTIALITY,No
Http://opendatacommunities.org/id/metropolitan-district-council/leeds,Leeds City Council,31/05/2021,City Development,Economic Development,Supplies and Services,Grant Related Expenditure,290,26/05/2021,2105-00173,0.00,500.00,R,REDACTED PERSONAL DATA,No
Http://opendatacommunities.org/id/metropolitan-district-council/leeds,Leeds City Council,31/05/2021,Resources and Housing,Sustainable Energy & Climate Change,Capital,OTHER COSTS,7,21/05/2021,2105-00174,0.00,2100.00,C,REDACTED COMMERCIAL CONFIDENTIALITY,No
Http://opendatacommunities.org/id/metropolitan-district-council/leeds,Leeds City Council,31/05/2021,Communities and Environment,Benefits Welfare and Poverty,Supplies and Services,Grant Related Expenditure,298,25/05/2021,2105-00175,0.00,500.00,R,REDACTED PERSONAL DATA,No
Http://opendatacommunities.org/id/metropolitan-district-council/leeds,Leeds City Council,31/05/2021,Communities and Environment,Benefits Welfare and Poverty,Supplies and Services,Grant Related Expenditure,290,24/05/2021,2105-00176,0.00,500.00,R,REDACTED PERSONAL DATA,No
Http://opendatacommunities.org/id/metropolitan-district-council/leeds,Leeds City Council,31/05/2021,Communities and Environment,Customer Access,Supplies and Services,Bought In Professional Services,277,06/05/2021,2105-00177,0.00,18.00,R,Abdulahad Denha,No
Http://opendatacommunities.org/id/metropolitan-district-council/leeds,Leeds City Council,31/05/2021,Communities and Environment,Customer Access,Supplies and Services,Bought In Professional Services,277,06/05/2021,2105-00178,0.00,9.00,R,Abdulahad Denha,No
Http://opendatacommunities.org/id/metropolitan-district-council/leeds,Leeds City Council,31/05/2021,Communities and Environment,Customer Access,Supplies and Services,Bought In Professional Services,277,19/05/2021,2105-00179,0.00,27.00,R,Abdulahad Denha,No
Http://opendatacommunities.org/id/metropolitan-district-council/leeds,Leeds City Council,31/05/2021,Communities and Environment,Customer Access,Supplies and Services,Bought In Professional Services,277,06/05/2021,2105-00180,0.00,27.00,R,Abdulrahim Dastyar,No
Http://opendatacommunities.org/id/metropolitan-district-council/leeds,Leeds City Council,31/05/2021,Communities and Environment,Customer Access,Supplies and Services,Bought In Professional Services,277,06/05/2021,2105-00181,0.00,18.00,R,Abdulrahim Dastyar,No
Http://opendatacommunities.org/id/metropolitan-district-council/leeds,Leeds City Council,31/05/2021,Communities and Environment,Customer Access,Supplies and Services,Bought In Professional Services,277,06/05/2021,2105-00182,0.00,27.00,R,Abdulrahim Dastyar,No
Http://opendatacommunities.org/id/metropolitan-district-council/leeds,Leeds City Council,31/05/2021,Communities and Environment,Customer Access,Supplies and Services,Bought In Professional Services,277,12/05/2021,2105-00183,0.00,18.00,R,Abdulrahim Dastyar,No
Http://opendatacommunities.org/id/metropolitan-district-council/leeds,Leeds City Council,31/05/2021,Communities and Environment,Customer Access,Supplies and Services,Bought In Professional Services,277,12/05/2021,2105-00184,0.00,22.50,R,Abdulrahim Dastyar,No
Http://opendatacommunities.org/id/metropolitan-district-council/leeds,Leeds City Council,31/05/2021,Communities and Environment,Customer Access,Supplies and Services,Bought In Professional Services,277,12/05/2021,2105-00185,0.00,13.50,R,Abdulrahim Dastyar,No
Http://opendatacommunities.org/id/metropolitan-district-council/leeds,Leeds City Council,31/05/2021,Communities and Environment,Customer Access,Supplies and Services,Bought In Professional Services,277,19/05/2021,2105-00186,0.00,18.00,R,Abdulrahim Dastyar,No
Http://opendatacommunities.org/id/metropolitan-district-council/leeds,Leeds City Council,31/05/2021,Communities and Environment,Customer Access,Supplies and Services,Bought In Professional Services,277,26/05/2021,2105-00187,0.00,18.00,R,Abdulrahim Dastyar,No
Http://opendatacommunities.org/id/metropolitan-district-council/leeds,Leeds City Council,31/05/2021,City Development,Economic Development,Supplies and Services,Grant Related Expenditure,290,17/05/2021,2105-00188,0.00,500.00,R,REDACTED PERSONAL DATA,No
Http://opendatacommunities.org/id/metropolitan-district-council/leeds,Leeds City Council,31/05/2021,Adults and Health,Services For Older People - 65 And Over,Agency Payments,Nursing Home,570,26/05/2021,2105-00189,0.00,22265.66,R,Aberford Hall,No
Http://opendatacommunities.org/id/metropolitan-district-council/leeds,Leeds City Council,31/05/2021,Adults and Health,Services For Older People - 65 And Over,Agency Payments,Nursing Care Dementia,574,26/05/2021,2105-00190,0.00,-266.94,R,Aberford Hall,No
Http://opendatacommunities.org/id/metropolitan-district-council/leeds,Leeds City Council,31/05/2021,Communities and Environment,Elections Licensing and Registration,Premises,Rents,141,18/05/2021,2105-00191,0.00,400.00,R,Aberford Village Hall,No
Http://opendatacommunities.org/id/metropolitan-district-council/leeds,Leeds City Council,31/05/2021,Communities and Environment,Customer Access,Supplies and Services,Bought In Professional Services,277,19/05/2021,2105-00192,0.00,10.50,R,Abida Begum,No
Http://opendatacommunities.org/id/metropolitan-district-council/leeds,Leeds City Council,31/05/2021,Communities and Environment,Benefits Welfare and Poverty,Supplies and Services,Grant Related Expenditure,298,17/05/2021,2105-00193,0.00,500.00,R,REDACTED PERSONAL DATA,No
Http://opendatacommunities.org/id/metropolitan-district-council/leeds,Leeds City Council,31/05/2021,Strategic Landlord,Housing Management,Internal Recharges,Legal Disbursements,411,14/05/2021,2105-00194,0.00,475.00,R,Abigail Cheetham,No
Http://opendatacommunities.org/id/metropolitan-district-council/leeds,Leeds City Council,31/05/2021,Resources and Housing,Strategic Housing Partnership & Support,Internal Recharges,Legal Disbursements,411,21/05/2021,2105-00195,0.00,375.00,R,Abigail Cheetham,No
Http://opendatacommunities.org/id/metropolitan-district-council/leeds,Leeds City Council,31/05/2021,Children and Families,Social Care,Agency Payments, Direct Work,549,17/05/2021,2105-00196,0.00,53.42,R,REDACTED PERSONAL DATA,No
Http://opendatacommunities.org/id/metropolitan-district-council/leeds,Leeds City Council,31/05/2021,Communities and Environment,Benefits Welfare and Poverty,Supplies and Services,Grant Related Expenditure,298,14/05/2021,2105-00197,0.00,500.00,R,REDACTED PERSONAL DATA,No
Http://opendatacommunities.org/id/metropolitan-district-council/leeds,Leeds City Council,31/05/2021,Resources and Housing,Technology,Supplies and Services,Computer Software & Equipment,214,21/05/2021,2105-00198,0.00,1800.00,R,ABM Critical Solutions Ltd,No
Http://opendatacommunities.org/id/metropolitan-district-council/leeds,Leeds City Council,31/05/2021,City Development,Economic Development,Supplies and Services,Grant Related Expenditure,290,11/05/2021,2105-00199,0.00,15000.00,R,Abraham Moon & Sons,No
Http://opendatacommunities.org/id/metropolitan-district-council/leeds,Leeds City Council,31/05/2021,City Development,Economic Development,Supplies and Services,Grant Related Expenditure,290,12/05/2021,2105-00200,0.00,500.00,R,REDACTED PERSONAL DATA,No
Http://opendatacommunities.org/id/metropolitan-district-council/leeds,Leeds City Council,31/05/2021,Communities and Environment,Benefits Welfare and Poverty,Supplies and Services,Grant Related Expenditure,298,11/05/2021,2105-00201,0.00,500.00,R,REDACTED PERSONAL DATA,No
Http://opendatacommunities.org/id/metropolitan-district-council/leeds,Leeds City Council,31/05/2021,City Development,Economic Development,Supplies and Services,Grant Related Expenditure,290,14/05/2021,2105-00202,0.00,500.00,R,REDACTED PERSONAL DATA,No
Http://opendatacommunities.org/id/metropolitan-district-council/leeds,Leeds City Council,31/05/2021,Adults and Health,Services For Adults Under 65 Mental/Dis,Agency Payments,Fees - Level 4,520,06/05/2021,2105-00203,0.00,175.00,R,Abubaker Denja Mohammed,No
Http://opendatacommunities.org/id/metropolitan-district-council/leeds,Leeds City Council,31/05/2021,Adults and Health,Services For Adults Under 65 Mental/Dis,Agency Payments,Fees - Level 4,520,06/05/2021,2105-00204,0.00,175.00,R,Abubaker Denja Mohammed,No
Http://opendatacommunities.org/id/metropolitan-district-council/leeds,Leeds City Council,31/05/2021,Adults and Health,Services For Adults Under 65 Mental/Dis,Agency Payments,Fees - Level 4,520,14/05/2021,2105-00205,0.00,175.00,R,Abubaker Denja Mohammed,No
Http://opendatacommunities.org/id/metropolitan-district-council/leeds,Leeds City Council,31/05/2021,Adults and Health,Services For Adults Under 65 Mental/Dis,Agency Payments,Fees - Level 4,520,28/05/2021,2105-00206,0.00,175.00,R,Abubaker Denja Mohammed,No
Http://opendatacommunities.org/id/metropolitan-district-council/leeds,Leeds City Council,31/05/2021,Adults and Health,Services For Adults Under 65 Mental/Dis,Agency Payments,Fees - Level 4,520,28/05/2021,2105-00207,0.00,175.00,R,Abubaker Denja Mohammed,No
Http://opendatacommunities.org/id/metropolitan-district-council/leeds,Leeds City Council,31/05/2021,Adults and Health,Services For Adults Under 65 Mental/Dis,Agency Payments,Fees - Level 4,520,28/05/2021,2105-00208,0.00,175.00,R,Abubaker Denja Mohammed,No
Http://opendatacommunities.org/id/metropolitan-district-council/leeds,Leeds City Council,31/05/2021,Adults and Health,Services For Adults Under 65 Mental/Dis,Agency Payments,Fees - Level 4,520,28/05/2021,2105-00209,0.00,175.00,R,Abubaker Denja Mohammed,No
Http://opendatacommunities.org/id/metropolitan-district-council/leeds,Leeds City Council,31/05/2021,Adults and Health,Services For Adults Under 65 Mental/Dis,Agency Payments,Fees - Level 4,520,28/05/2021,2105-00210,0.00,175.00,R,Abubaker Denja Mohammed,No
Http://opendatacommunities.org/id/metropolitan-district-council/leeds,Leeds City Council,31/05/2021,Adults and Health,Services For Older People - 65 And Over,Agency Payments,Home Care,568,12/05/2021,2105-00211,0.00,1561.56,R,Academy Care Ltd,No
Http://opendatacommunities.org/id/metropolitan-district-council/leeds,Leeds City Council,31/05/2021,Adults and Health,Services For Older People - 65 And Over,Agency Payments,Home Care,568,12/05/2021,2105-00212,0.00,1171.17,R,Academy Care Ltd,No
Http://opendatacommunities.org/id/metropolitan-district-council/leeds,Leeds City Council,31/05/2021,Adults and Health,Services For Older People - 65 And Over,Agency Payments,Home Care,568,26/05/2021,2105-00213,0.00,5270.22,R,Academy Care Ltd,No
Http://opendatacommunities.org/id/metropolitan-district-council/leeds,Leeds City Council,31/05/2021,Adults and Health,Services For Older People - 65 And Over,Agency Payments,HCAIT Other,577,26/05/2021,2105-00214,0.00,920.25,R,Academy Care Ltd,No
Http://opendatacommunities.org/id/metropolitan-district-council/leeds,Leeds City Council,31/05/2021,Resources and Housing,Strategic Housing Partnership & Support,Supplies and Services,Other Hired And Contracted Services,265,11/05/2021,2105-00215,0.00,290.74,R,Accent Foundation Ltd,No
Http://opendatacommunities.org/id/metropolitan-district-council/leeds,Leeds City Council,31/05/2021,City Development,Economic Development,Supplies and Services,Grant Related Expenditure,290,26/05/2021,2105-00216,0.00,500.00,R,Access Agents Ltd,No
Http://opendatacommunities.org/id/metropolitan-district-council/leeds,Leeds City Council,31/05/2021,Insurance,Insurance,Supplies and Services,Insurance Claims,248,26/05/2021,2105-00217,0.00,1575.79,R,Access Hire,No
Http://opendatacommunities.org/id/metropolitan-district-council/leeds,Leeds City Council,31/05/2021,Insurance,Insurance,Supplies and Services,Insurance Claims,248,13/05/2021,2105-00218,0.00,5100.00,R,Access Hire & Finance Ltd,No
Http://opendatacommunities.org/id/metropolitan-district-council/leeds,Leeds City Council,31/05/2021,Resources and Housing,Leeds Building Services,Supplies and Services,Operational Materials,205,05/05/2021,2105-00219,0.00,38.38,R,ACCESS LOCKSMITHS (LEEDS) LIMITED,No
Http://opendatacommunities.org/id/metropolitan-district-council/leeds,Leeds City Council,31/05/2021,Resources and Housing,Leeds Building Services,Supplies and Services,Operational Materials,205,05/05/2021,2105-00220,0.00,5253.68,R,ACCESS LOCKSMITHS (LEEDS) LIMITED,No
Http://opendatacommunities.org/id/metropolitan-district-council/leeds,Leeds City Council,31/05/2021,Resources and Housing,Leeds Building Services,Supplies and Services,Operational Materials,205,05/05/2021,2105-00221,0.00,24.80,R,ACCESS LOCKSMITHS (LEEDS) LIMITED,No
Http://opendatacommunities.org/id/metropolitan-district-council/leeds,Leeds City Council,31/05/2021,Resources and Housing,Leeds Building Services,Supplies and Services,Operational Materials,205,05/05/2021,2105-00222,0.00,25.90,R,ACCESS LOCKSMITHS (LEEDS) LIMITED,No
Http://opendatacommunities.org/id/metropolitan-district-council/leeds,Leeds City Council,31/05/2021,Resources and Housing,Leeds Building Services,Supplies and Services,Operational Materials,205,05/05/2021,2105-00223,0.00,132.00,R,ACCESS LOCKSMITHS (LEEDS) LIMITED,No
Http://opendatacommunities.org/id/metropolitan-district-council/leeds,Leeds City Council,31/05/2021,Resources and Housing,Leeds Building Services,Supplies and Services,Operational Materials,205,14/05/2021,2105-00224,0.00,48.27,R,ACCESS LOCKSMITHS (LEEDS) LIMITED,No
Http://opendatacommunities.org/id/metropolitan-district-council/leeds,Leeds City Council,31/05/2021,Resources and Housing,Leeds Building Services,Supplies and Services,Operational Materials,205,14/05/2021,2105-00225,0.00,132.53,R,ACCESS LOCKSMITHS (LEEDS) LIMITED,No
Http://opendatacommunities.org/id/metropolitan-district-council/leeds,Leeds City Council,31/05/2021,Resources and Housing,Leeds Building Services,Supplies and Services,Operational Materials,205,14/05/2021,2105-00226,0.00,154.52,R,ACCESS LOCKSMITHS (LEEDS) LIMITED,No
Http://opendatacommunities.org/id/metropolitan-district-council/leeds,Leeds City Council,31/05/2021,Strategic Landlord,Property and Contracts,Premises,General Maintenance,104,19/05/2021,2105-00227,0.00,240.47,R,ACCESS LOCKSMITHS (LEEDS) LIMITED,No
Http://opendatacommunities.org/id/metropolitan-district-council/leeds,Leeds City Council,31/05/2021,Resources and Housing,Leeds Building Services,Supplies and Services,Operational Materials,205,21/05/2021,2105-00228,0.00,33.40,R,ACCESS LOCKSMITHS (LEEDS) LIMITED,No
Http://opendatacommunities.org/id/metropolitan-district-council/leeds,Leeds City Council,31/05/2021,Resources and Housing,Leeds Building Services,Supplies and Services,Operational Materials,205,21/05/2021,2105-00229,0.00,6.46,R,ACCESS LOCKSMITHS (LEEDS) LIMITED,No
Http://opendatacommunities.org/id/metropolitan-district-council/leeds,Leeds City Council,31/05/2021,Resources and Housing,Leeds Building Services,Supplies and Services,Operational Materials,205,26/05/2021,2105-00230,0.00,23.47,R,ACCESS LOCKSMITHS (LEEDS) LIMITED,No
Http://opendatacommunities.org/id/metropolitan-district-council/leeds,Leeds City Council,31/05/2021,Resources and Housing,Leeds Building Services,Supplies and Services,Operational Materials,205,26/05/2021,2105-00231,0.00,29.43,R,ACCESS LOCKSMITHS (LEEDS) LIMITED,No
Http://opendatacommunities.org/id/metropolitan-district-council/leeds,Leeds City Council,31/05/2021,Resources and Housing,Leeds Building Services,Supplies and Services,Operational Materials,205,26/05/2021,2105-00232,0.00,38.73,R,ACCESS LOCKSMITHS (LEEDS) LIMITED,No
Http://opendatacommunities.org/id/metropolitan-district-council/leeds,Leeds City Council,31/05/2021,Resources and Housing,Leeds Building Services,Supplies and Services,Operational Materials,205,26/05/2021,2105-00233,0.00,25.48,R,ACCESS LOCKSMITHS (LEEDS) LIMITED,No
Http://opendatacommunities.org/id/metropolitan-district-council/leeds,Leeds City Council,31/05/2021,Resources and Housing,Leeds Building Services,Supplies and Services,Operational Materials,205,26/05/2021,2105-00234,0.00,217.08,R,ACCESS LOCKSMITHS (LEEDS) LIMITED,No
Http://opendatacommunities.org/id/metropolitan-district-council/leeds,Leeds City Council,31/05/2021,Resources and Housing,Leeds Building Services,Supplies and Services,Operational Materials,205,26/05/2021,2105-00235,0.00,15.96,R,ACCESS LOCKSMITHS (LEEDS) LIMITED,No
Http://opendatacommunities.org/id/metropolitan-district-council/leeds,Leeds City Council,31/05/2021,Communities and Environment,Cleaner Neighbourhood Teams,Supplies and Services,Other Hired And Contracted Services,265,28/05/2021,2105-00236,0.00,18.00,R,ACCESS LOCKSMITHS (LEEDS) LIMITED,No
Http://opendatacommunities.org/id/metropolitan-district-council/leeds,Leeds City Council,31/05/2021,Strategic Landlord,Housing Management,Supplies and Services,Resaleable Materials,204,28/05/2021,2105-00237,0.00,2.70,R,ACCESS LOCKSMITHS (LEEDS) LIMITED,No
Http://opendatacommunities.org/id/metropolitan-district-council/leeds,Leeds City Council,31/05/2021,Strategic Landlord,Housing Management,Supplies and Services,Resaleable Materials,204,28/05/2021,2105-00238,0.00,124.00,R,ACCESS LOCKSMITHS (LEEDS) LIMITED,No
Http://opendatacommunities.org/id/metropolitan-district-council/leeds,Leeds City Council,31/05/2021,Strategic Landlord,Housing Management,Supplies and Services,Resaleable Materials,204,28/05/2021,2105-00239,0.00,124.00,R,ACCESS LOCKSMITHS (LEEDS) LIMITED,No
Http://opendatacommunities.org/id/metropolitan-district-council/leeds,Leeds City Council,31/05/2021,Strategic Landlord,Housing Management,Premises,General Maintenance,104,28/05/2021,2105-00240,0.00,66.00,R,ACCESS LOCKSMITHS (LEEDS) LIMITED,No
Http://opendatacommunities.org/id/metropolitan-district-council/leeds,Leeds City Council,31/05/2021,Strategic Landlord,Property and Contracts,Premises,Maintenance Of Buildings,101,28/05/2021,2105-00241,0.00,94.52,R,ACCESS LOCKSMITHS (LEEDS) LIMITED,No
Http://opendatacommunities.org/id/metropolitan-district-council/leeds,Leeds City Council,31/05/2021,Strategic Landlord,Housing Management,Premises,General Maintenance,104,28/05/2021,2105-00242,0.00,744.00,R,ACCESS LOCKSMITHS (LEEDS) LIMITED,No
Http://opendatacommunities.org/id/metropolitan-district-council/leeds,Leeds City Council,31/05/2021,Strategic Landlord,Housing Management,External Income,Other Income,973,28/05/2021,2105-00243,0.00,27.00,R,ACCESS LOCKSMITHS (LEEDS) LIMITED,No
Http://opendatacommunities.org/id/metropolitan-district-council/leeds,Leeds City Council,31/05/2021,Strategic Landlord,Property and Contracts,Premises,General Maintenance,104,28/05/2021,2105-00244,0.00,559.50,R,ACCESS LOCKSMITHS (LEEDS) LIMITED,No
Http://opendatacommunities.org/id/metropolitan-district-council/leeds,Leeds City Council,31/05/2021,Resources and Housing,HRA Housing Leeds,Capital,OTHER COSTS,7,28/05/2021,2105-00245,0.00,35.20,C,ACCESS LOCKSMITHS (LEEDS) LIMITED,No
Http://opendatacommunities.org/id/metropolitan-district-council/leeds,Leeds City Council,31/05/2021,Strategic Landlord,Property and Contracts,Premises,General Maintenance,104,28/05/2021,2105-00246,0.00,305.30,R,ACCESS LOCKSMITHS (LEEDS) LIMITED,No
Http://opendatacommunities.org/id/metropolitan-district-council/leeds,Leeds City Council as Accountable Body,31/05/2021,Social Services Pooled Budgets,Leeds Community Equip Store Pooled Budgt,Supplies and Services,Other Equipment,203,27/05/2021,2105-00247,0.00,1825.00,R,Accora,No
Http://opendatacommunities.org/id/metropolitan-district-council/leeds,Leeds City Council,31/05/2021,City Development,Recreation,Transport,External Hire -Occasional,304,28/05/2021,2105-00248,0.00,128.65,R,ACE CONTAINER SERVICES LIMITED,No
Http://opendatacommunities.org/id/metropolitan-district-council/leeds,Leeds City Council,31/05/2021,Children and Families,Social Care,Agency Payments,Independent Fostering Agencies,509,21/05/2021,2105-00249,0.00,23339.44,R,Acorn Care & Education Ltd,No
Http://opendatacommunities.org/id/metropolitan-district-council/leeds,Leeds City Council,31/05/2021,Children and Families,Social Care,Agency Payments,Independent Fostering Agencies,509,21/05/2021,2105-00250,0.00,24117.42,R,Acorn Care & Education Ltd,No
Http://opendatacommunities.org/id/metropolitan-district-council/leeds,Leeds City Council,31/05/2021,Children and Families,Social Care,Agency Payments,General External Residential Placements,507,25/05/2021,2105-00251,0.00,24117.42,R,Acorn Care & Education Ltd,No
Http://opendatacommunities.org/id/metropolitan-district-council/leeds,Leeds City Council,31/05/2021,Children and Families,Partnerships & Health,Agency Payments,SEN Placements,566,14/05/2021,2105-00252,0.00,23339.44,R,Acorn Care & Education Ltd (Sales),No
Http://opendatacommunities.org/id/metropolitan-district-council/leeds,Leeds City Council,31/05/2021,Children and Families,Social Care,Agency Payments,General External Residential Placements,507,17/05/2021,2105-00253,0.00,19717.22,R,Acorn Care & Education Ltd (Sales),No
Http://opendatacommunities.org/id/metropolitan-district-council/leeds,Leeds City Council,31/05/2021,Children and Families,Social Care,Agency Payments,General External Residential Placements,507,20/05/2021,2105-00254,0.00,15480.00,R,Acorn Care & Education Ltd (Sales),No
Http://opendatacommunities.org/id/metropolitan-district-council/leeds,Leeds City Council,31/05/2021,Children and Families,Social Care,Agency Payments,General External Residential Placements,507,25/05/2021,2105-00255,0.00,20374.46,R,Acorn Care & Education Ltd (Sales),No
Http://opendatacommunities.org/id/metropolitan-district-council/leeds,Leeds City Council,31/05/2021,City Development,Libraries Arts & Heritage,Supplies and Services,Other Hired And Contracted Services,265,21/05/2021,2105-00256,0.00,1560.00,R,Acorn Construction (Yorkshire) Ltd,No
Http://opendatacommunities.org/id/metropolitan-district-council/leeds,Leeds City Council,31/05/2021,Adults and Health,Services For Older People - 65 And Over,Agency Payments,Residential Care Dementia,571,26/05/2021,2105-00257,0.00,1640.48,R,Acorn Nursing Home,No
Http://opendatacommunities.org/id/metropolitan-district-council/leeds,Leeds City Council,31/05/2021,Children and Families,Social Care,Agency Payments,Services Rendered By Other Organisations,511,07/05/2021,2105-00258,0.00,9044.88,R,ACORNS NURSERY,No
Http://opendatacommunities.org/id/metropolitan-district-council/leeds,Leeds City Council,31/05/2021,Adults and Health,Services For Older People - 65 And Over,Agency Payments,Nursing Home,570,26/05/2021,2105-00259,0.00,20691.35,R,Acre Green,No
Http://opendatacommunities.org/id/metropolitan-district-council/leeds,Leeds City Council,31/05/2021,Adults and Health,Services For Older People - 65 And Over,Agency Payments,Residential,580,26/05/2021,2105-00260,0.00,5013.49,R,Acre Green,No
Http://opendatacommunities.org/id/metropolitan-district-council/leeds,Leeds City Council,31/05/2021,Adults and Health,Services For Older People Under 65 P/Dis,Agency Payments,Nursing Home,570,26/05/2021,2105-00261,0.00,1408.00,R,Acre Green,No
Http://opendatacommunities.org/id/metropolitan-district-council/leeds,Leeds City Council,31/05/2021,Adults and Health,Services For Older People Under 65 P/Dis,Agency Payments,Residential,580,26/05/2021,2105-00262,0.00,1674.60,R,Acre Green,No
Http://opendatacommunities.org/id/metropolitan-district-council/leeds,Leeds City Council,31/05/2021,Children and Families,Social Care,Agency Payments,Services Rendered By Other Organisations,511,05/05/2021,2105-00263,0.00,1463.28,R,Acre Wood Day Nursery,No
Http://opendatacommunities.org/id/metropolitan-district-council/leeds,Leeds City Council,31/05/2021,Children and Families,Social Care,Agency Payments,Services Rendered By Other Organisations,511,07/05/2021,2105-00264,0.00,12523.68,R,Acre Wood Day Nursery,No
Http://opendatacommunities.org/id/metropolitan-district-council/leeds,Leeds City Council,31/05/2021,City Development,Economic Development,Supplies and Services,Grant Related Expenditure,290,26/05/2021,2105-00265,0.00,3144.00,R,Act Up North Ltd,No
Http://opendatacommunities.org/id/metropolitan-district-council/leeds,Leeds City Council,31/05/2021,Resources and Housing,Leeds Building Services,Supplies and Services,Operational Materials,205,05/05/2021,2105-00266,0.00,175.25,R,Actavo Hire And Sales Uk Limited,No
Http://opendatacommunities.org/id/metropolitan-district-council/leeds,Leeds City Council,31/05/2021,Resources and Housing,Leeds Building Services,Supplies and Services,Operational Materials,205,07/05/2021,2105-00267,0.00,82.90,R,Actavo Hire And Sales Uk Limited,No
Http://opendatacommunities.org/id/metropolitan-district-council/leeds,Leeds City Council,31/05/2021,Resources and Housing,Leeds Building Services,Supplies and Services,Operational Materials,205,07/05/2021,2105-00268,0.00,37.02,R,Actavo Hire And Sales Uk Limited,No
Http://opendatacommunities.org/id/metropolitan-district-council/leeds,Leeds City Council,31/05/2021,Children and Families,Social Care,Agency Payments,Services Rendered By Other Organisations,511,05/05/2021,2105-00269,0.00,627.12,R,ACTIVE KIDS YEADON LLP,No
Http://opendatacommunities.org/id/metropolitan-district-council/leeds,Leeds City Council,31/05/2021,Children and Families,Social Care,Agency Payments,Services Rendered By Other Organisations,511,07/05/2021,2105-00270,0.00,7421.44,R,ACTIVE KIDS YEADON LLP,No
Http://opendatacommunities.org/id/metropolitan-district-council/leeds,Leeds City Council,31/05/2021,Adults and Health,Services For Adults Under 65 Mental/Dis,Agency Payments,Sheltered Accommodation,569,26/05/2021,2105-00271,0.00,12867.56,R,Active Pathways,No
Http://opendatacommunities.org/id/metropolitan-district-council/leeds,Leeds City Council,31/05/2021,Adults and Health,Services For Adults Under 65 Mental/Dis,Agency Payments,Residential,580,26/05/2021,2105-00272,0.00,4150.84,R,Active Pathways,No
Http://opendatacommunities.org/id/metropolitan-district-council/leeds,Leeds City Council as Accountable Body,31/05/2021,Social Services Pooled Budgets,Jcs For People With Learning Disabilitie,Agency Payments,Sheltered Accommodation,569,26/05/2021,2105-00273,0.00,12452.52,R,Active Pathways,No
Http://opendatacommunities.org/id/metropolitan-district-council/leeds,Leeds City Council,31/05/2021,Adults and Health,Services For Adults Under 65 Mental/Dis,Agency Payments,Sheltered Accommodation,569,07/05/2021,2105-00274,0.00,2490.50,R,Active Pathways Supported Living,No
Http://opendatacommunities.org/id/metropolitan-district-council/leeds,Leeds City Council,31/05/2021,Adults and Health,Services For Adults Under 65 Mental/Dis,Agency Payments,Sheltered Accommodation,569,10/05/2021,2105-00275,0.00,9130.51,R,Active Pathways Supported Living,No
Http://opendatacommunities.org/id/metropolitan-district-council/leeds,Leeds City Council,31/05/2021,Communities and Environment,Waste Management,Supplies and Services,Recycling & Reuse Charges,234,12/05/2021,2105-00276,0.00,1010.88,R,Acumen Waste Services Ltd,No
Http://opendatacommunities.org/id/metropolitan-district-council/leeds,Leeds City Council,31/05/2021,Communities and Environment,Waste Management,Supplies and Services,Recycling & Reuse Charges,234,12/05/2021,2105-00277,0.00,998.64,R,Acumen Waste Services Ltd,No
Http://opendatacommunities.org/id/metropolitan-district-council/leeds,Leeds City Council,31/05/2021,Communities and Environment,Waste Management,Supplies and Services,Recycling & Reuse Charges,234,12/05/2021,2105-00278,0.00,1018.80,R,Acumen Waste Services Ltd,No
Http://opendatacommunities.org/id/metropolitan-district-council/leeds,Leeds City Council,31/05/2021,Communities and Environment,Waste Management,Supplies and Services,Recycling & Reuse Charges,234,12/05/2021,2105-00279,0.00,1009.44,R,Acumen Waste Services Ltd,No
Http://opendatacommunities.org/id/metropolitan-district-council/leeds,Leeds City Council,31/05/2021,Communities and Environment,Waste Management,Supplies and Services,Recycling & Reuse Charges,234,12/05/2021,2105-00280,0.00,1005.12,R,Acumen Waste Services Ltd,No
Http://opendatacommunities.org/id/metropolitan-district-council/leeds,Leeds City Council,31/05/2021,Communities and Environment,Waste Management,Supplies and Services,Recycling & Reuse Charges,234,12/05/2021,2105-00281,0.00,977.76,R,Acumen Waste Services Ltd,No
Http://opendatacommunities.org/id/metropolitan-district-council/leeds,Leeds City Council,31/05/2021,Communities and Environment,Waste Management,Supplies and Services,Recycling & Reuse Charges,234,12/05/2021,2105-00282,0.00,1015.92,R,Acumen Waste Services Ltd,No
Http://opendatacommunities.org/id/metropolitan-district-council/leeds,Leeds City Council,31/05/2021,Communities and Environment,Waste Management,Supplies and Services,Recycling & Reuse Charges,234,12/05/2021,2105-00283,0.00,1000.80,R,Acumen Waste Services Ltd,No
Http://opendatacommunities.org/id/metropolitan-district-council/leeds,Leeds City Council,31/05/2021,Communities and Environment,Waste Management,Supplies and Services,Recycling & Reuse Charges,234,13/05/2021,2105-00284,0.00,978.48,R,Acumen Waste Services Ltd,No
Http://opendatacommunities.org/id/metropolitan-district-council/leeds,Leeds City Council,31/05/2021,Communities and Environment,Waste Management,Supplies and Services,Recycling & Reuse Charges,234,13/05/2021,2105-00285,0.00,1001.52,R,Acumen Waste Services Ltd,No
Http://opendatacommunities.org/id/metropolitan-district-council/leeds,Leeds City Council,31/05/2021,Communities and Environment,Waste Management,Supplies and Services,Recycling & Reuse Charges,234,14/05/2021,2105-00286,0.00,979.20,R,Acumen Waste Services Ltd,No
Http://opendatacommunities.org/id/metropolitan-district-council/leeds,Leeds City Council,31/05/2021,Communities and Environment,Waste Management,Supplies and Services,Recycling & Reuse Charges,234,14/05/2021,2105-00287,0.00,163.00,R,Acumen Waste Services Ltd,No
Http://opendatacommunities.org/id/metropolitan-district-council/leeds,Leeds City Council,31/05/2021,Communities and Environment,Waste Management,Supplies and Services,Recycling & Reuse Charges,234,14/05/2021,2105-00288,0.00,1031.04,R,Acumen Waste Services Ltd,No
Http://opendatacommunities.org/id/metropolitan-district-council/leeds,Leeds City Council,31/05/2021,Communities and Environment,Waste Management,Supplies and Services,Recycling & Reuse Charges,234,19/05/2021,2105-00289,0.00,994.32,R,Acumen Waste Services Ltd,No
Http://opendatacommunities.org/id/metropolitan-district-council/leeds,Leeds City Council,31/05/2021,Communities and Environment,Waste Management,Supplies and Services,Recycling & Reuse Charges,234,21/05/2021,2105-00290,0.00,966.24,R,Acumen Waste Services Ltd,No
Http://opendatacommunities.org/id/metropolitan-district-council/leeds,Leeds City Council,31/05/2021,Communities and Environment,Waste Management,Supplies and Services,Recycling & Reuse Charges,234,21/05/2021,2105-00291,0.00,983.52,R,Acumen Waste Services Ltd,No
Http://opendatacommunities.org/id/metropolitan-district-council/leeds,Leeds City Council,31/05/2021,Communities and Environment,Waste Management,Supplies and Services,Recycling & Reuse Charges,234,21/05/2021,2105-00292,0.00,1039.68,R,Acumen Waste Services Ltd,No
Http://opendatacommunities.org/id/metropolitan-district-council/leeds,Leeds City Council,31/05/2021,Communities and Environment,Waste Management,Supplies and Services,Recycling & Reuse Charges,234,21/05/2021,2105-00293,0.00,1001.52,R,Acumen Waste Services Ltd,No
Http://opendatacommunities.org/id/metropolitan-district-council/leeds,Leeds City Council,31/05/2021,Communities and Environment,Waste Management,Supplies and Services,Recycling & Reuse Charges,234,27/05/2021,2105-00294,0.00,163.00,R,Acumen Waste Services Ltd,No
Http://opendatacommunities.org/id/metropolitan-district-council/leeds,Leeds City Council,31/05/2021,Communities and Environment,Waste Management,Supplies and Services,Recycling & Reuse Charges,234,27/05/2021,2105-00295,0.00,995.76,R,Acumen Waste Services Ltd,No
Http://opendatacommunities.org/id/metropolitan-district-council/leeds,Leeds City Council,31/05/2021,Communities and Environment,Waste Management,Supplies and Services,Recycling & Reuse Charges,234,28/05/2021,2105-00296,0.00,982.08,R,Acumen Waste Services Ltd,No
Http://opendatacommunities.org/id/metropolitan-district-council/leeds,Leeds City Council,31/05/2021,Communities and Environment,Waste Management,Supplies and Services,Recycling & Reuse Charges,234,28/05/2021,2105-00297,0.00,1005.84,R,Acumen Waste Services Ltd,No
Http://opendatacommunities.org/id/metropolitan-district-council/leeds,Leeds City Council,31/05/2021,Communities and Environment,Waste Management,Supplies and Services,Recycling & Reuse Charges,234,28/05/2021,2105-00298,0.00,982.80,R,Acumen Waste Services Ltd,No
Http://opendatacommunities.org/id/metropolitan-district-council/leeds,Leeds City Council,31/05/2021,Communities and Environment,Waste Management,Supplies and Services,Recycling & Reuse Charges,234,28/05/2021,2105-00299,0.00,1011.60,R,Acumen Waste Services Ltd,No
Http://opendatacommunities.org/id/metropolitan-district-council/leeds,Leeds City Council,31/05/2021,Communities and Environment,Waste Management,Supplies and Services,Recycling & Reuse Charges,234,28/05/2021,2105-00300,0.00,1030.32,R,Acumen Waste Services Ltd,No
Http://opendatacommunities.org/id/metropolitan-district-council/leeds,Leeds City Council,31/05/2021,Communities and Environment,Waste Management,Supplies and Services,Recycling & Reuse Charges,234,28/05/2021,2105-00301,0.00,972.00,R,Acumen Waste Services Ltd,No
Http://opendatacommunities.org/id/metropolitan-district-council/leeds,Leeds City Council,31/05/2021,Communities and Environment,Parks and Countryside,Supplies and Services,Resaleable Materials,204,20/05/2021,2105-00302,0.00,333.00,R,ACUSHNET EUROPE LIMITED,No
Http://opendatacommunities.org/id/metropolitan-district-council/leeds,Leeds City Council,31/05/2021,Communities and Environment,Parks and Countryside,Supplies and Services,Resaleable Materials,204,27/05/2021,2105-00303,0.00,106.50,R,ACUSHNET EUROPE LIMITED,No
Http://opendatacommunities.org/id/metropolitan-district-council/leeds,Leeds City Council,31/05/2021,Resources and Housing,Shared Services,Supplies and Services,Other Hired And Contracted Services,265,07/05/2021,2105-00304,0.00,525.01,R,AD3 Envelope Printers Limited,No
Http://opendatacommunities.org/id/metropolitan-district-council/leeds,Leeds City Council,31/05/2021,Resources and Housing,Shared Services,Supplies and Services,Operational Materials,205,12/05/2021,2105-00305,0.00,1131.75,R,AD3 Envelope Printers Limited,No
Http://opendatacommunities.org/id/metropolitan-district-council/leeds,Leeds City Council,31/05/2021,Resources and Housing,Shared Services,Supplies and Services,Other Hired And Contracted Services,265,14/05/2021,2105-00306,0.00,80.00,R,AD3 Envelope Printers Limited,No
Http://opendatacommunities.org/id/metropolitan-district-council/leeds,Leeds City Council,31/05/2021,City Development,Libraries Arts & Heritage,Supplies and Services,Bought In Professional Services,277,12/05/2021,2105-00307,0.00,1300.00,R,Adam Clarke,No
Http://opendatacommunities.org/id/metropolitan-district-council/leeds,Leeds City Council,31/05/2021,City Development,Economic Development,Supplies and Services,Grant Related Expenditure,290,11/05/2021,2105-00308,0.00,500.00,R,REDACTED PERSONAL DATA,No
Http://opendatacommunities.org/id/metropolitan-district-council/leeds,Leeds City Council,31/05/2021,Children and Families,Social Care,Agency Payments,Contact,548,07/05/2021,2105-00309,0.00,27.00,R,REDACTED PERSONAL DATA,No
Http://opendatacommunities.org/id/metropolitan-district-council/leeds,Leeds City Council,31/05/2021,Children and Families,Social Care,Appropriations,Leaving Care Allowances,634,07/05/2021,2105-00310,0.00,70.00,R,REDACTED PERSONAL DATA,No
Http://opendatacommunities.org/id/metropolitan-district-council/leeds,Leeds City Council,31/05/2021,Children and Families,Social Care,Appropriations,Leaving Care Allowances,634,13/05/2021,2105-00311,0.00,70.00,R,REDACTED PERSONAL DATA,No
Http://opendatacommunities.org/id/metropolitan-district-council/leeds,Leeds City Council,31/05/2021,Children and Families,Social Care,Appropriations,Leaving Care Allowances,634,21/05/2021,2105-00312,0.00,70.00,R,REDACTED PERSONAL DATA,No
Http://opendatacommunities.org/id/metropolitan-district-council/leeds,Leeds City Council,31/05/2021,Children and Families,Social Care,Appropriations,Leaving Care Allowances,634,27/05/2021,2105-00313,0.00,70.00,R,REDACTED PERSONAL DATA,No
Http://opendatacommunities.org/id/metropolitan-district-council/leeds,Leeds City Council,31/05/2021,Children and Families,Social Care,Appropriations,Leaving Care Allowances,634,28/05/2021,2105-00314,0.00,70.00,R,REDACTED PERSONAL DATA,No
Http://opendatacommunities.org/id/metropolitan-district-council/leeds,Leeds City Council,31/05/2021,City Development,Economic Development,Supplies and Services,Grant Related Expenditure,290,28/05/2021,2105-00315,0.00,500.00,R,REDACTED PERSONAL DATA,No
Http://opendatacommunities.org/id/metropolitan-district-council/leeds,Leeds City Council,31/05/2021,City Development,Economic Development,Supplies and Services,Grant Related Expenditure,290,05/05/2021,2105-00316,0.00,500.00,R,Adam Trunks,No
Http://opendatacommunities.org/id/metropolitan-district-council/leeds,Leeds City Council,31/05/2021,Children and Families,Social Care,Supplies and Services,General Amenity For Clients/Residents,285,20/04/2021,2105-00317,0.00,110.00,R,Adams Phones,Yes
Http://opendatacommunities.org/id/metropolitan-district-council/leeds,Leeds City Council,31/05/2021,City Development,Economic Development,Supplies and Services,Grant Related Expenditure,290,26/05/2021,2105-00318,0.00,8408.00,R,Adamsons Ltd,No
Http://opendatacommunities.org/id/metropolitan-district-council/leeds,Leeds City Council,31/05/2021,Adults and Health,Services For Older People - 65 And Over,Agency Payments,Nursing Home,570,26/05/2021,2105-00319,0.00,2584.00,R,Adbolton Hall,No
Http://opendatacommunities.org/id/metropolitan-district-council/leeds,Leeds City Council,31/05/2021,Resources and Housing,Strategic Housing Partnerships,Capital,CONSTRUCTION,3,27/05/2021,2105-00320,0.00,7947.26,C,Add Construction,No
Http://opendatacommunities.org/id/metropolitan-district-council/leeds,Leeds City Council,31/05/2021,City Development,Asset Management Services,Internal Recharges,Legal Disbursements,411,07/05/2021,2105-00321,0.00,24290.60,R,Addleshaw Goddard LLP,No
Http://opendatacommunities.org/id/metropolitan-district-council/leeds,Leeds City Council,31/05/2021,Adults and Health,Public Health,Agency Payments,Public Health Commissioned Services,526,21/05/2021,2105-00322,0.00,2754.84,R,Addlestone & Partners,No
Http://opendatacommunities.org/id/metropolitan-district-council/leeds,Leeds City Council,31/05/2021,Communities and Environment,Parks and Countryside,Supplies and Services,Other Hired And Contracted Services,265,28/05/2021,2105-00323,0.00,8400.00,R,Addlestone & Partners,No
Http://opendatacommunities.org/id/metropolitan-district-council/leeds,Leeds City Council,31/05/2021,Resources and Housing,Technology,Employees,Agency Staff,8,13/04/2021,2105-00324,0.00,31356.83,R,Adecco Alfred Marks,Yes
Http://opendatacommunities.org/id/metropolitan-district-council/leeds,Leeds City Council,31/05/2021,Resources and Housing,Technology,Employees,Agency Staff,8,20/04/2021,2105-00325,0.00,16257.60,R,Adecco Alfred Marks,Yes
Http://opendatacommunities.org/id/metropolitan-district-council/leeds,Leeds City Council,31/05/2021,Communities and Environment,Elections Licensing and Registration,Premises,Rents,141,17/05/2021,2105-00326,0.00,320.00,R,Adel Methodist Church Trustees,No
Http://opendatacommunities.org/id/metropolitan-district-council/leeds,Leeds City Council,31/05/2021,Communities and Environment,Elections Licensing and Registration,Premises,Rents,141,17/05/2021,2105-00327,0.00,200.00,R,Adel Parochial Church Council,No
Http://opendatacommunities.org/id/metropolitan-district-council/leeds,Leeds City Council,31/05/2021,Children and Families,Social Care,Agency Payments,Services Rendered By Voluntary Sector,505,05/05/2021,2105-00328,0.00,836.16,R,ADEL PRE SCHOOL,No
Http://opendatacommunities.org/id/metropolitan-district-council/leeds,Leeds City Council,31/05/2021,Children and Families,Social Care,Agency Payments,Services Rendered By Voluntary Sector,505,07/05/2021,2105-00329,0.00,7582.00,R,ADEL PRE SCHOOL,No
Http://opendatacommunities.org/id/metropolitan-district-council/leeds,Leeds City Council,31/05/2021,Children and Families,Social Care,Agency Payments,Services Rendered By Voluntary Sector,505,21/05/2021,2105-00330,0.00,3557.89,R,ADEL PRE SCHOOL,No
Http://opendatacommunities.org/id/metropolitan-district-council/leeds,Leeds City Council,31/05/2021,City Development,Recreation,Supplies and Services,Bought In Professional Services,277,27/05/2021,2105-00331,0.00,60.00,R,Adele Battersby,No
Http://opendatacommunities.org/id/metropolitan-district-council/leeds,Leeds City Council,31/05/2021,Children and Families,Social Care,Agency Payments,Services Rendered By Other Organisations,511,05/05/2021,2105-00332,0.00,209.04,R,REDACTED PERSONAL DATA,No
Http://opendatacommunities.org/id/metropolitan-district-council/leeds,Leeds City Council,31/05/2021,Children and Families,Social Care,Agency Payments,Services Rendered By Other Organisations,511,07/05/2021,2105-00333,0.00,1391.52,R,REDACTED PERSONAL DATA,No
Http://opendatacommunities.org/id/metropolitan-district-council/leeds,Leeds City Council,31/05/2021,Children and Families,Social Care,Agency Payments,Contact,548,11/05/2021,2105-00334,0.00,32.00,R,REDACTED PERSONAL DATA,No
Http://opendatacommunities.org/id/metropolitan-district-council/leeds,Leeds City Council,31/05/2021,Resources and Housing,Leeds Building Services,Supplies and Services,Operational Materials,205,05/05/2021,2105-00335,0.00,29.67,R,ADI Global,No
Http://opendatacommunities.org/id/metropolitan-district-council/leeds,Leeds City Council,31/05/2021,Resources and Housing,Leeds Building Services,Supplies and Services,Operational Materials,205,06/05/2021,2105-00336,0.00,409.38,R,ADI Global,No
Http://opendatacommunities.org/id/metropolitan-district-council/leeds,Leeds City Council,31/05/2021,Resources and Housing,Leeds Building Services,Supplies and Services,Operational Materials,205,18/05/2021,2105-00337,0.00,85.26,R,ADI Global,No
Http://opendatacommunities.org/id/metropolitan-district-council/leeds,Leeds City Council,31/05/2021,Resources and Housing,Leeds Building Services,Supplies and Services,Operational Materials,205,18/05/2021,2105-00338,0.00,596.40,R,ADI Global,No
Http://opendatacommunities.org/id/metropolitan-district-council/leeds,Leeds City Council,31/05/2021,Resources and Housing,Leeds Building Services,Supplies and Services,Operational Materials,205,18/05/2021,2105-00339,0.00,72.83,R,ADI Global,No
Http://opendatacommunities.org/id/metropolitan-district-council/leeds,Leeds City Council,31/05/2021,Resources and Housing,Leeds Building Services,Supplies and Services,Operational Materials,205,18/05/2021,2105-00340,0.00,10.00,R,ADI Global,No
Http://opendatacommunities.org/id/metropolitan-district-council/leeds,Leeds City Council,31/05/2021,Resources and Housing,Leeds Building Services,Supplies and Services,Operational Materials,205,19/05/2021,2105-00341,0.00,75.37,R,ADI Global,No
Http://opendatacommunities.org/id/metropolitan-district-council/leeds,Leeds City Council,31/05/2021,Insurance,Insurance,Supplies and Services,Insurance Claims,248,24/05/2021,2105-00342,0.00,456.00,R,Admiral Law,No
Http://opendatacommunities.org/id/metropolitan-district-council/leeds,Leeds City Council,31/05/2021,City Development,Libraries Arts & Heritage,Supplies and Services,Computer Software & Equipment,214,02/04/2021,2105-00343,0.00,25.28,R,Adobe Creative Cloud,Yes
Http://opendatacommunities.org/id/metropolitan-district-council/leeds,Leeds City Council,31/05/2021,Adults and Health,Services For Adults Under 65 Mental/Dis,Agency Payments,Home Care,568,06/05/2021,2105-00344,0.00,168.00,R,Adopt Healthcare,No
Http://opendatacommunities.org/id/metropolitan-district-council/leeds,Leeds City Council,31/05/2021,Adults and Health,Services For Adults Under 65 Mental/Dis,Agency Payments,Home Care,568,12/05/2021,2105-00345,0.00,204.00,R,Adopt Healthcare,No
Http://opendatacommunities.org/id/metropolitan-district-council/leeds,Leeds City Council,31/05/2021,Adults and Health,Services For Adults Under 65 Mental/Dis,Agency Payments,Home Care,568,19/05/2021,2105-00346,0.00,181.50,R,Adopt Healthcare,No
Http://opendatacommunities.org/id/metropolitan-district-council/leeds,Leeds City Council,31/05/2021,Adults and Health,Services For Adults Under 65 Mental/Dis,Agency Payments,Home Care,568,26/05/2021,2105-00347,0.00,165.00,R,Adopt Healthcare,No
Http://opendatacommunities.org/id/metropolitan-district-council/leeds,Leeds City Council,31/05/2021,Adults and Health,Services For Adults Under 65 Learn/Dis,Supplies and Services,Other Hired And Contracted Services,265,23/04/2021,2105-00348,0.00,128.67,R,Adrian Flux Insurance,Yes
Http://opendatacommunities.org/id/metropolitan-district-council/leeds,Leeds City Council,31/05/2021,City Development,Economic Development,Supplies and Services,Grant Related Expenditure,290,05/05/2021,2105-00349,0.00,500.00,R,REDACTED PERSONAL DATA,No
Http://opendatacommunities.org/id/metropolitan-district-council/leeds,Leeds City Council,31/05/2021,Children and Families,Social Care,Agency Payments,Contact,548,06/05/2021,2105-00350,0.00,28.80,R,REDACTED PERSONAL DATA,No
Http://opendatacommunities.org/id/metropolitan-district-council/leeds,Leeds City Council,31/05/2021,Children and Families,Social Care,Agency Payments,Contact,548,07/05/2021,2105-00351,0.00,28.80,R,REDACTED PERSONAL DATA,No
Http://opendatacommunities.org/id/metropolitan-district-council/leeds,Leeds City Council,31/05/2021,Children and Families,Social Care,Agency Payments,Contact,548,14/05/2021,2105-00352,0.00,28.80,R,REDACTED PERSONAL DATA,No
Http://opendatacommunities.org/id/metropolitan-district-council/leeds,Leeds City Council,31/05/2021,Children and Families,Social Care,Agency Payments,Contact,548,21/05/2021,2105-00353,0.00,28.80,R,REDACTED PERSONAL DATA,No
Http://opendatacommunities.org/id/metropolitan-district-council/leeds,Leeds City Council,31/05/2021,Children and Families,Social Care,Agency Payments,Contact,548,28/05/2021,2105-00354,0.00,28.80,R,REDACTED PERSONAL DATA,No
Http://opendatacommunities.org/id/metropolitan-district-council/leeds,Leeds City Council as Accountable Body,31/05/2021,Social Services Pooled Budgets,Jcs For People With Learning Disabilitie,Agency Payments,Residential,580,06/05/2021,2105-00355,0.00,2609.36,R,ADRIAN HOUSE,No
Http://opendatacommunities.org/id/metropolitan-district-council/leeds,Leeds City Council,31/05/2021,Communities and Environment,Benefits Welfare and Poverty,Supplies and Services,Grant Related Expenditure,298,21/05/2021,2105-00356,0.00,500.00,R,REDACTED PERSONAL DATA,No
Http://opendatacommunities.org/id/metropolitan-district-council/leeds,Leeds City Council,31/05/2021,Resources and Housing,Shared Services,Supplies and Services,Licences,266,25/05/2021,2105-00357,0.00,-32.85,R,ADT Fire And Security Plc,No
Http://opendatacommunities.org/id/metropolitan-district-council/leeds,Leeds City Council,31/05/2021,Resources and Housing,Shared Services,Supplies and Services,Licences,266,25/05/2021,2105-00358,0.00,-445.88,R,ADT Fire And Security Plc,No
Http://opendatacommunities.org/id/metropolitan-district-council/leeds,Leeds City Council,31/05/2021,Strategic Landlord,Property and Contracts,Premises,General Maintenance,104,28/05/2021,2105-00359,0.00,176.40,R,ADT Fire And Security Plc,No
Http://opendatacommunities.org/id/metropolitan-district-council/leeds,Leeds City Council,31/05/2021,Strategic Landlord,Property and Contracts,Premises,General Maintenance,104,28/05/2021,2105-00360,0.00,579.00,R,ADT Fire And Security Plc,No
Http://opendatacommunities.org/id/metropolitan-district-council/leeds,Leeds City Council as Accountable Body,31/05/2021,Social Services Pooled Budgets,Jcs For People With Learning Disabilitie,Agency Payments,Home Care,568,06/05/2021,2105-00361,0.00,1611.40,R,Advantage Healthcare Ltd,No
Http://opendatacommunities.org/id/metropolitan-district-council/leeds,Leeds City Council as Accountable Body,31/05/2021,Social Services Pooled Budgets,Jcs For People With Learning Disabilitie,Agency Payments,Home Care,568,06/05/2021,2105-00362,0.00,1775.95,R,Advantage Healthcare Ltd,No
Http://opendatacommunities.org/id/metropolitan-district-council/leeds,Leeds City Council as Accountable Body,31/05/2021,Social Services Pooled Budgets,Jcs For People With Learning Disabilitie,Agency Payments,Home Care,568,07/05/2021,2105-00363,0.00,1294.30,R,Advantage Healthcare Ltd,No
Http://opendatacommunities.org/id/metropolitan-district-council/leeds,Leeds City Council as Accountable Body,31/05/2021,Social Services Pooled Budgets,Jcs For People With Learning Disabilitie,Agency Payments,Home Care,568,07/05/2021,2105-00364,0.00,2414.50,R,Advantage Healthcare Ltd,No
Http://opendatacommunities.org/id/metropolitan-district-council/leeds,Leeds City Council as Accountable Body,31/05/2021,Social Services Pooled Budgets,Jcs For People With Learning Disabilitie,Agency Payments,Home Care,568,19/05/2021,2105-00365,0.00,1632.12,R,Advantage Healthcare Ltd,No
Http://opendatacommunities.org/id/metropolitan-district-council/leeds,Leeds City Council as Accountable Body,31/05/2021,Social Services Pooled Budgets,Jcs For People With Learning Disabilitie,Agency Payments,Home Care,568,27/05/2021,2105-00366,0.00,1294.30,R,Advantage Healthcare Ltd,No
Http://opendatacommunities.org/id/metropolitan-district-council/leeds,Leeds City Council as Accountable Body,31/05/2021,Social Services Pooled Budgets,Jcs For People With Learning Disabilitie,Agency Payments,Home Care,568,27/05/2021,2105-00367,0.00,2242.50,R,Advantage Healthcare Ltd,No
Http://opendatacommunities.org/id/metropolitan-district-council/leeds,Leeds City Council,31/05/2021,Resources and Housing,HRA Council Housing Growth Programme,Capital,LAND,1,05/05/2021,2105-00368,0.00,250.00,C,Advantage Property Lawyers,No
Http://opendatacommunities.org/id/metropolitan-district-council/leeds,Leeds City Council as Accountable Body,31/05/2021,Social Services Pooled Budgets,Jcs For People With Learning Disabilitie,Agency Payments,Residential,580,26/05/2021,2105-00369,0.00,17121.36,R,ADVITAM LTD,No
Http://opendatacommunities.org/id/metropolitan-district-council/leeds,Leeds City Council as Accountable Body,31/05/2021,Social Services Pooled Budgets,Jcs For People With Learning Disabilitie,Supplies and Services,Other Hired And Contracted Services,265,04/05/2021,2105-00370,0.00,22.50,R,Advonet,No
Http://opendatacommunities.org/id/metropolitan-district-council/leeds,Leeds City Council as Accountable Body,31/05/2021,Social Services Pooled Budgets,Jcs For People With Learning Disabilitie,Supplies and Services,Other Hired And Contracted Services,265,04/05/2021,2105-00371,0.00,30.00,R,Advonet,No
Http://opendatacommunities.org/id/metropolitan-district-council/leeds,Leeds City Council as Accountable Body,31/05/2021,Social Services Pooled Budgets,Jcs For People With Learning Disabilitie,Supplies and Services,Other Hired And Contracted Services,265,04/05/2021,2105-00372,0.00,7.50,R,Advonet,No
Http://opendatacommunities.org/id/metropolitan-district-council/leeds,Leeds City Council as Accountable Body,31/05/2021,Social Services Pooled Budgets,Jcs For People With Learning Disabilitie,Supplies and Services,Other Hired And Contracted Services,265,28/05/2021,2105-00373,0.00,15.00,R,Advonet,No
Http://opendatacommunities.org/id/metropolitan-district-council/leeds,Leeds City Council,31/05/2021,Adults and Health,Services For Adults Under 65 Mental/Dis,Agency Payments,Fees - Level 4,520,07/05/2021,2105-00374,0.00,198.00,R,AE BIA Assessments Limited,No
Http://opendatacommunities.org/id/metropolitan-district-council/leeds,Leeds City Council,31/05/2021,Adults and Health,Services For Adults Under 65 Mental/Dis,Agency Payments,Fees - Level 4,520,10/05/2021,2105-00375,0.00,198.00,R,AE BIA Assessments Limited,No
Http://opendatacommunities.org/id/metropolitan-district-council/leeds,Leeds City Council,31/05/2021,Adults and Health,Services For Adults Under 65 Mental/Dis,Agency Payments,Fees - Level 4,520,13/05/2021,2105-00376,0.00,243.98,R,AE BIA Assessments Limited,No
Http://opendatacommunities.org/id/metropolitan-district-council/leeds,Leeds City Council,31/05/2021,Adults and Health,Services For Adults Under 65 Mental/Dis,Agency Payments,Fees - Level 4,520,17/05/2021,2105-00377,0.00,198.00,R,AE BIA Assessments Limited,No
Http://opendatacommunities.org/id/metropolitan-district-council/leeds,Leeds City Council,31/05/2021,Adults and Health,Services For Adults Under 65 Mental/Dis,Agency Payments,Fees - Level 4,520,17/05/2021,2105-00378,0.00,198.00,R,AE BIA Assessments Limited,No
Http://opendatacommunities.org/id/metropolitan-district-council/leeds,Leeds City Council,31/05/2021,Adults and Health,Services For Adults Under 65 Mental/Dis,Agency Payments,Fees - Level 4,520,24/05/2021,2105-00379,0.00,198.00,R,AE BIA Assessments Limited,No
Http://opendatacommunities.org/id/metropolitan-district-council/leeds,Leeds City Council,31/05/2021,Adults and Health,Services For Adults Under 65 Mental/Dis,Agency Payments,Fees - Level 4,520,28/05/2021,2105-00380,0.00,198.00,R,AE BIA Assessments Limited,No
Http://opendatacommunities.org/id/metropolitan-district-council/leeds,Leeds City Council,31/05/2021,Adults and Health,Services For Adults Under 65 Mental/Dis,Agency Payments,Fees - Level 4,520,28/05/2021,2105-00381,0.00,198.00,R,AE BIA Assessments Limited,No
Http://opendatacommunities.org/id/metropolitan-district-council/leeds,Leeds City Council,31/05/2021,City Development,Highways,Capital,OTHER COSTS,7,05/05/2021,2105-00382,0.00,63824.88,C,Aecom Limited,No
Http://opendatacommunities.org/id/metropolitan-district-council/leeds,Leeds City Council,31/05/2021,City Development,Highways,Capital,OTHER COSTS,7,25/05/2021,2105-00383,0.00,46536.25,C,Aecom Limited,No
Http://opendatacommunities.org/id/metropolitan-district-council/leeds,Leeds City Council,31/05/2021,City Development,Highways,Capital,OTHER COSTS,7,26/05/2021,2105-00384,0.00,25805.30,C,Aecom Limited,No
Http://opendatacommunities.org/id/metropolitan-district-council/leeds,Leeds City Council,31/05/2021,City Development,Highways,Capital,OTHER COSTS,7,26/05/2021,2105-00385,0.00,50345.50,C,Aecom Limited,No
Http://opendatacommunities.org/id/metropolitan-district-council/leeds,Leeds City Council,31/05/2021,Adults and Health,Services For Adults Under 65 Mental/Dis,Agency Payments,Home Care,568,05/05/2021,2105-00386,0.00,1290.00,R,Aegis Care Solutions Ltd,No
Http://opendatacommunities.org/id/metropolitan-district-council/leeds,Leeds City Council,31/05/2021,Adults and Health,Services For Adults Under 65 Mental/Dis,Agency Payments,Home Care,568,05/05/2021,2105-00387,0.00,1215.90,R,Aegis Care Solutions Ltd,No
Http://opendatacommunities.org/id/metropolitan-district-council/leeds,Leeds City Council,31/05/2021,Adults and Health,Services For Adults Under 65 Mental/Dis,Agency Payments,Home Care,568,05/05/2021,2105-00388,0.00,284.80,R,Aegis Care Solutions Ltd,No
Http://opendatacommunities.org/id/metropolitan-district-council/leeds,Leeds City Council,31/05/2021,Adults and Health,Services For Adults Under 65 Mental/Dis,Agency Payments,Home Care,568,05/05/2021,2105-00389,0.00,1402.60,R,Aegis Care Solutions Ltd,No
Http://opendatacommunities.org/id/metropolitan-district-council/leeds,Leeds City Council,31/05/2021,Adults and Health,Services For Adults Under 65 Mental/Dis,Agency Payments,Home Care,568,05/05/2021,2105-00390,0.00,1535.40,R,Aegis Care Solutions Ltd,No
Http://opendatacommunities.org/id/metropolitan-district-council/leeds,Leeds City Council,31/05/2021,Adults and Health,Services For Adults Under 65 Mental/Dis,Agency Payments,Home Care,568,05/05/2021,2105-00391,0.00,222.50,R,Aegis Care Solutions Ltd,No
Http://opendatacommunities.org/id/metropolitan-district-council/leeds,Leeds City Council,31/05/2021,Adults and Health,Services For Adults Under 65 Mental/Dis,Agency Payments,Home Care,568,05/05/2021,2105-00392,0.00,2006.13,R,Aegis Care Solutions Ltd,No
Http://opendatacommunities.org/id/metropolitan-district-council/leeds,Leeds City Council,31/05/2021,Adults and Health,Services For Adults Under 65 Mental/Dis,Agency Payments,Home Care,568,05/05/2021,2105-00393,0.00,1135.60,R,Aegis Care Solutions Ltd,No
Http://opendatacommunities.org/id/metropolitan-district-council/leeds,Leeds City Council,31/05/2021,Adults and Health,Services For Adults Under 65 Mental/Dis,Agency Payments,Home Care,568,05/05/2021,2105-00394,0.00,4230.40,R,Aegis Care Solutions Ltd,No
Http://opendatacommunities.org/id/metropolitan-district-council/leeds,Leeds City Council,31/05/2021,Adults and Health,Services For Adults Under 65 Mental/Dis,Agency Payments,Home Care,568,05/05/2021,2105-00395,0.00,721.10,R,Aegis Care Solutions Ltd,No
Http://opendatacommunities.org/id/metropolitan-district-council/leeds,Leeds City Council,31/05/2021,Adults and Health,Services For Adults Under 65 Mental/Dis,Agency Payments,Home Care,568,06/05/2021,2105-00396,0.00,1182.00,R,Aegis Care Solutions Ltd,No
Http://opendatacommunities.org/id/metropolitan-district-council/leeds,Leeds City Council,31/05/2021,Adults and Health,Services For Adults Under 65 Mental/Dis,Agency Payments,Home Care,568,06/05/2021,2105-00397,0.00,284.80,R,Aegis Care Solutions Ltd,No
Http://opendatacommunities.org/id/metropolitan-district-council/leeds,Leeds City Council,31/05/2021,Adults and Health,Services For Adults Under 65 Mental/Dis,Agency Payments,Home Care,568,07/05/2021,2105-00398,0.00,1414.80,R,Aegis Care Solutions Ltd,No
Http://opendatacommunities.org/id/metropolitan-district-council/leeds,Leeds City Council,31/05/2021,City Development,Libraries Arts & Heritage,Supplies and Services,Non-Recurring Grants,227,05/05/2021,2105-00399,0.00,743.00,R,Aeris Houlihan,No
Http://opendatacommunities.org/id/metropolitan-district-council/leeds,Leeds City Council,31/05/2021,City Development,Economic Development,Supplies and Services,Grant Related Expenditure,290,13/05/2021,2105-00400,0.00,10000.00,R,Aeroservices Ltd,No
Http://opendatacommunities.org/id/metropolitan-district-council/leeds,Leeds City Council,31/05/2021,Adults and Health,Services For Adults Under 65 Mental/Dis,Agency Payments,Home Care,568,12/05/2021,2105-00401,0.00,511.36,R,Affinity Trust,No
Http://opendatacommunities.org/id/metropolitan-district-council/leeds,Leeds City Council,31/05/2021,Adults and Health,Services For Adults Under 65 Mental/Dis,Agency Payments,HCAIT Community Support,575,12/05/2021,2105-00402,0.00,336.40,R,Affinity Trust,No
Http://opendatacommunities.org/id/metropolitan-district-council/leeds,Leeds City Council,31/05/2021,Adults and Health,Services For Older People - 65 And Over,Agency Payments,HCAIT Community Support,575,12/05/2021,2105-00403,0.00,575.28,R,Affinity Trust,No
Http://opendatacommunities.org/id/metropolitan-district-council/leeds,Leeds City Council,31/05/2021,Adults and Health,Services For Older People Under 65 P/Dis,Agency Payments,Home Care,568,12/05/2021,2105-00404,0.00,807.36,R,Affinity Trust,No
Http://opendatacommunities.org/id/metropolitan-district-council/leeds,Leeds City Council,31/05/2021,Adults and Health,Services For Older People Under 65 P/Dis,Agency Payments,HCAIT Community Support,575,12/05/2021,2105-00405,0.00,740.08,R,Affinity Trust,No
Http://opendatacommunities.org/id/metropolitan-district-council/leeds,Leeds City Council as Accountable Body,31/05/2021,Social Services Pooled Budgets,Jcs For People With Learning Disabilitie,Agency Payments,Home Care,568,12/05/2021,2105-00406,0.00,319.60,R,Affinity Trust,No
Http://opendatacommunities.org/id/metropolitan-district-council/leeds,Leeds City Council as Accountable Body,31/05/2021,Social Services Pooled Budgets,Jcs For People With Learning Disabilitie,Agency Payments,Day Centre,564,14/05/2021,2105-00407,0.00,32068.22,R,Affinity Trust,No
Http://opendatacommunities.org/id/metropolitan-district-council/leeds,Leeds City Council as Accountable Body,31/05/2021,Social Services Pooled Budgets,Jcs For People With Learning Disabilitie,Agency Payments,Residential,580,19/05/2021,2105-00408,0.00,14499.83,R,Affinity Trust,No
Http://opendatacommunities.org/id/metropolitan-district-council/leeds,Leeds City Council,31/05/2021,Adults and Health,Services For Adults Under 65 Mental/Dis,Agency Payments,Home Care,568,24/05/2021,2105-00409,0.00,754.08,R,Affinity Trust,No
Http://opendatacommunities.org/id/metropolitan-district-council/leeds,Leeds City Council,31/05/2021,Adults and Health,Services For Adults Under 65 Mental/Dis,Agency Payments,Home Care,568,24/05/2021,2105-00410,0.00,259.23,R,Affinity Trust,No
Http://opendatacommunities.org/id/metropolitan-district-council/leeds,Leeds City Council,31/05/2021,Adults and Health,Services For Adults Under 65 Mental/Dis,Agency Payments,Home Care,568,24/05/2021,2105-00411,0.00,494.87,R,Affinity Trust,No
Http://opendatacommunities.org/id/metropolitan-district-council/leeds,Leeds City Council,31/05/2021,Adults and Health,Services For Adults Under 65 Mental/Dis,Agency Payments,Home Care,568,24/05/2021,2105-00412,0.00,1233.24,R,Affinity Trust,No
Http://opendatacommunities.org/id/metropolitan-district-council/leeds,Leeds City Council,31/05/2021,Adults and Health,Services For Adults Under 65 Mental/Dis,Agency Payments,Home Care,568,24/05/2021,2105-00413,0.00,1256.80,R,Affinity Trust,No
Http://opendatacommunities.org/id/metropolitan-district-council/leeds,Leeds City Council as Accountable Body,31/05/2021,Social Services Pooled Budgets,Jcs For People With Learning Disabilitie,Agency Payments,Day Centre,564,27/05/2021,2105-00414,0.00,30403.06,R,Affinity Trust,No
Http://opendatacommunities.org/id/metropolitan-district-council/leeds,Leeds City Council,31/05/2021,Adults and Health,Services For Adults Under 65 Mental/Dis,Agency Payments,Home Care,568,28/05/2021,2105-00415,0.00,1131.12,R,Affinity Trust,No
Http://opendatacommunities.org/id/metropolitan-district-council/leeds,Leeds City Council as Accountable Body,31/05/2021,Social Services Pooled Budgets,Jcs For People With Learning Disabilitie,Agency Payments,Sheltered Accommodation,569,26/05/2021,2105-00416,0.00,121992.56,R,Affinity Trust North Divisional Office,No
Http://opendatacommunities.org/id/metropolitan-district-council/leeds,Leeds City Council,31/05/2021,Communities and Environment,Parks and Countryside,Transport,Repair & Maintenance of  Plant,342,19/04/2021,2105-00417,0.00,47.39,R,Afi Uplift,Yes
Http://opendatacommunities.org/id/metropolitan-district-council/leeds,Leeds City Council,31/05/2021,Communities and Environment,Parks and Countryside,Transport,External Hire -Occasional,304,19/04/2021,2105-00418,0.00,950.00,R,Afi Uplift,Yes
Http://opendatacommunities.org/id/metropolitan-district-council/leeds,Leeds City Council,31/05/2021,Communities and Environment,Parks and Countryside,Transport,External Hire -Occasional,304,19/04/2021,2105-00419,0.00,950.00,R,Afi Uplift,Yes
Http://opendatacommunities.org/id/metropolitan-district-council/leeds,Leeds City Council,31/05/2021,Communities and Environment,Parks and Countryside,Transport,External Hire -Occasional,304,19/04/2021,2105-00420,0.00,950.00,R,Afi Uplift,Yes
Http://opendatacommunities.org/id/metropolitan-district-council/leeds,Leeds City Council,31/05/2021,Communities and Environment,Parks and Countryside,Transport,External Hire -Occasional,304,19/04/2021,2105-00421,0.00,950.00,R,Afi Uplift,Yes
Http://opendatacommunities.org/id/metropolitan-district-council/leeds,Leeds City Council,31/05/2021,City Development,Economic Development,Supplies and Services,Grant Related Expenditure,290,21/05/2021,2105-00422,0.00,500.00,R,REDACTED PERSONAL DATA,No
Http://opendatacommunities.org/id/metropolitan-district-council/leeds,Leeds City Council,31/05/2021,Adults and Health,Public Health,Agency Payments,Services Rendered By Voluntary Sector,505,28/05/2021,2105-00423,0.00,30000.00,R,Age Uk Leeds,No
Http://opendatacommunities.org/id/metropolitan-district-council/leeds,Leeds City Council,31/05/2021,City Development,Highways,Supplies and Services,Operational Materials,205,26/05/2021,2105-00424,0.00,1508.76,R,AGGREGATE INDUSTRIES UK LTD,No
Http://opendatacommunities.org/id/metropolitan-district-council/leeds,Leeds City Council,31/05/2021,Communities and Environment,Benefits Welfare and Poverty,Supplies and Services,Grant Related Expenditure,290,25/05/2021,2105-00425,0.00,500.00,R,REDACTED PERSONAL DATA,No
Http://opendatacommunities.org/id/metropolitan-district-council/leeds,Leeds City Council,31/05/2021,Communities and Environment,Benefits Welfare and Poverty,Supplies and Services,Grant Related Expenditure,290,13/05/2021,2105-00426,0.00,500.00,R,REDACTED PERSONAL DATA,No
Http://opendatacommunities.org/id/metropolitan-district-council/leeds,Leeds City Council,31/05/2021,City Development,Economic Development,Supplies and Services,Grant Related Expenditure,290,26/05/2021,2105-00427,0.00,500.00,R,REDACTED PERSONAL DATA,No
Http://opendatacommunities.org/id/metropolitan-district-council/leeds,Leeds City Council,31/05/2021,City Development,Economic Development,Supplies and Services,Grant Related Expenditure,290,17/05/2021,2105-00428,0.00,500.00,R,Ahmad Reza Zarei,No
Http://opendatacommunities.org/id/metropolitan-district-council/leeds,Leeds City Council,31/05/2021,Communities and Environment,Benefits Welfare and Poverty,Supplies and Services,Grant Related Expenditure,290,18/05/2021,2105-00429,0.00,500.00,R,REDACTED PERSONAL DATA,No
Http://opendatacommunities.org/id/metropolitan-district-council/leeds,Leeds City Council,31/05/2021,Communities and Environment,Customer Access,Supplies and Services,Bought In Professional Services,277,19/05/2021,2105-00430,0.00,9.00,R,Ahmed Moustafa Moustafa Mousa,No
Http://opendatacommunities.org/id/metropolitan-district-council/leeds,Leeds City Council,31/05/2021,Resources and Housing,Sustainable Energy & Climate Change,Capital,OTHER COSTS,7,19/05/2021,2105-00431,0.00,2100.00,C,REDACTED COMMERCIAL CONFIDENTIALITY,No
Http://opendatacommunities.org/id/metropolitan-district-council/leeds,Leeds City Council,31/05/2021,Children and Families,Learning,Supplies and Services,Teaching Materials,202,27/05/2021,2105-00432,0.00,18.71,R,Aid Training & Operations Ltd,No
Http://opendatacommunities.org/id/metropolitan-district-council/leeds,Leeds City Council,31/05/2021,Children and Families,Social Care,Agency Payments, Direct Work,549,05/05/2021,2105-00433,0.00,62.00,R,REDACTED PERSONAL DATA,No
Http://opendatacommunities.org/id/metropolitan-district-council/leeds,Leeds City Council as Accountable Body,31/05/2021,Social Services Pooled Budgets,Leeds Community Equip Store Pooled Budgt,Supplies and Services,Other Equipment,203,14/05/2021,2105-00434,0.00,515.80,R,AIDAPT BATHROOMS LTD,No
Http://opendatacommunities.org/id/metropolitan-district-council/leeds,Leeds City Council as Accountable Body,31/05/2021,Social Services Pooled Budgets,Leeds Community Equip Store Pooled Budgt,Supplies and Services,Other Equipment,203,26/05/2021,2105-00435,0.00,515.80,R,AIDAPT BATHROOMS LTD,No
Http://opendatacommunities.org/id/metropolitan-district-council/leeds,Leeds City Council as Accountable Body,31/05/2021,Social Services Pooled Budgets,Leeds Community Equip Store Pooled Budgt,Supplies and Services,Other Equipment,203,28/05/2021,2105-00436,0.00,637.25,R,AIDAPT BATHROOMS LTD,No
Http://opendatacommunities.org/id/metropolitan-district-council/leeds,Leeds City Council as Accountable Body,31/05/2021,Social Services Pooled Budgets,Leeds Community Equip Store Pooled Budgt,Supplies and Services,Other Equipment,203,28/05/2021,2105-00437,0.00,1503.91,R,AIDAPT BATHROOMS LTD,No
Http://opendatacommunities.org/id/metropolitan-district-council/leeds,Leeds City Council as Accountable Body,31/05/2021,Social Services Pooled Budgets,Leeds Community Equip Store Pooled Budgt,Supplies and Services,Other Equipment,203,28/05/2021,2105-00438,0.00,110.00,R,AIDAPT BATHROOMS LTD,No
Http://opendatacommunities.org/id/metropolitan-district-council/leeds,Leeds City Council as Accountable Body,31/05/2021,Social Services Pooled Budgets,Leeds Community Equip Store Pooled Budgt,Supplies and Services,Other Equipment,203,28/05/2021,2105-00439,0.00,1426.50,R,AIDAPT BATHROOMS LTD,No
Http://opendatacommunities.org/id/metropolitan-district-council/leeds,Leeds City Council as Accountable Body,31/05/2021,Social Services Pooled Budgets,Leeds Community Equip Store Pooled Budgt,Supplies and Services,Other Equipment,203,28/05/2021,2105-00440,0.00,3070.80,R,AIDAPT BATHROOMS LTD,No
Http://opendatacommunities.org/id/metropolitan-district-council/leeds,Leeds City Council as Accountable Body,31/05/2021,Social Services Pooled Budgets,Leeds Community Equip Store Pooled Budgt,Supplies and Services,Other Equipment,203,28/05/2021,2105-00441,0.00,2059.80,R,AIDAPT BATHROOMS LTD,No
Http://opendatacommunities.org/id/metropolitan-district-council/leeds,Leeds City Council,31/05/2021,Children and Families,Social Care,Appropriations,Leaving Care Allowances,634,12/05/2021,2105-00442,0.00,50.00,R,REDACTED PERSONAL DATA,No
Http://opendatacommunities.org/id/metropolitan-district-council/leeds,Leeds City Council,31/05/2021,Strategic Accounts,Miscellaneous,Appropriations,Land Drainage Levies,665,04/05/2021,2105-00443,0.00,3924.92,R,Ainsty (2008) Internal Drainage Board,No
Http://opendatacommunities.org/id/metropolitan-district-council/leeds,Leeds City Council,31/05/2021,Resources and Housing,Leeds Building Services,Supplies and Services,Operational Materials,205,13/05/2021,2105-00444,0.00,829.98,R,Air Conditioning Accessories,No
Http://opendatacommunities.org/id/metropolitan-district-council/leeds,Leeds City Council,31/05/2021,Resources and Housing,Leeds Building Services,Supplies and Services,Operational Materials,205,18/05/2021,2105-00445,0.00,201.00,R,Air Conditioning Accessories,No
Http://opendatacommunities.org/id/metropolitan-district-council/leeds,Leeds City Council,31/05/2021,Resources and Housing,Leeds Building Services,Supplies and Services,Operational Materials,205,28/05/2021,2105-00446,0.00,15.00,R,Air Force Pneumatics & Hydraulics,No
Http://opendatacommunities.org/id/metropolitan-district-council/leeds,Leeds City Council,31/05/2021,Resources and Housing,Commercial Services,Supplies and Services,Operational Materials,205,28/04/2021,2105-00447,0.00,182.20,R,Air Force Pneumatics And,Yes
Http://opendatacommunities.org/id/metropolitan-district-council/leeds,Leeds City Council,31/05/2021,Communities and Environment,Parks and Countryside,Transport,Repair & Maintenance of  Plant,342,13/05/2021,2105-00448,0.00,634.04,R,Air Solutions (Leeds) Ltd,No
Http://opendatacommunities.org/id/metropolitan-district-council/leeds,Leeds City Council,31/05/2021,Communities and Environment,Parks and Countryside,Transport,Repair & Maintenance of  Plant,342,26/05/2021,2105-00449,0.00,305.80,R,Air Solutions (Leeds) Ltd,No
Http://opendatacommunities.org/id/metropolitan-district-council/leeds,Leeds City Council,31/05/2021,Children and Families,Social Care,Agency Payments,Placement Support,550,05/04/2021,2105-00450,0.00,1769.84,R,Airbnb * Hmmswr2xkq,Yes
Http://opendatacommunities.org/id/metropolitan-district-council/leeds,Leeds City Council,31/05/2021,Adults and Health,Public Health,Agency Payments,Public Health Commissioned Services,526,21/05/2021,2105-00451,0.00,4662.80,R,Aire Valley Surgery,No
Http://opendatacommunities.org/id/metropolitan-district-council/leeds,Leeds City Council,31/05/2021,Communities and Environment,Parks and Countryside,Supplies and Services,Other Hired And Contracted Services,265,07/05/2021,2105-00452,0.00,246.00,R,Aire Valley Tree Services Ltd,No
Http://opendatacommunities.org/id/metropolitan-district-council/leeds,Leeds City Council,31/05/2021,Communities and Environment,Parks and Countryside,Supplies and Services,Other Hired And Contracted Services,265,07/05/2021,2105-00453,0.00,370.00,R,Aire Valley Tree Services Ltd,No
Http://opendatacommunities.org/id/metropolitan-district-council/leeds,Leeds City Council,31/05/2021,Communities and Environment,Parks and Countryside,Supplies and Services,Other Hired And Contracted Services,265,21/05/2021,2105-00454,0.00,425.00,R,Aire Valley Tree Services Ltd,No
Http://opendatacommunities.org/id/metropolitan-district-council/leeds,Leeds City Council,31/05/2021,Communities and Environment,Parks and Countryside,Supplies and Services,Other Hired And Contracted Services,265,21/05/2021,2105-00455,0.00,275.00,R,Aire Valley Tree Services Ltd,No
Http://opendatacommunities.org/id/metropolitan-district-council/leeds,Leeds City Council,31/05/2021,Adults and Health,Services For Older People - 65 And Over,Agency Payments,Residential Care Dementia,571,26/05/2021,2105-00456,0.00,36748.51,R,Aire View Residential Home,No
Http://opendatacommunities.org/id/metropolitan-district-council/leeds,Leeds City Council,31/05/2021,Adults and Health,Services For Older People - 65 And Over,Agency Payments,Residential,580,26/05/2021,2105-00457,0.00,4879.36,R,Aire View Residential Home,No
Http://opendatacommunities.org/id/metropolitan-district-council/leeds,Leeds City Council,31/05/2021,Adults and Health,Public Health,Agency Payments,Public Health Commissioned Services,526,21/05/2021,2105-00458,0.00,1394.76,R,Aireborough Family Practice,No
Http://opendatacommunities.org/id/metropolitan-district-council/leeds,Leeds City Council,31/05/2021,Children and Families,Social Care,Agency Payments,Services Rendered By Voluntary Sector,505,14/05/2021,2105-00459,0.00,30000.00,R,Aireborough Supported Activities Scheme,No
Http://opendatacommunities.org/id/metropolitan-district-council/leeds,Leeds City Council,31/05/2021,Children and Families,Social Care,Agency Payments,Services Rendered By Voluntary Sector,505,14/05/2021,2105-00460,0.00,25631.00,R,Aireborough Supported Activities Scheme,No
Http://opendatacommunities.org/id/metropolitan-district-council/leeds,Leeds City Council,31/05/2021,Adults and Health,Services For Older People - 65 And Over,Agency Payments,Residential Care Dementia,571,26/05/2021,2105-00461,0.00,1518.60,R,Airedale Care Home,No
Http://opendatacommunities.org/id/metropolitan-district-council/leeds,Leeds City Council,31/05/2021,Adults and Health,Services For Older People - 65 And Over,Agency Payments,Residential,580,26/05/2021,2105-00462,0.00,26162.79,R,Airedale Care Home,No
Http://opendatacommunities.org/id/metropolitan-district-council/leeds,Leeds City Council,31/05/2021,Communities and Environment,Parks and Countryside,Supplies and Services,Other Hired And Contracted Services,265,20/05/2021,2105-00463,0.00,800.00,R,Airedon Limited,No
Http://opendatacommunities.org/id/metropolitan-district-council/leeds,Leeds City Council,31/05/2021,City Development,Employment & Skills,Agency Payments,Contributions To Partnerships,544,26/05/2021,2105-00464,0.00,4689.80,R,Airnow Cybersecurity Limited,No
Http://opendatacommunities.org/id/metropolitan-district-council/leeds,Leeds City Council,31/05/2021,City Development,Employment & Skills,Agency Payments,Contributions To Partnerships,544,26/05/2021,2105-00465,0.00,1010.75,R,Airnow Cybersecurity Limited,No
Http://opendatacommunities.org/id/metropolitan-district-council/leeds,Leeds City Council,31/05/2021,Children and Families,Social Care,Agency Payments,Contact,548,06/04/2021,2105-00466,0.00,26.35,R,Airpay,Yes
Http://opendatacommunities.org/id/metropolitan-district-council/leeds,Leeds City Council,31/05/2021,Children and Families,Social Care,Transport,Public Transport Expenses,310,14/04/2021,2105-00467,0.00,12.65,R,Airpay,Yes
Http://opendatacommunities.org/id/metropolitan-district-council/leeds,Leeds City Council,31/05/2021,Children and Families,Social Care,Transport,Public Transport Expenses,310,15/04/2021,2105-00468,0.00,12.95,R,Airpay,Yes
Http://opendatacommunities.org/id/metropolitan-district-council/leeds,Leeds City Council,31/05/2021,Communities and Environment,Community Safety,Supplies and Services,Bought In Professional Services,277,14/05/2021,2105-00469,0.00,1044.80,R,AIRWAVE SOLUTIONS LTD,No
Http://opendatacommunities.org/id/metropolitan-district-council/leeds,Leeds City Council,31/05/2021,Adults and Health,Services For Adults Under 65 Learn/Dis,Internal Recharges,Legal Disbursements,411,26/05/2021,2105-00470,0.00,650.00,R,Aisling Campbell,No
Http://opendatacommunities.org/id/metropolitan-district-council/leeds,Leeds City Council,31/05/2021,Adults and Health,Services For Adults Under 65 Mental/Dis,Agency Payments,Fees - Level 4,520,05/05/2021,2105-00471,0.00,175.00,R,AIT Mitra Limited,No
Http://opendatacommunities.org/id/metropolitan-district-council/leeds,Leeds City Council,31/05/2021,Adults and Health,Services For Adults Under 65 Mental/Dis,Agency Payments,Fees - Level 4,520,05/05/2021,2105-00472,0.00,175.00,R,AIT Mitra Limited,No
Http://opendatacommunities.org/id/metropolitan-district-council/leeds,Leeds City Council,31/05/2021,Adults and Health,Services For Adults Under 65 Mental/Dis,Agency Payments,Fees - Level 4,520,05/05/2021,2105-00473,0.00,175.00,R,AIT Mitra Limited,No
Http://opendatacommunities.org/id/metropolitan-district-council/leeds,Leeds City Council,31/05/2021,Adults and Health,Services For Adults Under 65 Mental/Dis,Agency Payments,Fees - Level 4,520,05/05/2021,2105-00474,0.00,175.00,R,AIT Mitra Limited,No
Http://opendatacommunities.org/id/metropolitan-district-council/leeds,Leeds City Council,31/05/2021,Adults and Health,Services For Adults Under 65 Mental/Dis,Agency Payments,Fees - Level 4,520,05/05/2021,2105-00475,0.00,175.00,R,AIT Mitra Limited,No
Http://opendatacommunities.org/id/metropolitan-district-council/leeds,Leeds City Council,31/05/2021,Adults and Health,Services For Adults Under 65 Mental/Dis,Agency Payments,Fees - Level 4,520,05/05/2021,2105-00476,0.00,175.00,R,AIT Mitra Limited,No
Http://opendatacommunities.org/id/metropolitan-district-council/leeds,Leeds City Council,31/05/2021,Adults and Health,Services For Adults Under 65 Mental/Dis,Agency Payments,Fees - Level 4,520,10/05/2021,2105-00477,0.00,175.00,R,AIT Mitra Limited,No
Http://opendatacommunities.org/id/metropolitan-district-council/leeds,Leeds City Council,31/05/2021,Adults and Health,Services For Adults Under 65 Mental/Dis,Agency Payments,Fees - Level 4,520,10/05/2021,2105-00478,0.00,175.00,R,AIT Mitra Limited,No
Http://opendatacommunities.org/id/metropolitan-district-council/leeds,Leeds City Council,31/05/2021,Adults and Health,Services For Adults Under 65 Mental/Dis,Agency Payments,Fees - Level 4,520,10/05/2021,2105-00479,0.00,175.00,R,AIT Mitra Limited,No
Http://opendatacommunities.org/id/metropolitan-district-council/leeds,Leeds City Council,31/05/2021,Adults and Health,Services For Adults Under 65 Mental/Dis,Agency Payments,Fees - Level 4,520,10/05/2021,2105-00480,0.00,175.00,R,AIT Mitra Limited,No
Http://opendatacommunities.org/id/metropolitan-district-council/leeds,Leeds City Council,31/05/2021,Adults and Health,Services For Adults Under 65 Mental/Dis,Agency Payments,Fees - Level 4,520,10/05/2021,2105-00481,0.00,175.00,R,AIT Mitra Limited,No
Http://opendatacommunities.org/id/metropolitan-district-council/leeds,Leeds City Council,31/05/2021,Adults and Health,Services For Adults Under 65 Mental/Dis,Agency Payments,Fees - Level 4,520,10/05/2021,2105-00482,0.00,175.00,R,AIT Mitra Limited,No
Http://opendatacommunities.org/id/metropolitan-district-council/leeds,Leeds City Council,31/05/2021,Adults and Health,Services For Adults Under 65 Mental/Dis,Agency Payments,Fees - Level 4,520,14/05/2021,2105-00483,0.00,175.00,R,AIT Mitra Limited,No
Http://opendatacommunities.org/id/metropolitan-district-council/leeds,Leeds City Council,31/05/2021,Adults and Health,Services For Adults Under 65 Mental/Dis,Agency Payments,Fees - Level 4,520,25/05/2021,2105-00484,0.00,175.00,R,AIT Mitra Limited,No
Http://opendatacommunities.org/id/metropolitan-district-council/leeds,Leeds City Council,31/05/2021,Adults and Health,Services For Adults Under 65 Mental/Dis,Agency Payments,Fees - Level 4,520,25/05/2021,2105-00485,0.00,175.00,R,AIT Mitra Limited,No
Http://opendatacommunities.org/id/metropolitan-district-council/leeds,Leeds City Council,31/05/2021,Adults and Health,Services For Adults Under 65 Mental/Dis,Agency Payments,Fees - Level 4,520,25/05/2021,2105-00486,0.00,175.00,R,AIT Mitra Limited,No
Http://opendatacommunities.org/id/metropolitan-district-council/leeds,Leeds City Council,31/05/2021,Adults and Health,Services For Adults Under 65 Mental/Dis,Agency Payments,Fees - Level 4,520,25/05/2021,2105-00487,0.00,175.00,R,AIT Mitra Limited,No
Http://opendatacommunities.org/id/metropolitan-district-council/leeds,Leeds City Council,31/05/2021,Adults and Health,Services For Adults Under 65 Mental/Dis,Agency Payments,Fees - Level 4,520,25/05/2021,2105-00488,0.00,175.00,R,AIT Mitra Limited,No
Http://opendatacommunities.org/id/metropolitan-district-council/leeds,Leeds City Council,31/05/2021,Adults and Health,Services For Adults Under 65 Mental/Dis,Agency Payments,Fees - Level 4,520,25/05/2021,2105-00489,0.00,175.00,R,AIT Mitra Limited,No
Http://opendatacommunities.org/id/metropolitan-district-council/leeds,Leeds City Council,31/05/2021,Adults and Health,Services For Adults Under 65 Mental/Dis,Agency Payments,Fees - Level 4,520,25/05/2021,2105-00490,0.00,175.00,R,AIT Mitra Limited,No
Http://opendatacommunities.org/id/metropolitan-district-council/leeds,Leeds City Council,31/05/2021,Adults and Health,Services For Adults Under 65 Mental/Dis,Agency Payments,Fees - Level 4,520,25/05/2021,2105-00491,0.00,175.00,R,AIT Mitra Limited,No
Http://opendatacommunities.org/id/metropolitan-district-council/leeds,Leeds City Council,31/05/2021,Adults and Health,Services For Adults Under 65 Mental/Dis,Agency Payments,Fees - Level 4,520,25/05/2021,2105-00492,0.00,175.00,R,AIT Mitra Limited,No
Http://opendatacommunities.org/id/metropolitan-district-council/leeds,Leeds City Council as Accountable Body,31/05/2021,Social Services Pooled Budgets,Jcs For People With Learning Disabilitie,Agency Payments,Residential,580,26/05/2021,2105-00493,0.00,6709.72,R,AITCH care homes,No
Http://opendatacommunities.org/id/metropolitan-district-council/leeds,Leeds City Council,31/05/2021,Communities and Environment,Parks and Countryside,Supplies and Services,Operational Materials,205,21/05/2021,2105-00494,0.00,74.75,R,Aitkens Sportsturf Ltd,No
Http://opendatacommunities.org/id/metropolitan-district-council/leeds,Leeds City Council,31/05/2021,Resources and Housing,Leeds Building Services,Supplies and Services,Operational Furniture And Equipment,203,05/05/2021,2105-00495,0.00,59.20,R,AJM FIXINGS & POWER TOOLS LTD,No
Http://opendatacommunities.org/id/metropolitan-district-council/leeds,Leeds City Council,31/05/2021,Resources and Housing,Leeds Building Services,Supplies and Services,Operational Furniture And Equipment,203,07/05/2021,2105-00496,0.00,159.40,R,AJM FIXINGS & POWER TOOLS LTD,No
Http://opendatacommunities.org/id/metropolitan-district-council/leeds,Leeds City Council,31/05/2021,Resources and Housing,Leeds Building Services,Supplies and Services,Operational Furniture And Equipment,203,13/05/2021,2105-00497,0.00,161.00,R,AJM FIXINGS & POWER TOOLS LTD,No
Http://opendatacommunities.org/id/metropolitan-district-council/leeds,Leeds City Council,31/05/2021,Resources and Housing,Leeds Building Services,Supplies and Services,Operational Furniture And Equipment,203,14/05/2021,2105-00498,0.00,265.40,R,AJM FIXINGS & POWER TOOLS LTD,No
Http://opendatacommunities.org/id/metropolitan-district-council/leeds,Leeds City Council,31/05/2021,Resources and Housing,Leeds Building Services,Supplies and Services,Operational Furniture And Equipment,203,14/05/2021,2105-00499,0.00,176.70,R,AJM FIXINGS & POWER TOOLS LTD,No
Http://opendatacommunities.org/id/metropolitan-district-council/leeds,Leeds City Council,31/05/2021,Resources and Housing,Leeds Building Services,Supplies and Services,Operational Furniture And Equipment,203,18/05/2021,2105-00500,0.00,67.29,R,AJM FIXINGS & POWER TOOLS LTD,No
Http://opendatacommunities.org/id/metropolitan-district-council/leeds,Leeds City Council,31/05/2021,Resources and Housing,Leeds Building Services,Supplies and Services,Operational Furniture And Equipment,203,18/05/2021,2105-00501,0.00,78.80,R,AJM FIXINGS & POWER TOOLS LTD,No
Http://opendatacommunities.org/id/metropolitan-district-council/leeds,Leeds City Council,31/05/2021,Resources and Housing,Leeds Building Services,Supplies and Services,Operational Furniture And Equipment,203,18/05/2021,2105-00502,0.00,212.46,R,AJM FIXINGS & POWER TOOLS LTD,No
Http://opendatacommunities.org/id/metropolitan-district-council/leeds,Leeds City Council,31/05/2021,Resources and Housing,Leeds Building Services,Supplies and Services,Operational Furniture And Equipment,203,18/05/2021,2105-00503,0.00,258.75,R,AJM FIXINGS & POWER TOOLS LTD,No
Http://opendatacommunities.org/id/metropolitan-district-council/leeds,Leeds City Council,31/05/2021,Resources and Housing,Leeds Building Services,Supplies and Services,Operational Furniture And Equipment,203,21/05/2021,2105-00504,0.00,406.00,R,AJM FIXINGS & POWER TOOLS LTD,No
Http://opendatacommunities.org/id/metropolitan-district-council/leeds,Leeds City Council,31/05/2021,Resources and Housing,Leeds Building Services,Supplies and Services,Operational Furniture And Equipment,203,21/05/2021,2105-00505,0.00,107.50,R,AJM FIXINGS & POWER TOOLS LTD,No
Http://opendatacommunities.org/id/metropolitan-district-council/leeds,Leeds City Council,31/05/2021,Resources and Housing,Leeds Building Services,Supplies and Services,Operational Furniture And Equipment,203,25/05/2021,2105-00506,0.00,98.45,R,AJM FIXINGS & POWER TOOLS LTD,No
Http://opendatacommunities.org/id/metropolitan-district-council/leeds,Leeds City Council,31/05/2021,Resources and Housing,Leeds Building Services,Supplies and Services,STORES - CENTRAL AND OTHER DEPOTS,005,25/05/2021,2105-00507,0.00,2436.90,R,AJM FIXINGS & POWER TOOLS LTD,No
Http://opendatacommunities.org/id/metropolitan-district-council/leeds,Leeds City Council,31/05/2021,Resources and Housing,Leeds Building Services,Supplies and Services,STORES - CENTRAL AND OTHER DEPOTS,005,25/05/2021,2105-00508,0.00,1204.66,R,AJM FIXINGS & POWER TOOLS LTD,No
Http://opendatacommunities.org/id/metropolitan-district-council/leeds,Leeds City Council,31/05/2021,Resources and Housing,Leeds Building Services,Supplies and Services,Operational Furniture And Equipment,203,27/05/2021,2105-00509,0.00,63.20,R,AJM FIXINGS & POWER TOOLS LTD,No
Http://opendatacommunities.org/id/metropolitan-district-council/leeds,Leeds City Council,31/05/2021,Resources and Housing,Leeds Building Services,Supplies and Services,Operational Furniture And Equipment,203,28/05/2021,2105-00510,0.00,1433.28,R,AJM FIXINGS & POWER TOOLS LTD,No
Http://opendatacommunities.org/id/metropolitan-district-council/leeds,Leeds City Council,31/05/2021,City Development,Economic Development,Supplies and Services,Grant Related Expenditure,290,04/05/2021,2105-00511,0.00,500.00,R,"Akhtar Jaji
",No
Http://opendatacommunities.org/id/metropolitan-district-council/leeds,Leeds City Council,31/05/2021,Communities and Environment,Benefits Welfare and Poverty,Supplies and Services,Grant Related Expenditure,298,17/05/2021,2105-00512,0.00,500.00,R,REDACTED PERSONAL DATA,No
Http://opendatacommunities.org/id/metropolitan-district-council/leeds,Leeds City Council,31/05/2021,City Development,Economic Development,Supplies and Services,Grant Related Expenditure,290,14/05/2021,2105-00513,0.00,3313.00,R,Akmals Tandoori Bistro,No
Http://opendatacommunities.org/id/metropolitan-district-council/leeds,Leeds City Council,31/05/2021,Resources and Housing,Strategic Housing Partnerships,Capital,CONSTRUCTION,3,07/05/2021,2105-00514,0.00,8000.00,C,AKR Construction Ltd,No
Http://opendatacommunities.org/id/metropolitan-district-council/leeds,Leeds City Council,31/05/2021,Communities and Environment,Waste Management,Premises,Cleaning Maintenance & Toiletries,127,12/05/2021,2105-00515,0.00,130.00,R,Akua Uk Ltd,No
Http://opendatacommunities.org/id/metropolitan-district-council/leeds,Leeds City Council,31/05/2021,Resources and Housing,Commercial Services,Supplies and Services,Operational Materials,205,21/05/2021,2105-00516,0.00,130.00,R,Akua Uk Ltd,No
Http://opendatacommunities.org/id/metropolitan-district-council/leeds,Leeds City Council,31/05/2021,Resources and Housing,Commercial Services,Supplies and Services,Clothing & Uniforms,241,21/05/2021,2105-00517,0.00,30.00,R,REDACTED PERSONAL DATA,No
Http://opendatacommunities.org/id/metropolitan-district-council/leeds,Leeds City Council,31/05/2021,Resources and Housing,Human Resources,Supplies and Services,Conference Meetings,253,28/04/2021,2105-00518,0.00,35.00,R,Alan Brown Flowers,Yes
Http://opendatacommunities.org/id/metropolitan-district-council/leeds,Leeds City Council,31/05/2021,Resources and Housing,Democratic Services,Premises,Grounds Maintenance Work,111,29/04/2021,2105-00519,0.00,35.00,R,Alan Brown Flowers,Yes
Http://opendatacommunities.org/id/metropolitan-district-council/leeds,Leeds City Council,31/05/2021,Communities and Environment,Benefits Welfare and Poverty,Supplies and Services,Grant Related Expenditure,290,18/05/2021,2105-00520,0.00,15.00,R,REDACTED PERSONAL DATA,No
Http://opendatacommunities.org/id/metropolitan-district-council/leeds,Leeds City Council,31/05/2021,City Development,Economic Development,Supplies and Services,Grant Related Expenditure,290,28/05/2021,2105-00521,0.00,500.00,R,Alan Shires Voice Over,No
Http://opendatacommunities.org/id/metropolitan-district-council/leeds,Leeds City Council,31/05/2021,Children and Families,Social Care,Agency Payments,Services Rendered By Other Organisations,511,07/05/2021,2105-00522,0.00,608.79,R,REDACTED PERSONAL DATA,No
Http://opendatacommunities.org/id/metropolitan-district-council/leeds,Leeds City Council,31/05/2021,Children and Families,Social Care,Supplies and Services,Computer Software & Equipment,214,23/04/2021,2105-00523,0.00,44.18,R,Albelli Bonusprint,Yes
Http://opendatacommunities.org/id/metropolitan-district-council/leeds,Leeds City Council,31/05/2021,Children and Families,Social Care,Supplies and Services,Computer Software & Equipment,214,29/04/2021,2105-00524,0.00,44.18,R,Albelli Bonusprint,Yes
Http://opendatacommunities.org/id/metropolitan-district-council/leeds,Leeds City Council,31/05/2021,Communities and Environment,Communities,Supplies and Services,Computer Software & Equipment,214,20/05/2021,2105-00525,0.00,1228.33,R,Alcium Software Ltd,No
Http://opendatacommunities.org/id/metropolitan-district-council/leeds,Leeds City Council,31/05/2021,Children and Families,Social Care,Supplies and Services,Food & Drink,231,09/04/2021,2105-00526,0.00,1.29,R,Aldi,Yes
Http://opendatacommunities.org/id/metropolitan-district-council/leeds,Leeds City Council,31/05/2021,Children and Families,Social Care,Supplies and Services,Food & Drink,231,17/04/2021,2105-00527,0.00,18.65,R,Aldi 40 779,Yes
Http://opendatacommunities.org/id/metropolitan-district-council/leeds,Leeds City Council,31/05/2021,Children and Families,Social Care,Supplies and Services,Food & Drink,231,25/04/2021,2105-00528,0.00,54.53,R,Aldi 40 779,Yes
Http://opendatacommunities.org/id/metropolitan-district-council/leeds,Leeds City Council,31/05/2021,Children and Families,Social Care,Agency Payments,Section 17,551,07/04/2021,2105-00529,0.00,37.30,R,Aldi 71 779,Yes
Http://opendatacommunities.org/id/metropolitan-district-council/leeds,Leeds City Council,31/05/2021,Children and Families,Social Care,Agency Payments,Placement Support,550,14/04/2021,2105-00530,0.00,30.06,R,Aldi 71 779,Yes
Http://opendatacommunities.org/id/metropolitan-district-council/leeds,Leeds City Council,31/05/2021,City Development,Recreation,Supplies and Services,Operational Materials,205,14/04/2021,2105-00531,0.00,2.07,R,Aldi 779-126,Yes
Http://opendatacommunities.org/id/metropolitan-district-council/leeds,Leeds City Council,31/05/2021,Resources and Housing,Strategic Housing Partnership & Support,Supplies and Services,Other Hired And Contracted Services,265,22/04/2021,2105-00532,0.00,19.12,R,Aldi 88 779,Yes
Http://opendatacommunities.org/id/metropolitan-district-council/leeds,Leeds City Council,31/05/2021,Children and Families,Social Care,Supplies and Services,Food & Drink,231,02/04/2021,2105-00533,0.00,24.67,R,Aldi 89 779,Yes
Http://opendatacommunities.org/id/metropolitan-district-council/leeds,Leeds City Council,31/05/2021,Children and Families,Social Care,Supplies and Services,Food & Drink,231,12/04/2021,2105-00534,0.00,68.06,R,Aldi 89 779,Yes
Http://opendatacommunities.org/id/metropolitan-district-council/leeds,Leeds City Council,31/05/2021,Resources and Housing,Strategic Housing Partnership & Support,Supplies and Services,Other Hired And Contracted Services,265,23/04/2021,2105-00535,0.00,46.57,R,Aldi 89 779,Yes
Http://opendatacommunities.org/id/metropolitan-district-council/leeds,Leeds City Council,31/05/2021,Children and Families,Social Care,Agency Payments,Allowances,546,20/04/2021,2105-00536,0.00,4.16,R,Aldi Stores,Yes
Http://opendatacommunities.org/id/metropolitan-district-council/leeds,Leeds City Council,31/05/2021,Resources and Housing,Sustainable Energy & Climate Change,Capital,OTHER COSTS,7,04/05/2021,2105-00537,0.00,2100.00,C,REDACTED COMMERCIAL CONFIDENTIALITY,No
Http://opendatacommunities.org/id/metropolitan-district-council/leeds,Leeds City Council,31/05/2021,Children and Families,Social Care,Agency Payments,Contact,548,04/05/2021,2105-00538,0.00,9.40,R,REDACTED PERSONAL DATA,No
Http://opendatacommunities.org/id/metropolitan-district-council/leeds,Leeds City Council,31/05/2021,Children and Families,Social Care,Agency Payments,Contact,548,11/05/2021,2105-00539,0.00,9.40,R,REDACTED PERSONAL DATA,No
Http://opendatacommunities.org/id/metropolitan-district-council/leeds,Leeds City Council,31/05/2021,Children and Families,Social Care,Agency Payments,Contact,548,18/05/2021,2105-00540,0.00,9.40,R,REDACTED PERSONAL DATA,No
Http://opendatacommunities.org/id/metropolitan-district-council/leeds,Leeds City Council,31/05/2021,Children and Families,Social Care,Agency Payments,Contact,548,25/05/2021,2105-00541,0.00,9.40,R,REDACTED PERSONAL DATA,No
Http://opendatacommunities.org/id/metropolitan-district-council/leeds,Leeds City Council,31/05/2021,Communities and Environment,Customer Access,Supplies and Services,Bought In Professional Services,277,06/05/2021,2105-00542,0.00,18.00,R,Alena Zueva,No
Http://opendatacommunities.org/id/metropolitan-district-council/leeds,Leeds City Council,31/05/2021,Communities and Environment,Customer Access,Supplies and Services,Bought In Professional Services,277,12/05/2021,2105-00543,0.00,9.00,R,Alena Zueva,No
Http://opendatacommunities.org/id/metropolitan-district-council/leeds,Leeds City Council,31/05/2021,Communities and Environment,Customer Access,Supplies and Services,Bought In Professional Services,277,12/05/2021,2105-00544,0.00,33.00,R,Alena Zueva,No
Http://opendatacommunities.org/id/metropolitan-district-council/leeds,Leeds City Council,31/05/2021,Communities and Environment,Customer Access,Supplies and Services,Bought In Professional Services,277,19/05/2021,2105-00545,0.00,43.50,R,Alena Zueva,No
Http://opendatacommunities.org/id/metropolitan-district-council/leeds,Leeds City Council,31/05/2021,Communities and Environment,Customer Access,Supplies and Services,Bought In Professional Services,277,26/05/2021,2105-00546,0.00,43.50,R,Alena Zueva,No
Http://opendatacommunities.org/id/metropolitan-district-council/leeds,Leeds City Council,31/05/2021,Communities and Environment,Customer Access,Supplies and Services,Bought In Professional Services,277,26/05/2021,2105-00547,0.00,25.50,R,Alena Zueva,No
Http://opendatacommunities.org/id/metropolitan-district-council/leeds,Leeds City Council,31/05/2021,City Development,Recreation,External Income,Sporting & Other Recreational Fees,928,11/05/2021,2105-00548,0.00,24.95,R,REDACTED PERSONAL DATA,No
Http://opendatacommunities.org/id/metropolitan-district-council/leeds,Leeds City Council,31/05/2021,Communities and Environment,Benefits Welfare and Poverty,Supplies and Services,Grant Related Expenditure,298,12/05/2021,2105-00549,0.00,500.00,R,REDACTED PERSONAL DATA,No
Http://opendatacommunities.org/id/metropolitan-district-council/leeds,Leeds City Council,31/05/2021,Children and Families,Social Care,Supplies and Services,General Amenity For Clients/Residents,285,07/05/2021,2105-00550,0.00,20.00,R,REDACTED PERSONAL DATA,No
Http://opendatacommunities.org/id/metropolitan-district-council/leeds,Leeds City Council,31/05/2021,Children and Families,Social Care,Transport,Public Transport Expenses,310,07/05/2021,2105-00551,0.00,4.24,R,REDACTED PERSONAL DATA,No
Http://opendatacommunities.org/id/metropolitan-district-council/leeds,Leeds City Council,31/05/2021,Strategic Landlord,Property and Contracts,Internal Recharges,Legal Disbursements,411,12/05/2021,2105-00552,0.00,367.21,R,Alex Taylor,No
Http://opendatacommunities.org/id/metropolitan-district-council/leeds,Leeds City Council,31/05/2021,Resources and Housing,Commercial Services,Supplies and Services,Other Hired And Contracted Services,265,19/05/2021,2105-00553,0.00,180.00,R,ALEX WAGG,No
Http://opendatacommunities.org/id/metropolitan-district-council/leeds,Leeds City Council,31/05/2021,Resources and Housing,Commercial Services,Supplies and Services,Other Hired And Contracted Services,265,19/05/2021,2105-00554,0.00,80.00,R,ALEX WAGG,No
Http://opendatacommunities.org/id/metropolitan-district-council/leeds,Leeds City Council,31/05/2021,Resources and Housing,Commercial Services,Supplies and Services,Other Hired And Contracted Services,265,21/05/2021,2105-00555,0.00,80.00,R,ALEX WAGG,No
Http://opendatacommunities.org/id/metropolitan-district-council/leeds,Leeds City Council,31/05/2021,Resources and Housing,Commercial Services,Supplies and Services,Other Hired And Contracted Services,265,21/05/2021,2105-00556,0.00,60.00,R,ALEX WAGG,No
Http://opendatacommunities.org/id/metropolitan-district-council/leeds,Leeds City Council,31/05/2021,Resources and Housing,Commercial Services,Supplies and Services,Other Hired And Contracted Services,265,21/05/2021,2105-00557,0.00,437.15,R,ALEX WAGG,No
Http://opendatacommunities.org/id/metropolitan-district-council/leeds,Leeds City Council,31/05/2021,Resources and Housing,Commercial Services,Supplies and Services,Other Hired And Contracted Services,265,21/05/2021,2105-00558,0.00,40.00,R,ALEX WAGG,No
Http://opendatacommunities.org/id/metropolitan-district-council/leeds,Leeds City Council,31/05/2021,Resources and Housing,Commercial Services,Supplies and Services,Other Hired And Contracted Services,265,21/05/2021,2105-00559,0.00,40.00,R,ALEX WAGG,No
Http://opendatacommunities.org/id/metropolitan-district-council/leeds,Leeds City Council,31/05/2021,Resources and Housing,Commercial Services,Supplies and Services,Other Hired And Contracted Services,265,21/05/2021,2105-00560,0.00,80.00,R,ALEX WAGG,No
Http://opendatacommunities.org/id/metropolitan-district-council/leeds,Leeds City Council,31/05/2021,Resources and Housing,Commercial Services,Supplies and Services,Other Hired And Contracted Services,265,26/05/2021,2105-00561,0.00,337.00,R,ALEX WAGG,No
Http://opendatacommunities.org/id/metropolitan-district-council/leeds,Leeds City Council,31/05/2021,Resources and Housing,Commercial Services,Supplies and Services,Other Hired And Contracted Services,265,26/05/2021,2105-00562,0.00,312.00,R,ALEX WAGG,No
Http://opendatacommunities.org/id/metropolitan-district-council/leeds,Leeds City Council,31/05/2021,Resources and Housing,Commercial Services,Supplies and Services,Other Hired And Contracted Services,265,28/05/2021,2105-00563,0.00,40.00,R,ALEX WAGG,No
Http://opendatacommunities.org/id/metropolitan-district-council/leeds,Leeds City Council,31/05/2021,Resources and Housing,Commercial Services,Supplies and Services,Other Hired And Contracted Services,265,28/05/2021,2105-00564,0.00,175.45,R,ALEX WAGG,No
Http://opendatacommunities.org/id/metropolitan-district-council/leeds,Leeds City Council,31/05/2021,Resources and Housing,Commercial Services,Supplies and Services,Other Hired And Contracted Services,265,28/05/2021,2105-00565,0.00,180.00,R,ALEX WAGG,No
Http://opendatacommunities.org/id/metropolitan-district-council/leeds,Leeds City Council,31/05/2021,Resources and Housing,Commercial Services,Supplies and Services,Other Hired And Contracted Services,265,28/05/2021,2105-00566,0.00,140.00,R,ALEX WAGG,No
Http://opendatacommunities.org/id/metropolitan-district-council/leeds,Leeds City Council,31/05/2021,Resources and Housing,Commercial Services,Supplies and Services,Other Hired And Contracted Services,265,28/05/2021,2105-00567,0.00,120.00,R,ALEX WAGG,No
Http://opendatacommunities.org/id/metropolitan-district-council/leeds,Leeds City Council,31/05/2021,Resources and Housing,Commercial Services,Supplies and Services,Other Hired And Contracted Services,265,28/05/2021,2105-00568,0.00,100.00,R,ALEX WAGG,No
Http://opendatacommunities.org/id/metropolitan-district-council/leeds,Leeds City Council,31/05/2021,Resources and Housing,Commercial Services,Supplies and Services,Other Hired And Contracted Services,265,28/05/2021,2105-00569,0.00,474.00,R,ALEX WAGG,No
Http://opendatacommunities.org/id/metropolitan-district-council/leeds,Leeds City Council,31/05/2021,Resources and Housing,Commercial Services,Supplies and Services,Other Hired And Contracted Services,265,28/05/2021,2105-00570,0.00,100.00,R,ALEX WAGG,No
Http://opendatacommunities.org/id/metropolitan-district-council/leeds,Leeds City Council,31/05/2021,Resources and Housing,Commercial Services,Supplies and Services,Other Hired And Contracted Services,265,28/05/2021,2105-00571,0.00,30.00,R,ALEX WAGG,No
Http://opendatacommunities.org/id/metropolitan-district-council/leeds,Leeds City Council,31/05/2021,Resources and Housing,Commercial Services,Supplies and Services,Other Hired And Contracted Services,265,28/05/2021,2105-00572,0.00,100.00,R,ALEX WAGG,No
Http://opendatacommunities.org/id/metropolitan-district-council/leeds,Leeds City Council,31/05/2021,Resources and Housing,Commercial Services,Supplies and Services,Other Hired And Contracted Services,265,28/05/2021,2105-00573,0.00,60.00,R,ALEX WAGG,No
Http://opendatacommunities.org/id/metropolitan-district-council/leeds,Leeds City Council,31/05/2021,Resources and Housing,Commercial Services,Supplies and Services,Other Hired And Contracted Services,265,28/05/2021,2105-00574,0.00,40.00,R,ALEX WAGG,No
Http://opendatacommunities.org/id/metropolitan-district-council/leeds,Leeds City Council,31/05/2021,Resources and Housing,Commercial Services,Supplies and Services,Other Hired And Contracted Services,265,28/05/2021,2105-00575,0.00,257.00,R,ALEX WAGG,No
Http://opendatacommunities.org/id/metropolitan-district-council/leeds,Leeds City Council,31/05/2021,Resources and Housing,Commercial Services,Supplies and Services,Other Hired And Contracted Services,265,28/05/2021,2105-00576,0.00,200.00,R,ALEX WAGG,No
Http://opendatacommunities.org/id/metropolitan-district-council/leeds,Leeds City Council,31/05/2021,Resources and Housing,Commercial Services,Supplies and Services,Other Hired And Contracted Services,265,28/05/2021,2105-00577,0.00,100.00,R,ALEX WAGG,No
Http://opendatacommunities.org/id/metropolitan-district-council/leeds,Leeds City Council,31/05/2021,Resources and Housing,Commercial Services,Supplies and Services,Other Hired And Contracted Services,265,28/05/2021,2105-00578,0.00,100.00,R,ALEX WAGG,No
Http://opendatacommunities.org/id/metropolitan-district-council/leeds,Leeds City Council,31/05/2021,Resources and Housing,Commercial Services,Supplies and Services,Other Hired And Contracted Services,265,28/05/2021,2105-00579,0.00,257.00,R,ALEX WAGG,No
Http://opendatacommunities.org/id/metropolitan-district-council/leeds,Leeds City Council,31/05/2021,Resources and Housing,Commercial Services,Supplies and Services,Other Hired And Contracted Services,265,28/05/2021,2105-00580,0.00,100.00,R,ALEX WAGG,No
Http://opendatacommunities.org/id/metropolitan-district-council/leeds,Leeds City Council,31/05/2021,Resources and Housing,Commercial Services,Supplies and Services,Other Hired And Contracted Services,265,28/05/2021,2105-00581,0.00,80.00,R,ALEX WAGG,No
Http://opendatacommunities.org/id/metropolitan-district-council/leeds,Leeds City Council,31/05/2021,Resources and Housing,Commercial Services,Supplies and Services,Other Hired And Contracted Services,265,28/05/2021,2105-00582,0.00,60.00,R,ALEX WAGG,No
Http://opendatacommunities.org/id/metropolitan-district-council/leeds,Leeds City Council,31/05/2021,Communities and Environment,Benefits Welfare and Poverty,Supplies and Services,Grant Related Expenditure,298,07/05/2021,2105-00583,0.00,500.00,R,REDACTED PERSONAL DATA,No
Http://opendatacommunities.org/id/metropolitan-district-council/leeds,Leeds City Council,31/05/2021,Adults and Health,Services For Older People - 65 And Over,Agency Payments,Residential Care Dementia,571,26/05/2021,2105-00584,0.00,20066.25,R,ALEXANDER RESIDENTIAL HOME,No
Http://opendatacommunities.org/id/metropolitan-district-council/leeds,Leeds City Council,31/05/2021,Adults and Health,Services For Older People - 65 And Over,Agency Payments,Residential,580,26/05/2021,2105-00585,0.00,17311.29,R,ALEXANDER RESIDENTIAL HOME,No
Http://opendatacommunities.org/id/metropolitan-district-council/leeds,Leeds City Council,31/05/2021,Adults and Health,Services For Older People Under 65 P/Dis,Agency Payments,Residential Care Dementia,571,26/05/2021,2105-00586,0.00,2094.40,R,ALEXANDER RESIDENTIAL HOME,No
Http://opendatacommunities.org/id/metropolitan-district-council/leeds,Leeds City Council,31/05/2021,Communities and Environment,Customer Access,Supplies and Services,Bought In Professional Services,277,12/05/2021,2105-00587,0.00,36.00,R,Alexandra Costenco,No
Http://opendatacommunities.org/id/metropolitan-district-council/leeds,Leeds City Council,31/05/2021,Communities and Environment,Customer Access,Supplies and Services,Bought In Professional Services,277,12/05/2021,2105-00588,0.00,45.00,R,Alexandra Costenco,No
Http://opendatacommunities.org/id/metropolitan-district-council/leeds,Leeds City Council,31/05/2021,Communities and Environment,Customer Access,Supplies and Services,Bought In Professional Services,277,12/05/2021,2105-00589,0.00,54.00,R,Alexandra Costenco,No
Http://opendatacommunities.org/id/metropolitan-district-council/leeds,Leeds City Council,31/05/2021,Adults and Health,Services For Older People - 65 And Over,Agency Payments,Residential Care Dementia,571,26/05/2021,2105-00590,0.00,12867.54,R,ALEXANDRA COURT,No
Http://opendatacommunities.org/id/metropolitan-district-council/leeds,Leeds City Council,31/05/2021,Adults and Health,Services For Older People - 65 And Over,Agency Payments,Residential,580,26/05/2021,2105-00591,0.00,6146.56,R,ALEXANDRA COURT,No
Http://opendatacommunities.org/id/metropolitan-district-council/leeds,Leeds City Council,31/05/2021,Children and Families,Social Care,Agency Payments,Services Rendered By Other Organisations,511,05/05/2021,2105-00592,0.00,783.90,R,REDACTED PERSONAL DATA,No
Http://opendatacommunities.org/id/metropolitan-district-council/leeds,Leeds City Council,31/05/2021,Adults and Health,Services For Older People - 65 And Over,Supplies and Services,Clothing & Uniforms,241,12/04/2021,2105-00593,0.00,119.92,R,Alexandra Website,Yes
Http://opendatacommunities.org/id/metropolitan-district-council/leeds,Leeds City Council,31/05/2021,Communities and Environment,Benefits Welfare and Poverty,Supplies and Services,Grant Related Expenditure,298,06/05/2021,2105-00594,0.00,500.00,R,REDACTED PERSONAL DATA,No
Http://opendatacommunities.org/id/metropolitan-district-council/leeds,Leeds City Council,31/05/2021,Children and Families,Social Care,Agency Payments,Allowances,546,05/05/2021,2105-00595,0.00,100.00,R,REDACTED PERSONAL DATA,No
Http://opendatacommunities.org/id/metropolitan-district-council/leeds,Leeds City Council,31/05/2021,Resources and Housing,Leeds Building Services,Supplies and Services,Other Hired And Contracted Services,265,04/05/2021,2105-00596,0.00,2305.00,R,Alfred Bagnall & Sons (Leeds) Ltd,No
Http://opendatacommunities.org/id/metropolitan-district-council/leeds,Leeds City Council,31/05/2021,Resources and Housing,Facilities Management,Premises,Maintenance Of Buildings,101,14/05/2021,2105-00597,0.00,5780.00,R,Alfred Bagnall & Sons (Leeds) Ltd,No
Http://opendatacommunities.org/id/metropolitan-district-council/leeds,Leeds City Council,31/05/2021,Resources and Housing,Corporate Property Management,Capital,CONSTRUCTION,3,14/05/2021,2105-00598,0.00,5980.00,C,Alfred Bagnall & Sons (Leeds) Ltd,No
Http://opendatacommunities.org/id/metropolitan-district-council/leeds,Leeds City Council,31/05/2021,Resources and Housing,Corporate Property Management,Capital,CONSTRUCTION,3,17/05/2021,2105-00599,0.00,8877.17,C,Alfred Bagnall & Sons (Leeds) Ltd,No
Http://opendatacommunities.org/id/metropolitan-district-council/leeds,Leeds City Council,31/05/2021,Resources and Housing,Corporate Property Management,Capital,CONSTRUCTION,3,17/05/2021,2105-00600,0.00,9826.77,C,Alfred Bagnall & Sons (Leeds) Ltd,No
Http://opendatacommunities.org/id/metropolitan-district-council/leeds,Leeds City Council,31/05/2021,Resources and Housing,Leeds Building Services,Supplies and Services,Other Hired And Contracted Services,265,18/05/2021,2105-00601,0.00,2800.50,R,Alfred Bagnall & Sons (Leeds) Ltd,No
Http://opendatacommunities.org/id/metropolitan-district-council/leeds,Leeds City Council,31/05/2021,Resources and Housing,Leeds Building Services,Supplies and Services,Other Hired And Contracted Services,265,25/05/2021,2105-00602,0.00,5000.00,R,Alfred Bagnall & Sons (Leeds) Ltd,No
Http://opendatacommunities.org/id/metropolitan-district-council/leeds,Leeds City Council,31/05/2021,City Development,Markets & City Centre Management,Supplies and Services,Advertising,211,08/04/2021,2105-00603,0.00,295.75,R,Alfreshco,Yes
Http://opendatacommunities.org/id/metropolitan-district-council/leeds,Leeds City Council,31/05/2021,City Development,Libraries Arts & Heritage,Supplies and Services,Computer Software & Equipment,214,26/04/2021,2105-00604,0.00,427.40,R,Alg Leefr140695202104,Yes
Http://opendatacommunities.org/id/metropolitan-district-council/leeds,Leeds City Council,31/05/2021,Resources and Housing,Sustainable Energy & Climate Change,Capital,OTHER COSTS,7,25/05/2021,2105-00605,0.00,2100.00,C,REDACTED COMMERCIAL CONFIDENTIALITY,No
Http://opendatacommunities.org/id/metropolitan-district-council/leeds,Leeds City Council,31/05/2021,Communities and Environment,Customer Access,Supplies and Services,Bought In Professional Services,277,06/05/2021,2105-00606,0.00,22.50,R,Ali Pourakaberian,No
Http://opendatacommunities.org/id/metropolitan-district-council/leeds,Leeds City Council,31/05/2021,Communities and Environment,Customer Access,Supplies and Services,Bought In Professional Services,277,06/05/2021,2105-00607,0.00,18.00,R,Ali Pourakaberian,No
Http://opendatacommunities.org/id/metropolitan-district-council/leeds,Leeds City Council,31/05/2021,Communities and Environment,Customer Access,Supplies and Services,Bought In Professional Services,277,12/05/2021,2105-00608,0.00,27.00,R,Ali Pourakaberian,No
Http://opendatacommunities.org/id/metropolitan-district-council/leeds,Leeds City Council,31/05/2021,Communities and Environment,Customer Access,Supplies and Services,Bought In Professional Services,277,19/05/2021,2105-00609,0.00,38.50,R,Ali Pourakaberian,No
Http://opendatacommunities.org/id/metropolitan-district-council/leeds,Leeds City Council,31/05/2021,Communities and Environment,Customer Access,Supplies and Services,Bought In Professional Services,277,19/05/2021,2105-00610,0.00,18.00,R,Ali Pourakaberian,No
Http://opendatacommunities.org/id/metropolitan-district-council/leeds,Leeds City Council,31/05/2021,Communities and Environment,Customer Access,Supplies and Services,Bought In Professional Services,277,26/05/2021,2105-00611,0.00,18.00,R,Ali Pourakaberian,No
Http://opendatacommunities.org/id/metropolitan-district-council/leeds,Leeds City Council,31/05/2021,City Development,Libraries Arts & Heritage,Supplies and Services,Bought In Professional Services,277,25/05/2021,2105-00612,0.00,2743.39,R,Alice Mary Duggan,No
Http://opendatacommunities.org/id/metropolitan-district-council/leeds,Leeds City Council,31/05/2021,Communities and Environment,Benefits Welfare and Poverty,Supplies and Services,Grant Related Expenditure,298,11/05/2021,2105-00613,0.00,500.00,R,REDACTED PERSONAL DATA,No
Http://opendatacommunities.org/id/metropolitan-district-council/leeds,Leeds City Council,31/05/2021,Children and Families,Social Care,Agency Payments,Services Rendered By Other Organisations,511,07/05/2021,2105-00614,0.00,739.25,R,REDACTED PERSONAL DATA,No
Http://opendatacommunities.org/id/metropolitan-district-council/leeds,Leeds City Council,31/05/2021,Strategic Landlord,Property and Contracts,Internal Recharges,Legal Disbursements,411,20/05/2021,2105-00615,0.00,367.21,R,Alison Law Solicitors,No
Http://opendatacommunities.org/id/metropolitan-district-council/leeds,Leeds City Council,31/05/2021,Strategic Landlord,Property and Contracts,Internal Recharges,Legal Disbursements,411,20/05/2021,2105-00616,0.00,2423.15,R,Alison Law Solicitors,No
Http://opendatacommunities.org/id/metropolitan-district-council/leeds,Leeds City Council,31/05/2021,City Development,Recreation,External Income,Sporting & Other Recreational Fees,928,26/05/2021,2105-00617,0.00,49.90,R,REDACTED PERSONAL DATA,No
Http://opendatacommunities.org/id/metropolitan-district-council/leeds,Leeds City Council,31/05/2021,Communities and Environment,Car Parking Services,External Income,Penalties Fines & Car Parking Charges,934,25/05/2021,2105-00618,0.00,5.20,R,REDACTED PERSONAL DATA,No
Http://opendatacommunities.org/id/metropolitan-district-council/leeds,Leeds City Council,31/05/2021,Children and Families,Social Care,Appropriations,Leaving Care Allowances,634,27/05/2021,2105-00619,0.00,246.44,R,REDACTED PERSONAL DATA,No
Http://opendatacommunities.org/id/metropolitan-district-council/leeds,Leeds City Council,31/05/2021,Communities and Environment,Elections Licensing and Registration,Premises,Rents,141,18/05/2021,2105-00620,0.00,350.00,R,All Souls Church General Account,No
Http://opendatacommunities.org/id/metropolitan-district-council/leeds,Leeds City Council,31/05/2021,Children and Families,Social Care,Agency Payments,Services Rendered By Other Organisations,511,05/05/2021,2105-00621,0.00,836.16,R,All Stars Childcare,No
Http://opendatacommunities.org/id/metropolitan-district-council/leeds,Leeds City Council,31/05/2021,Children and Families,Social Care,Agency Payments,Services Rendered By Other Organisations,511,07/05/2021,2105-00622,0.00,10088.52,R,All Stars Childcare,No
Http://opendatacommunities.org/id/metropolitan-district-council/leeds,Leeds City Council as Accountable Body,31/05/2021,Social Services Pooled Budgets,Jcs For People With Learning Disabilitie,Agency Payments,Sheltered Accommodation,569,26/05/2021,2105-00623,0.00,62735.22,R,Allerton Avenue,No
Http://opendatacommunities.org/id/metropolitan-district-council/leeds,Leeds City Council,31/05/2021,Communities and Environment,Elections Licensing and Registration,Premises,Rents,141,18/05/2021,2105-00624,0.00,160.00,R,ALLERTON BYWATER COMMUNITY PARTNERSHIP,No
Http://opendatacommunities.org/id/metropolitan-district-council/leeds,Leeds City Council,31/05/2021,Adults and Health,Public Health,Agency Payments,Public Health Commissioned Services,526,21/05/2021,2105-00625,0.00,1989.60,R,Allerton Medical Centre,No
Http://opendatacommunities.org/id/metropolitan-district-council/leeds,Leeds City Council,31/05/2021,Adults and Health,Services For Older People - 65 And Over,Agency Payments,Nursing Care Dementia,574,26/05/2021,2105-00626,0.00,2390.08,R,ALLERTON PARK N H,No
Http://opendatacommunities.org/id/metropolitan-district-council/leeds,Leeds City Council,31/05/2021,Communities and Environment,Parks and Countryside,Supplies and Services,Food & Drink,231,22/04/2021,2105-00627,0.00,35.17,R,Alliance Disposables,Yes
Http://opendatacommunities.org/id/metropolitan-district-council/leeds,Leeds City Council,31/05/2021,Resources and Housing,Commercial Services,Supplies and Services,Operational Materials,205,06/05/2021,2105-00628,0.00,61.86,R,ALLIANCE DISPOSABLES LTD,No
Http://opendatacommunities.org/id/metropolitan-district-council/leeds,Leeds City Council,31/05/2021,Resources and Housing,Commercial Services,Supplies and Services,Operational Materials,205,06/05/2021,2105-00629,0.00,123.72,R,ALLIANCE DISPOSABLES LTD,No
Http://opendatacommunities.org/id/metropolitan-district-council/leeds,Leeds City Council,31/05/2021,Resources and Housing,Commercial Services,Supplies and Services,Operational Materials,205,06/05/2021,2105-00630,0.00,123.72,R,ALLIANCE DISPOSABLES LTD,No
Http://opendatacommunities.org/id/metropolitan-district-council/leeds,Leeds City Council,31/05/2021,Resources and Housing,Commercial Services,Supplies and Services,Operational Materials,205,06/05/2021,2105-00631,0.00,123.72,R,ALLIANCE DISPOSABLES LTD,No
Http://opendatacommunities.org/id/metropolitan-district-council/leeds,Leeds City Council,31/05/2021,Resources and Housing,Commercial Services,Supplies and Services,Operational Materials,205,06/05/2021,2105-00632,0.00,61.86,R,ALLIANCE DISPOSABLES LTD,No
Http://opendatacommunities.org/id/metropolitan-district-council/leeds,Leeds City Council,31/05/2021,Resources and Housing,Commercial Services,Supplies and Services,Operational Materials,205,12/05/2021,2105-00633,0.00,86.44,R,ALLIANCE DISPOSABLES LTD,No
Http://opendatacommunities.org/id/metropolitan-district-council/leeds,Leeds City Council,31/05/2021,Resources and Housing,Commercial Services,Supplies and Services,Operational Materials,205,12/05/2021,2105-00634,0.00,30.93,R,ALLIANCE DISPOSABLES LTD,No
Http://opendatacommunities.org/id/metropolitan-district-council/leeds,Leeds City Council,31/05/2021,Resources and Housing,Commercial Services,Supplies and Services,Operational Materials,205,14/05/2021,2105-00635,0.00,61.86,R,ALLIANCE DISPOSABLES LTD,No
Http://opendatacommunities.org/id/metropolitan-district-council/leeds,Leeds City Council,31/05/2021,Resources and Housing,Commercial Services,Supplies and Services,Operational Materials,205,14/05/2021,2105-00636,0.00,123.72,R,ALLIANCE DISPOSABLES LTD,No
Http://opendatacommunities.org/id/metropolitan-district-council/leeds,Leeds City Council,31/05/2021,Resources and Housing,Commercial Services,Supplies and Services,Operational Materials,205,14/05/2021,2105-00637,0.00,371.07,R,ALLIANCE DISPOSABLES LTD,No
Http://opendatacommunities.org/id/metropolitan-district-council/leeds,Leeds City Council,31/05/2021,Resources and Housing,Commercial Services,Supplies and Services,Operational Materials,205,18/05/2021,2105-00638,0.00,123.72,R,ALLIANCE DISPOSABLES LTD,No
Http://opendatacommunities.org/id/metropolitan-district-council/leeds,Leeds City Council,31/05/2021,Resources and Housing,Commercial Services,Supplies and Services,Operational Materials,205,18/05/2021,2105-00639,0.00,488.64,R,ALLIANCE DISPOSABLES LTD,No
Http://opendatacommunities.org/id/metropolitan-district-council/leeds,Leeds City Council,31/05/2021,Resources and Housing,Commercial Services,Supplies and Services,Operational Materials,205,18/05/2021,2105-00640,0.00,123.72,R,ALLIANCE DISPOSABLES LTD,No
Http://opendatacommunities.org/id/metropolitan-district-council/leeds,Leeds City Council,31/05/2021,Resources and Housing,Commercial Services,Supplies and Services,Operational Materials,205,19/05/2021,2105-00641,0.00,61.86,R,ALLIANCE DISPOSABLES LTD,No
Http://opendatacommunities.org/id/metropolitan-district-council/leeds,Leeds City Council,31/05/2021,Resources and Housing,Commercial Services,Supplies and Services,Operational Materials,205,19/05/2021,2105-00642,0.00,79.72,R,ALLIANCE DISPOSABLES LTD,No
Http://opendatacommunities.org/id/metropolitan-district-council/leeds,Leeds City Council,31/05/2021,Resources and Housing,Commercial Services,Supplies and Services,Operational Materials,205,19/05/2021,2105-00643,0.00,61.86,R,ALLIANCE DISPOSABLES LTD,No
Http://opendatacommunities.org/id/metropolitan-district-council/leeds,Leeds City Council,31/05/2021,Resources and Housing,Commercial Services,Supplies and Services,Operational Materials,205,19/05/2021,2105-00644,0.00,30.93,R,ALLIANCE DISPOSABLES LTD,No
Http://opendatacommunities.org/id/metropolitan-district-council/leeds,Leeds City Council,31/05/2021,Resources and Housing,Commercial Services,Supplies and Services,Operational Materials,205,19/05/2021,2105-00645,0.00,123.72,R,ALLIANCE DISPOSABLES LTD,No
Http://opendatacommunities.org/id/metropolitan-district-council/leeds,Leeds City Council,31/05/2021,Resources and Housing,Commercial Services,Supplies and Services,Operational Materials,205,19/05/2021,2105-00646,0.00,123.72,R,ALLIANCE DISPOSABLES LTD,No
Http://opendatacommunities.org/id/metropolitan-district-council/leeds,Leeds City Council,31/05/2021,Resources and Housing,Commercial Services,Supplies and Services,Operational Materials,205,19/05/2021,2105-00647,0.00,154.65,R,ALLIANCE DISPOSABLES LTD,No
Http://opendatacommunities.org/id/metropolitan-district-council/leeds,Leeds City Council,31/05/2021,Resources and Housing,Commercial Services,Supplies and Services,Operational Materials,205,21/05/2021,2105-00648,0.00,61.86,R,ALLIANCE DISPOSABLES LTD,No
Http://opendatacommunities.org/id/metropolitan-district-council/leeds,Leeds City Council,31/05/2021,Resources and Housing,Commercial Services,Supplies and Services,Operational Materials,205,21/05/2021,2105-00649,0.00,92.79,R,ALLIANCE DISPOSABLES LTD,No
Http://opendatacommunities.org/id/metropolitan-district-council/leeds,Leeds City Council,31/05/2021,Resources and Housing,Commercial Services,Supplies and Services,Operational Materials,205,21/05/2021,2105-00650,0.00,123.72,R,ALLIANCE DISPOSABLES LTD,No
Http://opendatacommunities.org/id/metropolitan-district-council/leeds,Leeds City Council,31/05/2021,Resources and Housing,Commercial Services,Supplies and Services,Operational Materials,205,21/05/2021,2105-00651,0.00,123.72,R,ALLIANCE DISPOSABLES LTD,No
Http://opendatacommunities.org/id/metropolitan-district-council/leeds,Leeds City Council,31/05/2021,Resources and Housing,Commercial Services,Supplies and Services,Operational Materials,205,21/05/2021,2105-00652,0.00,61.86,R,ALLIANCE DISPOSABLES LTD,No
Http://opendatacommunities.org/id/metropolitan-district-council/leeds,Leeds City Council,31/05/2021,Resources and Housing,Commercial Services,Supplies and Services,Operational Materials,205,21/05/2021,2105-00653,0.00,172.88,R,ALLIANCE DISPOSABLES LTD,No
Http://opendatacommunities.org/id/metropolitan-district-council/leeds,Leeds City Council,31/05/2021,Resources and Housing,Commercial Services,Supplies and Services,Operational Materials,205,21/05/2021,2105-00654,0.00,30.93,R,ALLIANCE DISPOSABLES LTD,No
Http://opendatacommunities.org/id/metropolitan-district-council/leeds,Leeds City Council,31/05/2021,Resources and Housing,Commercial Services,Supplies and Services,Operational Materials,205,21/05/2021,2105-00655,0.00,92.79,R,ALLIANCE DISPOSABLES LTD,No
Http://opendatacommunities.org/id/metropolitan-district-council/leeds,Leeds City Council,31/05/2021,Resources and Housing,Commercial Services,Supplies and Services,Operational Materials,205,21/05/2021,2105-00656,0.00,61.86,R,ALLIANCE DISPOSABLES LTD,No
Http://opendatacommunities.org/id/metropolitan-district-council/leeds,Leeds City Council,31/05/2021,Resources and Housing,Commercial Services,Supplies and Services,Operational Materials,205,21/05/2021,2105-00657,0.00,61.86,R,ALLIANCE DISPOSABLES LTD,No
Http://opendatacommunities.org/id/metropolitan-district-council/leeds,Leeds City Council,31/05/2021,Resources and Housing,Commercial Services,Supplies and Services,Operational Materials,205,21/05/2021,2105-00658,0.00,163.58,R,ALLIANCE DISPOSABLES LTD,No
Http://opendatacommunities.org/id/metropolitan-district-council/leeds,Leeds City Council,31/05/2021,Resources and Housing,Commercial Services,Supplies and Services,Operational Materials,205,21/05/2021,2105-00659,0.00,123.72,R,ALLIANCE DISPOSABLES LTD,No
Http://opendatacommunities.org/id/metropolitan-district-council/leeds,Leeds City Council,31/05/2021,Resources and Housing,Commercial Services,Supplies and Services,Operational Materials,205,25/05/2021,2105-00660,0.00,61.86,R,ALLIANCE DISPOSABLES LTD,No
Http://opendatacommunities.org/id/metropolitan-district-council/leeds,Leeds City Council,31/05/2021,Resources and Housing,Commercial Services,Supplies and Services,Operational Materials,205,25/05/2021,2105-00661,0.00,61.86,R,ALLIANCE DISPOSABLES LTD,No
Http://opendatacommunities.org/id/metropolitan-district-council/leeds,Leeds City Council,31/05/2021,Resources and Housing,Commercial Services,Supplies and Services,Operational Materials,205,27/05/2021,2105-00662,0.00,61.86,R,ALLIANCE DISPOSABLES LTD,No
Http://opendatacommunities.org/id/metropolitan-district-council/leeds,Leeds City Council,31/05/2021,Resources and Housing,Commercial Services,Supplies and Services,Operational Materials,205,27/05/2021,2105-00663,0.00,61.86,R,ALLIANCE DISPOSABLES LTD,No
Http://opendatacommunities.org/id/metropolitan-district-council/leeds,Leeds City Council,31/05/2021,Resources and Housing,Commercial Services,Supplies and Services,Operational Materials,205,27/05/2021,2105-00664,0.00,30.93,R,ALLIANCE DISPOSABLES LTD,No
Http://opendatacommunities.org/id/metropolitan-district-council/leeds,Leeds City Council,31/05/2021,Resources and Housing,Commercial Services,Supplies and Services,Operational Materials,205,27/05/2021,2105-00665,0.00,154.65,R,ALLIANCE DISPOSABLES LTD,No
Http://opendatacommunities.org/id/metropolitan-district-council/leeds,Leeds City Council,31/05/2021,Resources and Housing,Commercial Services,Supplies and Services,Operational Materials,205,27/05/2021,2105-00666,0.00,61.86,R,ALLIANCE DISPOSABLES LTD,No
Http://opendatacommunities.org/id/metropolitan-district-council/leeds,Leeds City Council,31/05/2021,Resources and Housing,Commercial Services,Supplies and Services,Operational Materials,205,27/05/2021,2105-00667,0.00,61.86,R,ALLIANCE DISPOSABLES LTD,No
Http://opendatacommunities.org/id/metropolitan-district-council/leeds,Leeds City Council,31/05/2021,Resources and Housing,Commercial Services,Supplies and Services,Operational Materials,205,27/05/2021,2105-00668,0.00,61.86,R,ALLIANCE DISPOSABLES LTD,No
Http://opendatacommunities.org/id/metropolitan-district-council/leeds,Leeds City Council,31/05/2021,Resources and Housing,Commercial Services,Supplies and Services,Operational Materials,205,27/05/2021,2105-00669,0.00,216.10,R,ALLIANCE DISPOSABLES LTD,No
Http://opendatacommunities.org/id/metropolitan-district-council/leeds,Leeds City Council,31/05/2021,Resources and Housing,Commercial Services,Supplies and Services,Operational Materials,205,27/05/2021,2105-00670,0.00,123.72,R,ALLIANCE DISPOSABLES LTD,No
Http://opendatacommunities.org/id/metropolitan-district-council/leeds,Leeds City Council,31/05/2021,Resources and Housing,Commercial Services,Supplies and Services,Operational Materials,205,27/05/2021,2105-00671,0.00,61.86,R,ALLIANCE DISPOSABLES LTD,No
Http://opendatacommunities.org/id/metropolitan-district-council/leeds,Leeds City Council,31/05/2021,Resources and Housing,Commercial Services,Supplies and Services,Operational Materials,205,28/05/2021,2105-00672,0.00,61.86,R,ALLIANCE DISPOSABLES LTD,No
Http://opendatacommunities.org/id/metropolitan-district-council/leeds,Leeds City Council,31/05/2021,Resources and Housing,Commercial Services,Supplies and Services,Operational Materials,205,28/05/2021,2105-00673,0.00,61.86,R,ALLIANCE DISPOSABLES LTD,No
Http://opendatacommunities.org/id/metropolitan-district-council/leeds,Leeds City Council,31/05/2021,Resources and Housing,Commercial Services,Supplies and Services,Operational Materials,205,28/05/2021,2105-00674,0.00,61.86,R,ALLIANCE DISPOSABLES LTD,No
Http://opendatacommunities.org/id/metropolitan-district-council/leeds,Leeds City Council,31/05/2021,Resources and Housing,Commercial Services,Supplies and Services,Operational Materials,205,28/05/2021,2105-00675,0.00,30.93,R,ALLIANCE DISPOSABLES LTD,No
Http://opendatacommunities.org/id/metropolitan-district-council/leeds,Leeds City Council,31/05/2021,Resources and Housing,Commercial Services,Supplies and Services,Operational Materials,205,28/05/2021,2105-00676,0.00,92.79,R,ALLIANCE DISPOSABLES LTD,No
Http://opendatacommunities.org/id/metropolitan-district-council/leeds,Leeds City Council,31/05/2021,Resources and Housing,Commercial Services,Supplies and Services,Operational Materials,205,28/05/2021,2105-00677,0.00,61.86,R,ALLIANCE DISPOSABLES LTD,No
Http://opendatacommunities.org/id/metropolitan-district-council/leeds,Leeds City Council,31/05/2021,Resources and Housing,Commercial Services,Supplies and Services,Operational Materials,205,28/05/2021,2105-00678,0.00,123.72,R,ALLIANCE DISPOSABLES LTD,No
Http://opendatacommunities.org/id/metropolitan-district-council/leeds,Leeds City Council,31/05/2021,Resources and Housing,Commercial Services,Supplies and Services,Operational Materials,205,28/05/2021,2105-00679,0.00,61.86,R,ALLIANCE DISPOSABLES LTD,No
Http://opendatacommunities.org/id/metropolitan-district-council/leeds,Leeds City Council,31/05/2021,Resources and Housing,Commercial Services,Supplies and Services,Operational Materials,205,28/05/2021,2105-00680,0.00,92.79,R,ALLIANCE DISPOSABLES LTD,No
Http://opendatacommunities.org/id/metropolitan-district-council/leeds,Leeds City Council,31/05/2021,Resources and Housing,Commercial Services,Supplies and Services,Operational Materials,205,28/05/2021,2105-00681,0.00,61.86,R,ALLIANCE DISPOSABLES LTD,No
Http://opendatacommunities.org/id/metropolitan-district-council/leeds,Leeds City Council,31/05/2021,Resources and Housing,Commercial Services,Supplies and Services,Operational Materials,205,28/05/2021,2105-00682,0.00,250.91,R,ALLIANCE DISPOSABLES LTD,No
Http://opendatacommunities.org/id/metropolitan-district-council/leeds,Leeds City Council,31/05/2021,Resources and Housing,Commercial Services,Supplies and Services,Operational Materials,205,28/05/2021,2105-00683,0.00,61.86,R,ALLIANCE DISPOSABLES LTD,No
Http://opendatacommunities.org/id/metropolitan-district-council/leeds,Leeds City Council,31/05/2021,Children and Families,Social Care,Agency Payments,Independent Fostering Agencies,509,17/05/2021,2105-00684,0.00,3538.34,R,Alliance Foster Care,No
Http://opendatacommunities.org/id/metropolitan-district-council/leeds,Leeds City Council,31/05/2021,City Development,Highways,Supplies and Services,Other Hired And Contracted Services,265,05/05/2021,2105-00685,0.00,3000.00,R,ALLIED EXPLORATION & GEOTECHNICS LTD,No
Http://opendatacommunities.org/id/metropolitan-district-council/leeds,Leeds City Council,31/05/2021,City Development,Highways,Capital,OTHER COSTS,7,18/05/2021,2105-00686,0.00,1851.94,C,ALLIED EXPLORATION & GEOTECHNICS LTD,No
Http://opendatacommunities.org/id/metropolitan-district-council/leeds,Leeds City Council,31/05/2021,City Development,Highways,Capital,OTHER COSTS,7,28/05/2021,2105-00687,0.00,1191.60,C,ALLIED EXPLORATION & GEOTECHNICS LTD,No
Http://opendatacommunities.org/id/metropolitan-district-council/leeds,Leeds City Council,31/05/2021,Children and Families,Social Care,Agency Payments,Supporting People - Spot Payments,515,06/05/2021,2105-00688,0.00,427.50,R,Allied Healthcare,No
Http://opendatacommunities.org/id/metropolitan-district-council/leeds,Leeds City Council,31/05/2021,Adults and Health,Services For Older People - 65 And Over,Agency Payments,Home Care,568,06/05/2021,2105-00689,0.00,6938.25,R,Allied Healthcare,No
Http://opendatacommunities.org/id/metropolitan-district-council/leeds,Leeds City Council,31/05/2021,Adults and Health,Services For Older People Under 65 P/Dis,Agency Payments,Home Care,568,06/05/2021,2105-00690,0.00,1296.30,R,Allied Healthcare,No
Http://opendatacommunities.org/id/metropolitan-district-council/leeds,Leeds City Council,31/05/2021,Adults and Health,Services For Adults Under 65 Mental/Dis,Agency Payments,Home Care,568,06/05/2021,2105-00691,0.00,526.35,R,Allied Healthcare,No
Http://opendatacommunities.org/id/metropolitan-district-council/leeds,Leeds City Council,31/05/2021,Adults and Health,Services For Older People - 65 And Over,Agency Payments,Home Care,568,06/05/2021,2105-00692,0.00,21132.30,R,Allied Healthcare,No
Http://opendatacommunities.org/id/metropolitan-district-council/leeds,Leeds City Council,31/05/2021,Adults and Health,Services For Older People - 65 And Over,Agency Payments,HCAIT Other,577,06/05/2021,2105-00693,0.00,548.10,R,Allied Healthcare,No
Http://opendatacommunities.org/id/metropolitan-district-council/leeds,Leeds City Council,31/05/2021,Adults and Health,Services For Older People Under 65 P/Dis,Agency Payments,Home Care,568,06/05/2021,2105-00694,0.00,11166.45,R,Allied Healthcare,No
Http://opendatacommunities.org/id/metropolitan-district-council/leeds,Leeds City Council,31/05/2021,Children and Families,Social Care,Agency Payments,Services Rendered By Voluntary Sector,505,11/05/2021,2105-00695,0.00,85.50,R,Allied Healthcare,No
Http://opendatacommunities.org/id/metropolitan-district-council/leeds,Leeds City Council as Accountable Body,31/05/2021,Social Services Pooled Budgets,Jcs For People With Learning Disabilitie,Agency Payments,Home Care,568,17/05/2021,2105-00696,0.00,1256.96,R,Allied Healthcare,No
Http://opendatacommunities.org/id/metropolitan-district-council/leeds,Leeds City Council,31/05/2021,Adults and Health,Other Generic Services,Agency Payments,Home Care,568,18/05/2021,2105-00697,0.00,1749.60,R,Allied Healthcare,No
Http://opendatacommunities.org/id/metropolitan-district-council/leeds,Leeds City Council,31/05/2021,Adults and Health,Other Generic Services,Agency Payments,Home Care,568,18/05/2021,2105-00698,0.00,1490.40,R,Allied Healthcare,No
Http://opendatacommunities.org/id/metropolitan-district-council/leeds,Leeds City Council,31/05/2021,Adults and Health,Services For Older People - 65 And Over,Agency Payments,HCAIT Other,577,19/05/2021,2105-00699,0.00,1062.83,R,Allied Healthcare,No
Http://opendatacommunities.org/id/metropolitan-district-council/leeds,Leeds City Council,31/05/2021,Adults and Health,Services For Adults Under 65 Mental/Dis,Agency Payments,Home Care,568,19/05/2021,2105-00700,0.00,730.80,R,Allied Healthcare,No
Http://opendatacommunities.org/id/metropolitan-district-council/leeds,Leeds City Council,31/05/2021,Adults and Health,Services For Older People - 65 And Over,Agency Payments,Home Care,568,19/05/2021,2105-00701,0.00,7464.60,R,Allied Healthcare,No
Http://opendatacommunities.org/id/metropolitan-district-council/leeds,Leeds City Council,31/05/2021,Adults and Health,Services For Adults Under 65 Mental/Dis,Agency Payments,Home Care,568,19/05/2021,2105-00702,0.00,548.10,R,Allied Healthcare,No
Http://opendatacommunities.org/id/metropolitan-district-council/leeds,Leeds City Council,31/05/2021,Adults and Health,Services For Older People - 65 And Over,Agency Payments,Home Care,568,19/05/2021,2105-00703,0.00,11858.10,R,Allied Healthcare,No
Http://opendatacommunities.org/id/metropolitan-district-council/leeds,Leeds City Council,31/05/2021,Adults and Health,Services For Older People Under 65 P/Dis,Agency Payments,Home Care,568,19/05/2021,2105-00704,0.00,1165.80,R,Allied Healthcare,No
Http://opendatacommunities.org/id/metropolitan-district-council/leeds,Leeds City Council,31/05/2021,Adults and Health,Services For Adults Under 65 Mental/Dis,Agency Payments,Home Care,568,19/05/2021,2105-00705,0.00,643.80,R,Allied Healthcare,No
Http://opendatacommunities.org/id/metropolitan-district-council/leeds,Leeds City Council,31/05/2021,Adults and Health,Services For Older People - 65 And Over,Agency Payments,Home Care,568,19/05/2021,2105-00706,0.00,20840.85,R,Allied Healthcare,No
Http://opendatacommunities.org/id/metropolitan-district-council/leeds,Leeds City Council,31/05/2021,Adults and Health,Services For Older People - 65 And Over,Agency Payments,HCAIT Other,577,19/05/2021,2105-00707,0.00,635.10,R,Allied Healthcare,No
Http://opendatacommunities.org/id/metropolitan-district-council/leeds,Leeds City Council,31/05/2021,Adults and Health,Services For Older People Under 65 P/Dis,Agency Payments,Home Care,568,19/05/2021,2105-00708,0.00,11301.30,R,Allied Healthcare,No
Http://opendatacommunities.org/id/metropolitan-district-council/leeds,Leeds City Council,31/05/2021,Adults and Health,Services For Older People - 65 And Over,Agency Payments,Home Care,568,26/05/2021,2105-00709,0.00,8947.95,R,Allied Healthcare,No
Http://opendatacommunities.org/id/metropolitan-district-council/leeds,Leeds City Council,31/05/2021,Adults and Health,Services For Older People Under 65 P/Dis,Agency Payments,Home Care,568,26/05/2021,2105-00710,0.00,1374.60,R,Allied Healthcare,No
Http://opendatacommunities.org/id/metropolitan-district-council/leeds,Leeds City Council,31/05/2021,Communities and Environment,Customer Access,Supplies and Services,Printing,215,28/05/2021,2105-00711,0.00,2613.48,R,Allied Publicity Services,No
Http://opendatacommunities.org/id/metropolitan-district-council/leeds,Leeds City Council,31/05/2021,Children and Families,Social Care,Agency Payments,Services Rendered By Other Organisations,511,07/05/2021,2105-00712,0.00,463.84,R,REDACTED PERSONAL DATA,No
Http://opendatacommunities.org/id/metropolitan-district-council/leeds,Leeds City Council,31/05/2021,Children and Families,Social Care,Agency Payments,Contact,548,04/05/2021,2105-00713,0.00,39.40,R,Allpay,No
Http://opendatacommunities.org/id/metropolitan-district-council/leeds,Leeds City Council,31/05/2021,Children and Families,Social Care,Agency Payments,Placement Support,550,04/05/2021,2105-00714,0.00,242.50,R,Allpay,No
Http://opendatacommunities.org/id/metropolitan-district-council/leeds,Leeds City Council,31/05/2021,Children and Families,Social Care,Agency Payments,Section 17,551,04/05/2021,2105-00715,0.00,1071.52,R,Allpay,No
Http://opendatacommunities.org/id/metropolitan-district-council/leeds,Leeds City Council,31/05/2021,Children and Families,Social Care,Appropriations,16 Plus Top Up Allowance,625,04/05/2021,2105-00716,0.00,120.00,R,Allpay,No
Http://opendatacommunities.org/id/metropolitan-district-council/leeds,Leeds City Council,31/05/2021,Children and Families,Social Care,Appropriations,Leaving Care Allowances,634,04/05/2021,2105-00717,0.00,718.90,R,Allpay,No
Http://opendatacommunities.org/id/metropolitan-district-council/leeds,Leeds City Council,31/05/2021,Children and Families,Social Care,Agency Payments,Section 17,551,04/05/2021,2105-00718,0.00,118.80,R,Allpay,No
Http://opendatacommunities.org/id/metropolitan-district-council/leeds,Leeds City Council,31/05/2021,Children and Families,Social Care,Appropriations,16 Plus Top Up Allowance,625,07/05/2021,2105-00719,0.00,140.00,R,Allpay,No
Http://opendatacommunities.org/id/metropolitan-district-council/leeds,Leeds City Council,31/05/2021,Children and Families,Social Care,Appropriations,16 Plus Top Up Allowance,625,10/05/2021,2105-00720,0.00,120.00,R,Allpay,No
Http://opendatacommunities.org/id/metropolitan-district-council/leeds,Leeds City Council,31/05/2021,Children and Families,Social Care,Appropriations,Leaving Care Allowances,634,10/05/2021,2105-00721,0.00,140.00,R,Allpay,No
Http://opendatacommunities.org/id/metropolitan-district-council/leeds,Leeds City Council,31/05/2021,Children and Families,Social Care,Agency Payments,Placement Support,550,11/05/2021,2105-00722,0.00,210.00,R,Allpay,No
Http://opendatacommunities.org/id/metropolitan-district-council/leeds,Leeds City Council,31/05/2021,Children and Families,Social Care,Agency Payments,Section 17,551,11/05/2021,2105-00723,0.00,168.40,R,Allpay,No
Http://opendatacommunities.org/id/metropolitan-district-council/leeds,Leeds City Council,31/05/2021,Children and Families,Social Care,Appropriations,Leaving Care Allowances,634,11/05/2021,2105-00724,0.00,50.00,R,Allpay,No
Http://opendatacommunities.org/id/metropolitan-district-council/leeds,Leeds City Council,31/05/2021,Children and Families,Social Care,Agency Payments,Contact,548,12/05/2021,2105-00725,0.00,21.40,R,Allpay,No
Http://opendatacommunities.org/id/metropolitan-district-council/leeds,Leeds City Council,31/05/2021,Children and Families,Social Care,Agency Payments,Placement Support,550,12/05/2021,2105-00726,0.00,312.50,R,Allpay,No
Http://opendatacommunities.org/id/metropolitan-district-council/leeds,Leeds City Council,31/05/2021,Children and Families,Social Care,Agency Payments,Section 17,551,12/05/2021,2105-00727,0.00,1358.72,R,Allpay,No
Http://opendatacommunities.org/id/metropolitan-district-council/leeds,Leeds City Council,31/05/2021,Children and Families,Social Care,Appropriations,16 Plus Top Up Allowance,625,12/05/2021,2105-00728,0.00,160.00,R,Allpay,No
Http://opendatacommunities.org/id/metropolitan-district-council/leeds,Leeds City Council,31/05/2021,Children and Families,Social Care,Appropriations,Leaving Care Allowances,634,12/05/2021,2105-00729,0.00,778.90,R,Allpay,No
Http://opendatacommunities.org/id/metropolitan-district-council/leeds,Leeds City Council,31/05/2021,Children and Families,Social Care,Appropriations,Leaving Care Allowances,634,12/05/2021,2105-00730,0.00,50.00,R,Allpay,No
Http://opendatacommunities.org/id/metropolitan-district-council/leeds,Leeds City Council,31/05/2021,Children and Families,Social Care,Appropriations,Leaving Care Allowances,634,12/05/2021,2105-00731,0.00,100.00,R,Allpay,No
Http://opendatacommunities.org/id/metropolitan-district-council/leeds,Leeds City Council,31/05/2021,Children and Families,Social Care,Agency Payments,Section 17,551,13/05/2021,2105-00732,0.00,158.40,R,Allpay,No
Http://opendatacommunities.org/id/metropolitan-district-council/leeds,Leeds City Council,31/05/2021,Children and Families,Social Care,Agency Payments,Allowances,546,14/05/2021,2105-00733,0.00,70.00,R,Allpay,No
Http://opendatacommunities.org/id/metropolitan-district-council/leeds,Leeds City Council,31/05/2021,Children and Families,Social Care,Appropriations,16 Plus Top Up Allowance,625,14/05/2021,2105-00734,0.00,60.00,R,Allpay,No
Http://opendatacommunities.org/id/metropolitan-district-council/leeds,Leeds City Council,31/05/2021,Children and Families,Social Care,Appropriations,16 Plus Top Up Allowance,625,14/05/2021,2105-00735,0.00,60.00,R,Allpay,No
Http://opendatacommunities.org/id/metropolitan-district-council/leeds,Leeds City Council,31/05/2021,Children and Families,Social Care,Agency Payments,Allowances,546,17/05/2021,2105-00736,0.00,70.00,R,Allpay,No
Http://opendatacommunities.org/id/metropolitan-district-council/leeds,Leeds City Council,31/05/2021,Children and Families,Social Care,Appropriations,Leaving Care Allowances,634,18/05/2021,2105-00737,0.00,742.55,R,Allpay,No
Http://opendatacommunities.org/id/metropolitan-district-council/leeds,Leeds City Council,31/05/2021,Children and Families,Social Care,Agency Payments,Section 17,551,18/05/2021,2105-00738,0.00,84.20,R,Allpay,No
Http://opendatacommunities.org/id/metropolitan-district-council/leeds,Leeds City Council,31/05/2021,Children and Families,Social Care,Agency Payments,Section 17,551,19/05/2021,2105-00739,0.00,396.00,R,Allpay,No
Http://opendatacommunities.org/id/metropolitan-district-council/leeds,Leeds City Council,31/05/2021,Children and Families,Social Care,Appropriations,Leaving Care Allowances,634,19/05/2021,2105-00740,0.00,70.00,R,Allpay,No
Http://opendatacommunities.org/id/metropolitan-district-council/leeds,Leeds City Council,31/05/2021,Children and Families,Social Care,Agency Payments,Allowances,546,19/05/2021,2105-00741,0.00,150.00,R,Allpay,No
Http://opendatacommunities.org/id/metropolitan-district-council/leeds,Leeds City Council,31/05/2021,Children and Families,Social Care,Agency Payments,Section 17,551,19/05/2021,2105-00742,0.00,25.20,R,Allpay,No
Http://opendatacommunities.org/id/metropolitan-district-council/leeds,Leeds City Council,31/05/2021,Children and Families,Social Care,Agency Payments,Contact,548,19/05/2021,2105-00743,0.00,29.40,R,Allpay,No
Http://opendatacommunities.org/id/metropolitan-district-council/leeds,Leeds City Council,31/05/2021,Children and Families,Social Care,Agency Payments,Placement Support,550,19/05/2021,2105-00744,0.00,312.50,R,Allpay,No
Http://opendatacommunities.org/id/metropolitan-district-council/leeds,Leeds City Council,31/05/2021,Children and Families,Social Care,Agency Payments,Section 17,551,19/05/2021,2105-00745,0.00,1463.12,R,Allpay,No
Http://opendatacommunities.org/id/metropolitan-district-council/leeds,Leeds City Council,31/05/2021,Children and Families,Social Care,Appropriations,16 Plus Top Up Allowance,625,19/05/2021,2105-00746,0.00,180.00,R,Allpay,No
Http://opendatacommunities.org/id/metropolitan-district-council/leeds,Leeds City Council,31/05/2021,Children and Families,Social Care,Appropriations,Leaving Care Allowances,634,19/05/2021,2105-00747,0.00,918.90,R,Allpay,No
Http://opendatacommunities.org/id/metropolitan-district-council/leeds,Leeds City Council,31/05/2021,Children and Families,Social Care,Appropriations,Leaving Care Allowances,634,21/05/2021,2105-00748,0.00,196.44,R,Allpay,No
Http://opendatacommunities.org/id/metropolitan-district-council/leeds,Leeds City Council,31/05/2021,Children and Families,Social Care,Appropriations,16 Plus Top Up Allowance,625,24/05/2021,2105-00749,0.00,60.00,R,Allpay,No
Http://opendatacommunities.org/id/metropolitan-district-council/leeds,Leeds City Council,31/05/2021,Children and Families,Social Care,Agency Payments,Section 17,551,24/05/2021,2105-00750,0.00,84.20,R,Allpay,No
Http://opendatacommunities.org/id/metropolitan-district-council/leeds,Leeds City Council,31/05/2021,Children and Families,Social Care,Agency Payments,Section 17,551,25/05/2021,2105-00751,0.00,124.20,R,Allpay,No
Http://opendatacommunities.org/id/metropolitan-district-council/leeds,Leeds City Council,31/05/2021,Children and Families,Social Care,Agency Payments,Contact,548,26/05/2021,2105-00752,0.00,29.40,R,Allpay,No
Http://opendatacommunities.org/id/metropolitan-district-council/leeds,Leeds City Council,31/05/2021,Children and Families,Social Care,Agency Payments,Placement Support,550,26/05/2021,2105-00753,0.00,312.50,R,Allpay,No
Http://opendatacommunities.org/id/metropolitan-district-council/leeds,Leeds City Council,31/05/2021,Children and Families,Social Care,Agency Payments,Section 17,551,26/05/2021,2105-00754,0.00,1547.32,R,Allpay,No
Http://opendatacommunities.org/id/metropolitan-district-council/leeds,Leeds City Council,31/05/2021,Children and Families,Social Care,Appropriations,16 Plus Top Up Allowance,625,26/05/2021,2105-00755,0.00,180.00,R,Allpay,No
Http://opendatacommunities.org/id/metropolitan-district-council/leeds,Leeds City Council,31/05/2021,Children and Families,Social Care,Appropriations,Leaving Care Allowances,634,26/05/2021,2105-00756,0.00,978.90,R,Allpay,No
Http://opendatacommunities.org/id/metropolitan-district-council/leeds,Leeds City Council,31/05/2021,Children and Families,Social Care,Appropriations,16 Plus Top Up Allowance,625,26/05/2021,2105-00757,0.00,20.00,R,Allpay,No
Http://opendatacommunities.org/id/metropolitan-district-council/leeds,Leeds City Council,31/05/2021,Children and Families,Social Care,Supplies and Services,Computer Software & Equipment,214,24/05/2021,2105-00758,0.00,38.49,R,Allpay Limted,No
Http://opendatacommunities.org/id/metropolitan-district-council/leeds,Leeds City Council,31/05/2021,Children and Families,Social Care,Supplies and Services,Computer Software & Equipment,214,28/05/2021,2105-00759,0.00,59.08,R,Allpay Limted,No
Http://opendatacommunities.org/id/metropolitan-district-council/leeds,Leeds City Council,31/05/2021,Adults and Health,Services For Older People Under 65 P/Dis,Agency Payments,Residential,580,26/05/2021,2105-00760,0.00,3534.24,R,Alne Hall,No
Http://opendatacommunities.org/id/metropolitan-district-council/leeds,Leeds City Council,31/05/2021,Communities and Environment,Parks and Countryside,Supplies and Services,Other Hired And Contracted Services,265,28/05/2021,2105-00761,0.00,8241.42,R,ALPHA RAIL LIMITED,No
Http://opendatacommunities.org/id/metropolitan-district-council/leeds,Leeds City Council,31/05/2021,City Development,Economic Development,Supplies and Services,Grant Related Expenditure,290,05/05/2021,2105-00762,0.00,1554.00,R,Alpha Shindara Legal,No
Http://opendatacommunities.org/id/metropolitan-district-council/leeds,Leeds City Council,31/05/2021,Children and Families,Social Care,Internal Recharges,Legal Disbursements,411,04/05/2021,2105-00763,0.00,71.25,R,Alphabiolabs,No
Http://opendatacommunities.org/id/metropolitan-district-council/leeds,Leeds City Council,31/05/2021,Children and Families,Social Care,Internal Recharges,Legal Disbursements,411,04/05/2021,2105-00764,0.00,475.00,R,Alphabiolabs,No
Http://opendatacommunities.org/id/metropolitan-district-council/leeds,Leeds City Council,31/05/2021,Children and Families,Social Care,Internal Recharges,Legal Disbursements,411,04/05/2021,2105-00765,0.00,278.50,R,Alphabiolabs,No
Http://opendatacommunities.org/id/metropolitan-district-council/leeds,Leeds City Council,31/05/2021,Children and Families,Social Care,Internal Recharges,Legal Disbursements,411,04/05/2021,2105-00766,0.00,31.67,R,Alphabiolabs,No
Http://opendatacommunities.org/id/metropolitan-district-council/leeds,Leeds City Council,31/05/2021,Children and Families,Social Care,Internal Recharges,Legal Disbursements,411,04/05/2021,2105-00767,0.00,433.80,R,Alphabiolabs,No
Http://opendatacommunities.org/id/metropolitan-district-council/leeds,Leeds City Council,31/05/2021,Children and Families,Social Care,Internal Recharges,Legal Disbursements,411,04/05/2021,2105-00768,0.00,129.00,R,Alphabiolabs,No
Http://opendatacommunities.org/id/metropolitan-district-council/leeds,Leeds City Council,31/05/2021,Children and Families,Social Care,Internal Recharges,Legal Disbursements,411,04/05/2021,2105-00769,0.00,59.16,R,Alphabiolabs,No
Http://opendatacommunities.org/id/metropolitan-district-council/leeds,Leeds City Council,31/05/2021,Children and Families,Social Care,Internal Recharges,Legal Disbursements,411,04/05/2021,2105-00770,0.00,300.00,R,Alphabiolabs,No
Http://opendatacommunities.org/id/metropolitan-district-council/leeds,Leeds City Council,31/05/2021,Children and Families,Social Care,Internal Recharges,Legal Disbursements,411,04/05/2021,2105-00771,0.00,810.00,R,Alphabiolabs,No
Http://opendatacommunities.org/id/metropolitan-district-council/leeds,Leeds City Council,31/05/2021,Children and Families,Social Care,Internal Recharges,Legal Disbursements,411,04/05/2021,2105-00772,0.00,95.00,R,Alphabiolabs,No
Http://opendatacommunities.org/id/metropolitan-district-council/leeds,Leeds City Council,31/05/2021,Children and Families,Social Care,Internal Recharges,Legal Disbursements,411,04/05/2021,2105-00773,0.00,169.75,R,Alphabiolabs,No
Http://opendatacommunities.org/id/metropolitan-district-council/leeds,Leeds City Council,31/05/2021,Children and Families,Social Care,Internal Recharges,Legal Disbursements,411,04/05/2021,2105-00774,0.00,54.00,R,Alphabiolabs,No
Http://opendatacommunities.org/id/metropolitan-district-council/leeds,Leeds City Council,31/05/2021,Children and Families,Social Care,Internal Recharges,Legal Disbursements,411,07/05/2021,2105-00775,0.00,87.50,R,Alphabiolabs,No
Http://opendatacommunities.org/id/metropolitan-district-council/leeds,Leeds City Council,31/05/2021,Children and Families,Social Care,Agency Payments,Section 17,551,07/05/2021,2105-00776,0.00,390.00,R,Alphabiolabs,No
Http://opendatacommunities.org/id/metropolitan-district-council/leeds,Leeds City Council,31/05/2021,Children and Families,Social Care,Internal Recharges,Legal Disbursements,411,07/05/2021,2105-00777,0.00,162.25,R,Alphabiolabs,No
Http://opendatacommunities.org/id/metropolitan-district-council/leeds,Leeds City Council,31/05/2021,Children and Families,Social Care,Internal Recharges,Legal Disbursements,411,07/05/2021,2105-00778,0.00,90.01,R,Alphabiolabs,No
Http://opendatacommunities.org/id/metropolitan-district-council/leeds,Leeds City Council,31/05/2021,Children and Families,Social Care,Internal Recharges,Legal Disbursements,411,07/05/2021,2105-00779,0.00,103.75,R,Alphabiolabs,No
Http://opendatacommunities.org/id/metropolitan-district-council/leeds,Leeds City Council,31/05/2021,Children and Families,Social Care,Internal Recharges,Legal Disbursements,411,07/05/2021,2105-00780,0.00,535.00,R,Alphabiolabs,No
Http://opendatacommunities.org/id/metropolitan-district-council/leeds,Leeds City Council,31/05/2021,Children and Families,Social Care,Internal Recharges,Legal Disbursements,411,12/05/2021,2105-00781,0.00,248.00,R,Alphabiolabs,No
Http://opendatacommunities.org/id/metropolitan-district-council/leeds,Leeds City Council,31/05/2021,Children and Families,Social Care,Internal Recharges,Legal Disbursements,411,13/05/2021,2105-00782,0.00,19.00,R,Alphabiolabs,No
Http://opendatacommunities.org/id/metropolitan-district-council/leeds,Leeds City Council,31/05/2021,Children and Families,Social Care,Internal Recharges,Legal Disbursements,411,14/05/2021,2105-00783,0.00,77.50,R,Alphabiolabs,No
Http://opendatacommunities.org/id/metropolitan-district-council/leeds,Leeds City Council,31/05/2021,Children and Families,Social Care,Internal Recharges,Legal Disbursements,411,14/05/2021,2105-00784,0.00,142.50,R,Alphabiolabs,No
Http://opendatacommunities.org/id/metropolitan-district-council/leeds,Leeds City Council,31/05/2021,Children and Families,Social Care,Internal Recharges,Legal Disbursements,411,14/05/2021,2105-00785,0.00,116.67,R,Alphabiolabs,No
Http://opendatacommunities.org/id/metropolitan-district-council/leeds,Leeds City Council,31/05/2021,Children and Families,Social Care,Internal Recharges,Legal Disbursements,411,20/05/2021,2105-00786,0.00,89.00,R,Alphabiolabs,No
Http://opendatacommunities.org/id/metropolitan-district-council/leeds,Leeds City Council,31/05/2021,Children and Families,Social Care,Internal Recharges,Legal Disbursements,411,20/05/2021,2105-00787,0.00,214.37,R,Alphabiolabs,No
Http://opendatacommunities.org/id/metropolitan-district-council/leeds,Leeds City Council,31/05/2021,Children and Families,Social Care,Internal Recharges,Legal Disbursements,411,20/05/2021,2105-00788,0.00,87.25,R,Alphabiolabs,No
Http://opendatacommunities.org/id/metropolitan-district-council/leeds,Leeds City Council,31/05/2021,Children and Families,Social Care,Internal Recharges,Legal Disbursements,411,21/05/2021,2105-00789,0.00,23.75,R,Alphabiolabs,No
